Department,Entity, Transaction Date, Expense Type, Expense Area, Supplier Name,Transaction number, Amount, Invoice Description
DFID,DFID,01/09/2016,Secure Staff Accommodation ,West and Southern Africa ,Foreign & Commonwealth Office ,101629-101 ,"36,898.24",12 month's rental payment for Secure Staff Accommodation for the period  August 2016 � July 2017  � DFID Sierra Leone and Liberia
DFID,DFID,28/09/2016,Computer software maintenance ,Business Solutions Division Level ,Unit 4 ,200002-107 ,"62,663.78",Maintenance and support costs for the  DFID Financial Management System for the period October - December 2016 
DFID,DFID,01/09/2016,Project delivery costs – supplier services ,East and Central Africa ,Crown Agents. ,202594-101 ,"25,527.00",Support for the ongoing  development of the  humanitarian and livelihoods programme in South Sudan
DFID,DFID,23/09/2016,Property rates ,Group Operations ,CITY OF WESTMINSTER ,203717-101 ,"128,216.00",One tenth of the 2016/17 Whitehall headquarters rateable value September 2016
DFID,DFID,22/09/2016,Repairs  Maint  Alter - Property & Constrct. Services ,Central Department Division ,FCO SERVICES ,204994-143 ,"74,967.89",Investments in DFIDs overseas properties  in order to meet our duty of care obligations  and health and safety standards 
DFID,DFID,02/09/2016,Repairs  Maint  Alter - Property & Constrct. Services ,Central Department Division ,FCO SERVICES ,204994-143 ,"67,422.96",Management fee for the health and safety risk assessment of various DFID overseas properties
DFID,DFID,21/09/2016,Electricity ,Group Operations ,EDF ENERGY ,100106-101 ,"49,024.25",Electricity supply for Abercrombie House for the period June - August 2016 
DFID,DFID,15/09/2016,Data Network - land lines ,Business Solutions Division Level ,VODAFONE LIMITED ,200002-185 ,"98,815.72",ECHO - rental charges for telecommunication links in DFID offices outwith European Union  for January 2016 Part 1 of 2
DFID,DFID,15/09/2016,Data Network - land lines ,Business Solutions Division Level ,VODAFONE LIMITED ,203329-103 ,"98,815.71",ECHO - rental charges for telecommunication links in DFID offices outwith European Union for July 2016 Part 2 of 2
DFID,DFID,29/09/2016,Project delivery costs – supplier services ,Group Operations ,MARSH PRIVATE CLIENT SERVICES ,202426-101 ,"45,501.29", Worldwide all risks & public liability insurance policy for overseas staff  April - June 2106
DFID,DFID,15/09/2016,Project delivery costs – supplier services ,West and Southern Africa ,OXFORD POLICY MANAGEMENT ,101629-101 ,"29,305.02",Support for the ongoing  development of  the  Sierra Leone education programme
DFID,DFID,07/09/2016,Computer software maintenance ,Business Solutions Division Level ,TRUSTMARQUE SOLUTIONS LTD ,200002-151 ,"94,239.00",Database support and maintenance contract for electronic and document records management system  for October 2016 - March 2017
DFID,DFID,01/09/2016,Subscriptions ,Communications Division ,Cabinet Office RM Shared Services ,100197-101 ,"40,000.00",Annual subscription to Media Monitoring Unit services for Financial Year 2015/2016
DFID,DFID,07/09/2016,Computer Software Licenses ,Business Solutions Division Level ,SCC Ltd ,200002-147 ,"51,120.00",Annual email security service from 07 August 2016 to 06 August 2017
DFID,DFID,13/09/2016,Other Building Products ,Group Operations ,DECC EA Funds Account ,203717-101 ,"33,580.30",DFIDs annual contribution to the CRC Energy Efficiency Scheme 2015/16
DFID,DFID,01/09/2016,Air fares ,East and Central Africa ,Corporate Travel Provider ,100016-107 ,"1,066.60",
DFID,DFID,01/09/2016,Air fares ,East and Central Africa ,Corporate Travel Provider ,100016-107 ,"2,702.20",
DFID,DFID,01/09/2016,Air fares ,East and Central Africa ,Corporate Travel Provider ,100016-107 ,672.65,
DFID,DFID,01/09/2016,Air fares ,East and Central Africa ,Corporate Travel Provider ,100016-107 ,"1,314.95",
DFID,DFID,01/09/2016,Air fares ,East and Central Africa ,Corporate Travel Provider ,100016-107 ,"1,926.62",
DFID,DFID,01/09/2016,Air fares ,East and Central Africa ,Corporate Travel Provider ,100016-107 ,638.33,
DFID,DFID,01/09/2016,Medical/Health Services ,Asia  Caribbean and Overseas Territories ,Foreign & Commonwealth Office ,100025-101 ,"1,349.50",
DFID,DFID,01/09/2016,Air fares ,Research and Evidence Division ,Corporate Travel Provider ,100039-108 ,858.05,
DFID,DFID,01/09/2016,Hotels - Accommodation only ,Research and Evidence Division ,Corporate Travel Provider ,100039-108 ,501.56,
DFID,DFID,01/09/2016,Air fares ,Research and Evidence Division ,Corporate Travel Provider ,100039-110 ,532.67,
DFID,DFID,01/09/2016,Hotels - Accommodation only ,Policy Division ,Corporate Travel Provider ,100045-101 ,"1,679.91",
DFID,DFID,01/09/2016,Air fares ,Policy Division ,Corporate Travel Provider ,100045-101 ,543.05,
DFID,DFID,01/09/2016,Air fares ,Policy Division ,Corporate Travel Provider ,100045-101 ,577.55,
DFID,DFID,01/09/2016,Air fares ,Economic Development Division ,Corporate Travel Provider ,100111-101 ,755.45,
DFID,DFID,01/09/2016,Air fares ,Internal Audit ,Corporate Travel Provider ,100121-101 ,"1,552.07",
DFID,DFID,01/09/2016,Air fares ,Internal Audit ,Corporate Travel Provider ,100121-101 ,698.75,
DFID,DFID,01/09/2016,Air fares ,Internal Audit ,Corporate Travel Provider ,100121-101 ,691.70,
DFID,DFID,01/09/2016,Air fares ,Internal Audit ,Corporate Travel Provider ,100121-101 ,587.80,
DFID,DFID,01/09/2016,Air fares ,Internal Audit ,Corporate Travel Provider ,100121-101 ,663.37,
DFID,DFID,01/09/2016,Air fares ,Internal Audit ,Corporate Travel Provider ,100121-101 ,674.95,
DFID,DFID,01/09/2016,Air fares ,Internal Audit ,Corporate Travel Provider ,100121-101 ,663.47,
DFID,DFID,01/09/2016,Air fares ,Internal Audit ,Corporate Travel Provider ,100121-101 ,663.47,
DFID,DFID,01/09/2016,Air fares ,Internal Audit ,Corporate Travel Provider ,100121-101 ,674.95,
DFID,DFID,01/09/2016,Air fares ,Internal Audit ,Corporate Travel Provider ,100121-101 ,652.95,
DFID,DFID,01/09/2016,Air fares ,Internal Audit ,Corporate Travel Provider ,100121-101 ,"1,390.74",
DFID,DFID,01/09/2016,Air fares ,Internal Audit ,Corporate Travel Provider ,100121-101 ,"1,444.57",
DFID,DFID,01/09/2016,Air fares ,Internal Audit ,Corporate Travel Provider ,100121-101 ,663.47,
DFID,DFID,01/09/2016,Air fares ,Internal Audit ,Corporate Travel Provider ,100121-101 ,652.95,
DFID,DFID,01/09/2016,Air fares ,Internal Audit ,Corporate Travel Provider ,100121-101 ,"1,579.75",
DFID,DFID,01/09/2016,Air fares ,Internal Audit ,Corporate Travel Provider ,100121-101 ,652.95,
DFID,DFID,01/09/2016,Air fares ,Internal Audit ,Corporate Travel Provider ,100121-101 ,652.95,
DFID,DFID,01/09/2016,Air fares ,Internal Audit ,Corporate Travel Provider ,100121-101 ,652.95,
DFID,DFID,01/09/2016,Air fares ,Internal Audit ,Corporate Travel Provider ,100121-101 ,620.77,
DFID,DFID,01/09/2016,Conferences  Seminars & Meeting/Event Resource ,Conflict  Humanitarian  Security & Stabilisation Division ,Goodenough College,100049-102 ,646.35,
DFID,DFID,05/09/2016,Air fares ,Economic Development Division ,Foreign & Commonwealth Office ,100124-101 ,"1,430.76",
DFID,DFID,01/09/2016,Air fares ,Middle East and North Africa Division ,Corporate Travel Provider ,100146-101 ,527.05,
DFID,DFID,01/09/2016,Air fares ,Middle East and North Africa Division ,Corporate Travel Provider ,100146-101 ,503.06,
DFID,DFID,01/09/2016,Air fares ,West and Southern Africa ,Supplier Name withheld ,100152-116 ,"1,209.95",
DFID,DFID,01/09/2016,Hotels - Accommodation only ,Communications Division ,Corporate Travel Provider ,100177-101 ,"3,790.75",
DFID,DFID,01/09/2016,Air fares ,Communications Division ,Corporate Travel Provider ,100177-101 ,543.85,
DFID,DFID,01/09/2016,Air fares ,Policy Division ,Corporate Travel Provider ,100191-101 ,723.15,
DFID,DFID,01/09/2016,Air fares ,Policy Division ,Corporate Travel Provider ,100191-101 ,723.15,
DFID,DFID,20/09/2016,Hotels - Accommodation only ,Policy Division ,Foreign & Commonwealth Office ,100191-101 ,"5,691.87",
DFID,DFID,01/09/2016,Air fares ,Policy Division ,Corporate Travel Provider ,100191-101 ,543.82,
DFID,DFID,01/09/2016,Air fares ,Communications Division ,Corporate Travel Provider ,100197-101 ,587.95,
DFID,DFID,01/09/2016,Air fares ,Communications Division ,Corporate Travel Provider ,100197-101 ,"1,422.35",
DFID,DFID,01/09/2016,Air fares ,Communications Division ,Corporate Travel Provider ,100197-101 ,809.30,
DFID,DFID,01/09/2016,Air fares ,East and Central Africa ,Corporate Travel Provider ,100227-101 ,690.45,
DFID,DFID,01/09/2016,Air fares ,Top Management Group ,Corporate Travel Provider ,100232-102 ,"2,956.65",
DFID,DFID,01/09/2016,Air fares ,Top Management Group ,Corporate Travel Provider ,100232-102 ,"2,956.65",
DFID,DFID,01/09/2016,Air fares ,Top Management Group ,Corporate Travel Provider ,100232-102 ,"1,340.70",
DFID,DFID,01/09/2016,Air fares ,Top Management Group ,Corporate Travel Provider ,100232-102 ,"1,340.70",
DFID,DFID,01/09/2016,Air fares ,Top Management Group ,Corporate Travel Provider ,100232-104 ,"3,208.20",
DFID,DFID,01/09/2016,Air fares ,Top Management Group ,Corporate Travel Provider ,100232-104 ,"3,208.20",
DFID,DFID,01/09/2016,Air fares ,Top Management Group ,Corporate Travel Provider ,100232-104 ,"1,996.95",
DFID,DFID,01/09/2016,Air fares ,Top Management Group ,Corporate Travel Provider ,100232-104 ,"1,996.95",
DFID,DFID,01/09/2016,Hotels - Accommodation only ,Top Management Group ,Corporate Travel Provider ,100232-105 ,772.86,
DFID,DFID,01/09/2016,Air fares ,Top Management Group ,Corporate Travel Provider ,100232-105 ,"1,620.45",
DFID,DFID,01/09/2016,Air fares ,Top Management Group ,Corporate Travel Provider ,100232-105 ,"3,074.65",
DFID,DFID,01/09/2016,Air fares ,Top Management Group ,Corporate Travel Provider ,100232-105 ,"1,723.45",
DFID,DFID,01/09/2016,Air fares ,Top Management Group ,Corporate Travel Provider ,100232-105 ,"1,829.30",
DFID,DFID,01/09/2016,Air fares ,Top Management Group ,Corporate Travel Provider ,100232-105 ,"2,218.65",
DFID,DFID,01/09/2016,Air fares ,Top Management Group ,Corporate Travel Provider ,100232-106 ,"1,863.65",
DFID,DFID,01/09/2016,Air fares ,Top Management Group ,Corporate Travel Provider ,100232-106 ,581.40,
DFID,DFID,01/09/2016,Air fares ,Top Management Group ,Corporate Travel Provider ,100232-106 ,"1,974.80",
DFID,DFID,01/09/2016,Air fares ,Top Management Group ,Corporate Travel Provider ,100232-106 ,"1,863.65",
DFID,DFID,01/09/2016,Air fares ,Top Management Group ,Corporate Travel Provider ,100232-106 ,581.40,
DFID,DFID,01/09/2016,Air fares ,Top Management Group ,Corporate Travel Provider ,100232-106 ,"1,974.80",
DFID,DFID,01/09/2016,Other passenger transport ,Top Management Group ,Corporate Travel Provider ,100232-106 ,600.00,
DFID,DFID,01/09/2016,Air fares ,Asia  Caribbean and Overseas Territories ,Corporate Travel Provider ,100084-101 ,887.15,
DFID,DFID,01/09/2016,Air fares ,Research and Evidence Division ,Corporate Travel Provider ,100088-101 ,749.82,
DFID,DFID,01/09/2016,Air fares ,Research and Evidence Division ,Corporate Travel Provider ,100088-101 ,521.07,
DFID,DFID,01/09/2016,Project delivery costs – supplier services ,Research and Evidence Division ,The European Evaluation Society ,100088-101 ,"1,034.49",
DFID,DFID,01/09/2016,Air fares ,Global Funds ,Corporate Travel Provider ,100098-101 ,975.45,
DFID,DFID,01/09/2016,Air fares ,Global Funds ,Corporate Travel Provider ,100098-101 ,"1,446.76",
DFID,DFID,01/09/2016,Air fares ,Global Funds ,Corporate Travel Provider ,100098-101 ,975.45,
DFID,DFID,01/09/2016,Air fares ,Global Funds ,Corporate Travel Provider ,100098-101 ,"1,829.85",
DFID,DFID,01/09/2016,Air fares ,Global Funds ,Corporate Travel Provider ,100098-101 ,975.45,
DFID,DFID,01/09/2016,Air fares ,Top Management Group ,Corporate Travel Provider ,100232-107 ,"4,214.55",
DFID,DFID,01/09/2016,Air fares ,Top Management Group ,Corporate Travel Provider ,100232-108 ,"2,142.15",
DFID,DFID,01/09/2016,Air fares ,Top Management Group ,Corporate Travel Provider ,100232-108 ,"2,889.55",
DFID,DFID,01/09/2016,Air fares ,Top Management Group ,Corporate Travel Provider ,100232-108 ,"2,889.55",
DFID,DFID,01/09/2016,Air fares ,Top Management Group ,Corporate Travel Provider ,100232-108 ,"1,616.15",
DFID,DFID,01/09/2016,other information and communication technologies ,Communications Division ,Samsung,100154-101 ,688.99,
DFID,DFID,30/09/2016,other information and communication technologies ,Communications Division ,WP Engine,100154-101 ,540.08,
DFID,DFID,01/09/2016,other information and communication technologies ,Communications Division ,WP Engine,100154-101 ,534.66,
DFID,DFID,01/09/2016,Air fares ,Policy Division ,Corporate Travel Provider ,100275-101 ,814.21,
DFID,DFID,01/09/2016,Air fares ,Policy Division ,Corporate Travel Provider ,100275-111 ,"1,139.13",
DFID,DFID,01/09/2016,Air fares ,Economic Development Division ,Corporate Travel Provider ,100276-101 ,844.85,
DFID,DFID,01/09/2016,Air fares ,Economic Development Division ,Corporate Travel Provider ,100276-101 ,543.85,
DFID,DFID,01/09/2016,Hotels - Accommodation only ,Economic Development Division ,Corporate Travel Provider ,100276-101 ,"2,165.51",
DFID,DFID,01/09/2016,Air fares ,Economic Development Division ,Corporate Travel Provider ,100276-101 ,510.51,
DFID,DFID,01/09/2016,Air fares ,Economic Development Division ,Corporate Travel Provider ,100276-101 ,"1,724.72",
DFID,DFID,01/09/2016,Hotels - Accommodation only ,Policy Division ,Corporate Travel Provider ,100277-101 ,669.36,
DFID,DFID,01/09/2016,Air fares ,Policy Division ,Corporate Travel Provider ,100277-101 ,"4,716.70",
DFID,DFID,01/09/2016,Hotels - Accommodation only ,Policy Division ,AirBnB.co,100277-101 ,697.00,
DFID,DFID,01/09/2016,Air fares ,Policy Division ,Corporate Travel Provider ,100277-101 ,778.15,
DFID,DFID,01/09/2016,Hotels - Accommodation only ,Policy Division ,AirBnB.co,100277-101 ,674.00,
DFID,DFID,01/09/2016,Air fares ,Asia  Caribbean and Overseas Territories ,Corporate Travel Provider ,101601-110 ,"1,395.88",
DFID,DFID,01/09/2016,Air fares ,Asia  Caribbean and Overseas Territories ,Corporate Travel Provider ,101601-110 ,"1,483.55",
DFID,DFID,01/09/2016,Air fares ,Asia  Caribbean and Overseas Territories ,Corporate Travel Provider ,101601-110 ,681.50,
DFID,DFID,01/09/2016,Air fares ,Asia  Caribbean and Overseas Territories ,Corporate Travel Provider ,101601-110 ,678.80,
DFID,DFID,01/09/2016,Air fares ,Asia  Caribbean and Overseas Territories ,Corporate Travel Provider ,101601-110 ,512.58,
DFID,DFID,07/09/2016,Other passenger transport ,Asia  Caribbean and Overseas Territories ,Foreign & Commonwealth Office ,101601-110 ,"1,066.75",
DFID,DFID,01/09/2016,Air fares ,Asia  Caribbean and Overseas Territories ,Foreign & Commonwealth Office ,101601-110 ,"1,121.94",
DFID,DFID,01/09/2016,Contract Catering Services,Asia  Caribbean and Overseas Territories ,Foreign & Commonwealth Office ,101601-110 ,"1,890.51",
DFID,DFID,01/09/2016,Air fares ,Asia  Caribbean and Overseas Territories ,Corporate Travel Provider ,101601-110 ,"1,040.01",
DFID,DFID,01/09/2016,Medical/Health Services ,Asia  Caribbean and Overseas Territories ,Foreign & Commonwealth Office ,101603-101 ,"1,542.30",
DFID,DFID,01/09/2016,Medical/Health Services ,Asia  Caribbean and Overseas Territories ,Foreign & Commonwealth Office ,101603-101 ,"9,232.84",
DFID,DFID,01/09/2016,Air fares ,Asia  Caribbean and Overseas Territories ,Corporate Travel Provider ,101603-101 ,"1,133.05",
DFID,DFID,01/09/2016,Hotels - Accommodation only ,Asia  Caribbean and Overseas Territories ,Corporate Travel Provider ,101603-101 ,525.00,
DFID,DFID,05/09/2016,Hotels - Accommodation only ,Asia  Caribbean and Overseas Territories ,Foreign & Commonwealth Office ,101604-101 ,987.72,
DFID,DFID,05/09/2016,Air fares ,Asia  Caribbean and Overseas Territories ,Foreign & Commonwealth Office ,101604-101 ,"1,354.81",
DFID,DFID,05/09/2016,Air fares ,Asia  Caribbean and Overseas Territories ,Foreign & Commonwealth Office ,101604-101 ,543.07,
DFID,DFID,01/09/2016,Air fares ,Asia  Caribbean and Overseas Territories ,Corporate Travel Provider ,101604-101 ,865.15,
DFID,DFID,27/09/2016,Hotels - Accommodation only ,Asia  Caribbean and Overseas Territories ,Foreign & Commonwealth Office ,101605-101 ,"1,182.71",
DFID,DFID,01/09/2016,Recruitment costs ,Asia  Caribbean and Overseas Territories ,Foreign & Commonwealth Office ,101605-101 ,643.32,
DFID,DFID,01/09/2016,Travel documentation costs ,Asia  Caribbean and Overseas Territories ,Foreign & Commonwealth Office ,101605-101 ,862.14,
DFID,DFID,01/09/2016,Air fares ,East and Central Africa ,Corporate Travel Provider ,101612-101 ,520.77,
DFID,DFID,07/09/2016,Training - Travel & Subsistence ,East and Central Africa ,Foreign & Commonwealth Office ,101612-101 ,"1,289.76",
DFID,DFID,07/09/2016,Telephone Usage & services ,East and Central Africa ,Foreign & Commonwealth Office ,101612-101 ,"1,734.73",
DFID,DFID,07/09/2016,Telephone Usage & services ,East and Central Africa ,Foreign & Commonwealth Office ,101612-101 ,"2,204.89",
DFID,DFID,07/09/2016,Air fares ,East and Central Africa ,Foreign & Commonwealth Office ,101612-101 ,653.39,
DFID,DFID,01/09/2016,Air fares ,East and Central Africa ,Foreign & Commonwealth Office ,101612-101 ,"1,906.28",
DFID,DFID,01/09/2016,Air fares ,East and Central Africa ,Foreign & Commonwealth Office ,101612-101 ,"1,814.91",
DFID,DFID,01/09/2016,Air fares ,East and Central Africa ,Foreign & Commonwealth Office ,101612-101 ,"2,113.15",
DFID,DFID,01/09/2016,Air fares ,East and Central Africa ,Foreign & Commonwealth Office ,101612-101 ,"2,113.16",
DFID,DFID,01/09/2016,Air fares ,East and Central Africa ,Foreign & Commonwealth Office ,101612-101 ,974.35,
DFID,DFID,01/09/2016,Air fares ,East and Central Africa ,Foreign & Commonwealth Office ,101612-101 ,"1,814.91",
DFID,DFID,01/09/2016,Air fares ,East and Central Africa ,Foreign & Commonwealth Office ,101612-101 ,"2,263.19",
DFID,DFID,01/09/2016,Air fares ,East and Central Africa ,Foreign & Commonwealth Office ,101612-101 ,831.53,
DFID,DFID,07/09/2016,Hotels - Accommodation only ,East and Central Africa ,Foreign & Commonwealth Office ,101612-101 ,634.95,
DFID,DFID,07/09/2016,Air fares ,East and Central Africa ,Foreign & Commonwealth Office ,101612-101 ,728.05,
DFID,DFID,07/09/2016,Air fares ,East and Central Africa ,Foreign & Commonwealth Office ,101612-101 ,967.00,
DFID,DFID,01/09/2016,Medical/Health Services ,East and Central Africa ,Foreign & Commonwealth Office ,101612-101 ,529.82,
DFID,DFID,01/09/2016,Air fares ,East and Central Africa ,Corporate Travel Provider ,101612-101 ,"1,144.67",
DFID,DFID,07/09/2016,Air fares ,West and Southern Africa ,Foreign & Commonwealth Office ,101610-101 ,"3,505.03",
DFID,DFID,07/09/2016,Air fares ,West and Southern Africa ,Foreign & Commonwealth Office ,101610-101 ,"3,200.24",
DFID,DFID,01/09/2016,Air fares ,West and Southern Africa ,Corporate Travel Provider ,101610-101 ,"1,581.81",
DFID,DFID,01/09/2016,Air fares ,West and Southern Africa ,Corporate Travel Provider ,101610-101 ,694.15,
DFID,DFID,01/09/2016,Air fares ,West and Southern Africa ,Foreign & Commonwealth Office ,101618-101 ,616.43,
DFID,DFID,01/09/2016,Air fares ,West and Southern Africa ,Foreign & Commonwealth Office ,101618-101 ,616.43,
DFID,DFID,01/09/2016,Air fares ,West and Southern Africa ,Corporate Travel Provider ,101618-101 ,711.45,
DFID,DFID,01/09/2016,Air fares ,West and Southern Africa ,Corporate Travel Provider ,101618-101 ,"1,648.45",
DFID,DFID,01/09/2016,Air fares ,West and Southern Africa ,Corporate Travel Provider ,101618-101 ,"1,126.55",
DFID,DFID,01/09/2016,Air fares ,West and Southern Africa ,Corporate Travel Provider ,101618-101 ,708.15,
DFID,DFID,01/09/2016,Air fares ,West and Southern Africa ,Corporate Travel Provider ,101618-101 ,"1,054.80",
DFID,DFID,01/09/2016,Hotels - Accommodation only ,Middle East and North Africa Division ,Corporate Travel Provider ,101619-101 ,718.57,
DFID,DFID,01/09/2016,Air fares ,Middle East and North Africa Division ,Corporate Travel Provider ,101619-101 ,670.25,
DFID,DFID,01/09/2016,Air fares ,Middle East and North Africa Division ,Corporate Travel Provider ,101619-101 ,622.05,
DFID,DFID,01/09/2016,Air fares ,Middle East and North Africa Division ,Corporate Travel Provider ,101619-101 ,"1,775.85",
DFID,DFID,01/09/2016,Air fares ,West and Southern Africa ,Corporate Travel Provider ,101620-101 ,592.00,
DFID,DFID,01/09/2016,Air fares ,West and Southern Africa ,Corporate Travel Provider ,101620-101 ,966.80,
DFID,DFID,01/09/2016,Hotels - Accommodation only ,West and Southern Africa ,Corporate Travel Provider ,101620-101 ,639.04,
DFID,DFID,01/09/2016,Air fares ,West and Southern Africa ,Corporate Travel Provider ,101620-101 ,750.65,
DFID,DFID,27/09/2016,Water charges,East and Central Africa ,Foreign & Commonwealth Office ,100082-101 ,"1,999.96",
DFID,DFID,30/09/2016,Training - Course Fees ,Finance and Corporate Performance Division ,BPP Professional Development ,100008-101 ,"1,198.80",
DFID,DFID,01/09/2016,Training - Course Fees ,Finance and Corporate Performance Division ,Perason Vue E Animation,100008-104 ,882.16,
DFID,DFID,30/09/2016,Conferences  Seminars & Meeting/Event Resource ,Finance and Corporate Performance Division ,The Grosvenor Hotel � London ,100201-101 ,633.60,
DFID,DFID,01/09/2016,Air fares ,International Relations Division ,Corporate Travel Provider ,100236-101 ,728.55,
DFID,DFID,01/09/2016,Air fares ,International Relations Division ,Corporate Travel Provider ,100240-101 ,746.29,
DFID,DFID,01/09/2016,Air fares ,International Relations Division ,Corporate Travel Provider ,100240-101 ,833.53,
DFID,DFID,20/09/2016,Medical/Health Services ,Human Resources ,Foreign & Commonwealth Office ,100266-108 ,"2,773.94",
DFID,DFID,01/09/2016,Hotels - Accommodation only ,Policy Division ,Corporate Travel Provider ,100274-111 ,902.37,
DFID,DFID,01/09/2016,Air fares ,Policy Division ,Corporate Travel Provider ,100274-111 ,817.37,
DFID,DFID,01/09/2016,Air fares ,Policy Division ,Corporate Travel Provider ,100274-111 ,711.55,
DFID,DFID,01/09/2016,Air fares ,West and Southern Africa ,Corporate Travel Provider ,101613-101 ,"1,048.91",
DFID,DFID,01/09/2016,Air fares ,West and Southern Africa ,Corporate Travel Provider ,101613-101 ,"1,048.91",
DFID,DFID,01/09/2016,Air fares ,West and Southern Africa ,Corporate Travel Provider ,101620-102 ,701.81,
DFID,DFID,01/09/2016,Air fares ,West and Southern Africa ,Corporate Travel Provider ,101620-102 ,848.35,
DFID,DFID,01/09/2016,Air fares ,West and Southern Africa ,Corporate Travel Provider ,101620-102 ,902.06,
DFID,DFID,01/09/2016,Hotels - Accommodation only ,Asia  Caribbean and Overseas Territories ,Corporate Travel Provider ,101621-108 ,840.00,
DFID,DFID,01/09/2016,Air fares ,Asia  Caribbean and Overseas Territories ,Corporate Travel Provider ,101621-108 ,697.95,
DFID,DFID,01/09/2016,Air fares ,Asia  Caribbean and Overseas Territories ,Corporate Travel Provider ,101621-108 ,646.85,
DFID,DFID,01/09/2016,Air fares ,West and Southern Africa ,Supplier Name withheld ,101622-105 ,920.31,
DFID,DFID,01/09/2016,Air fares ,West and Southern Africa ,Supplier Name withheld ,101622-105 ,967.65,
DFID,DFID,01/09/2016,Air fares ,West and Southern Africa ,Supplier Name withheld ,101622-105 ,560.40,
DFID,DFID,01/09/2016,Air fares ,West and Southern Africa ,Supplier Name withheld ,101622-105 ,"1,266.25",
DFID,DFID,01/09/2016,Air fares ,West and Southern Africa ,Supplier Name withheld ,101622-106 ,745.55,
DFID,DFID,01/09/2016,Air fares ,West and Southern Africa ,Supplier Name withheld ,101622-106 ,"1,373.95",
DFID,DFID,01/09/2016,Air fares ,West and Southern Africa ,Supplier Name withheld ,101622-106 ,"1,005.32",
DFID,DFID,01/09/2016,Air fares ,West and Southern Africa ,Supplier Name withheld ,101622-106 ,"1,198.55",
DFID,DFID,01/09/2016,Air fares ,West and Southern Africa ,Supplier Name withheld ,101622-106 ,790.55,
DFID,DFID,01/09/2016,Air fares ,Asia  Caribbean and Overseas Territories ,Corporate Travel Provider ,101624-101 ,894.81,
DFID,DFID,01/09/2016,Air fares ,Asia  Caribbean and Overseas Territories ,Corporate Travel Provider ,101624-101 ,747.75,
DFID,DFID,01/09/2016,Air fares ,East and Central Africa ,Corporate Travel Provider ,101625-102 ,"1,202.45",
DFID,DFID,01/09/2016,Air fares ,East and Central Africa ,Corporate Travel Provider ,101625-102 ,"1,203.15",
DFID,DFID,01/09/2016,Air fares ,East and Central Africa ,Corporate Travel Provider ,101625-104 ,832.85,
DFID,DFID,01/09/2016,Air fares ,East and Central Africa ,Corporate Travel Provider ,101625-108 ,896.75,
DFID,DFID,01/09/2016,Hotels - Accommodation only ,East and Central Africa ,Corporate Travel Provider ,101625-108 ,623.12,
DFID,DFID,01/09/2016,Air fares ,East and Central Africa ,Corporate Travel Provider ,101625-108 ,845.45,
DFID,DFID,01/09/2016,Hotels - Accommodation only ,East and Central Africa ,Corporate Travel Provider ,101625-108 ,620.77,
DFID,DFID,01/09/2016,Air fares ,West and Southern Africa ,Corporate Travel Provider ,101629-101 ,806.21,
DFID,DFID,01/09/2016,Air fares ,West and Southern Africa ,Corporate Travel Provider ,101629-101 ,926.62,
DFID,DFID,01/09/2016,Air fares ,West and Southern Africa ,Corporate Travel Provider ,101629-101 ,667.67,
DFID,DFID,01/09/2016,Air fares ,West and Southern Africa ,Corporate Travel Provider ,101629-101 ,926.62,
DFID,DFID,01/09/2016,Air fares ,West and Southern Africa ,Corporate Travel Provider ,101629-101 ,698.95,
DFID,DFID,01/09/2016,Air fares ,West and Southern Africa ,Corporate Travel Provider ,101629-101 ,"1,503.81",
DFID,DFID,01/09/2016,Air fares ,West and Southern Africa ,Corporate Travel Provider ,101629-101 ,"1,484.71",
DFID,DFID,01/09/2016,Air fares ,West and Southern Africa ,Corporate Travel Provider ,101629-101 ,"1,721.03",
DFID,DFID,01/09/2016,Air fares ,West and Southern Africa ,Corporate Travel Provider ,101629-101 ,"1,721.03",
DFID,DFID,01/09/2016,Air fares ,West and Southern Africa ,Corporate Travel Provider ,101629-101 ,"1,082.41",
DFID,DFID,01/09/2016,Secure Staff Accommodation ,West and Southern Africa ,Foreign & Commonwealth Office ,101629-101 ,"2,805.80",
DFID,DFID,01/09/2016,Furniture & Fittings ,West and Southern Africa ,Foreign & Commonwealth Office ,101629-101 ,"2,770.00",
DFID,DFID,01/09/2016,Furniture & Fittings ,West and Southern Africa ,Foreign & Commonwealth Office ,101629-101 ,"5,343.00",
DFID,DFID,09/09/2016,Contract & Agency Staff ,Finance and Corporate Performance Division ,HUDSON GLOBAL RESOURCES LTD ,100201-101 ,"4,749.36",
DFID,DFID,01/09/2016,Furniture & Fittings ,West and Southern Africa ,Foreign & Commonwealth Office ,101629-101 ,"3,856.56",
DFID,DFID,01/09/2016,Furniture & Fittings ,West and Southern Africa ,Foreign & Commonwealth Office ,101629-101 ,"1,966.56",
DFID,DFID,01/09/2016,Furniture & Fittings ,West and Southern Africa ,Foreign & Commonwealth Office ,101629-101 ,"2,806.34",
DFID,DFID,01/09/2016,Furniture & Fittings ,West and Southern Africa ,Foreign & Commonwealth Office ,101629-101 ,"3,086.34",
DFID,DFID,01/09/2016,Air fares ,East and Central Africa ,Corporate Travel Provider ,101635-101 ,"1,004.72",
DFID,DFID,01/09/2016,Air fares ,East and Central Africa ,Corporate Travel Provider ,101635-101 ,"1,170.60",
DFID,DFID,01/09/2016,Air fares ,East and Central Africa ,Corporate Travel Provider ,101635-101 ,893.41,
DFID,DFID,01/09/2016,Air fares ,West and Southern Africa ,Corporate Travel Provider ,101638-101 ,"1,679.45",
DFID,DFID,01/09/2016,Air fares ,West and Southern Africa ,Corporate Travel Provider ,101638-101 ,999.02,
DFID,DFID,01/09/2016,Project delivery costs – supplier services ,West and Southern Africa ,Foreign & Commonwealth Office ,104229-101 ,"1,585.68",
DFID,DFID,01/09/2016,Project delivery costs – supplier services ,West and Southern Africa ,Foreign & Commonwealth Office ,104229-101 ,"1,453.89",
DFID,DFID,01/09/2016,Project delivery costs – supplier services ,West and Southern Africa ,Foreign & Commonwealth Office ,104229-101 ,"3,858.26",
DFID,DFID,01/09/2016,Project delivery costs – supplier services ,West and Southern Africa ,Foreign & Commonwealth Office ,104229-101 ,"1,758.89",
DFID,DFID,01/09/2016,Project delivery costs – supplier services ,West and Southern Africa ,Foreign & Commonwealth Office ,104229-101 ,"2,357.13",
DFID,DFID,01/09/2016,Project delivery costs – supplier services ,West and Southern Africa ,Foreign & Commonwealth Office ,104229-101 ,"1,901.61",
DFID,DFID,05/09/2016,Other travel costs ,Asia  Caribbean and Overseas Territories ,Foreign & Commonwealth Office ,114450-101 ,648.17,
DFID,DFID,20/09/2016,Research and development costs - supplier services ,Asia  Caribbean and Overseas Territories ,Foreign & Commonwealth Office ,114450-101 ,"1,998.93",
DFID,DFID,01/09/2016,Medical/Health Services ,Business Solutions Division Level ,Foreign & Commonwealth Office ,200001-101 ,"1,135.99",
DFID,DFID,01/09/2016,Computer Consumables ,Business Solutions Division Level , XMA Ltd ,200001-101 ,"1,726.20",
DFID,DFID,30/09/2016,Hardware - servers & storage ,Business Solutions Division Level ,MISCO Ltd ,200001-101 ,"2,189.87",
DFID,DFID,30/09/2016,Hardware - desktop PCs ,Business Solutions Division Level ,CDW Ltd ,200001-101 ,"1,096.80",
DFID,DFID,01/09/2016,Hardware -monitors ,Business Solutions Division Level ,Software BOX PLC ,200001-101 ,"1,549.41",
DFID,DFID,23/09/2016,Data network- remote working ,Business Solutions Division Level ,Foreign & Commonwealth Office ,200002-121 ,561.94,
DFID,DFID,01/09/2016,Computer Software Licenses ,Business Solutions Division Level , Dynamic Systems Ltd,200002-196 ,"1,872.00",
DFID,DFID,07/09/2016,Secure Staff Accommodation ,Middle East and North Africa Division ,Foreign & Commonwealth Office ,201701-101 ,"8,054.13",
DFID,DFID,07/09/2016,Secure Staff Accommodation ,Middle East and North Africa Division ,Foreign & Commonwealth Office ,201701-101 ,536.94,
DFID,DFID,01/09/2016,Hotels - Accommodation only ,Middle East and North Africa Division ,Foreign & Commonwealth Office ,201701-101 ,712.17,
DFID,DFID,01/09/2016,Air fares ,Middle East and North Africa Division ,Corporate Travel Provider ,201701-101 ,"1,558.51",
DFID,DFID,01/09/2016,Air fares ,Middle East and North Africa Division ,Corporate Travel Provider ,201701-101 ,"1,683.05",
DFID,DFID,01/09/2016,Air fares ,Middle East and North Africa Division ,Corporate Travel Provider ,201701-101 ,940.45,
DFID,DFID,01/09/2016,Air fares ,Middle East and North Africa Division ,Corporate Travel Provider ,201701-101 ,"1,204.50",
DFID,DFID,01/09/2016,Air fares ,Middle East and North Africa Division ,Corporate Travel Provider ,201701-101 ,"1,160.00",
DFID,DFID,01/09/2016,Air fares ,Middle East and North Africa Division ,Corporate Travel Provider ,201701-101 ,982.50,
DFID,DFID,01/09/2016,Air fares ,Middle East and North Africa Division ,Corporate Travel Provider ,201701-101 ,798.85,
DFID,DFID,01/09/2016,Telephone Usage & services ,Middle East and North Africa Division ,Foreign & Commonwealth Office ,201705-101 ,"2,145.22",
DFID,DFID,27/09/2016,Hotels - Accommodation only ,Middle East and North Africa Division ,Foreign & Commonwealth Office ,201705-101 ,534.47,
DFID,DFID,01/09/2016,Air fares ,International Relations Division ,Corporate Travel Provider ,201711-101 ,602.74,
DFID,DFID,27/09/2016,Project delivery costs – supplier services ,Policy Division ,Foreign & Commonwealth Office ,201724-124 ,706.44,
DFID,DFID,27/09/2016,Project delivery costs – supplier services ,Policy Division ,Foreign & Commonwealth Office ,201724-124 ,824.61,
DFID,DFID,27/09/2016,Project delivery costs – supplier services ,Policy Division ,Foreign & Commonwealth Office ,201724-124 ,"2,268.48",
DFID,DFID,07/09/2016,Travel - Subsistence ,Asia  Caribbean and Overseas Territories ,Foreign & Commonwealth Office ,201724-154 ,"1,665.12",
DFID,DFID,01/09/2016,Air fares ,Asia  Caribbean and Overseas Territories ,Corporate Travel Provider ,201724-154 ,744.35,
DFID,DFID,01/09/2016,Air fares ,Economic Development Division ,Corporate Travel Provider ,202259-101 ,994.75,
DFID,DFID,01/09/2016,Hotels - Accommodation only ,Research and Evidence Division ,Corporate Travel Provider ,202331-101 ,902.00,
DFID,DFID,01/09/2016,Hotels - Accommodation only ,Research and Evidence Division ,Corporate Travel Provider ,202348-103 ,701.00,
DFID,DFID,01/09/2016,Air fares ,Economic Development Division ,Corporate Travel Provider ,202373-101 ,517.62,
DFID,DFID,01/09/2016,Air fares ,Economic Development Division ,Corporate Travel Provider ,202373-101 ,"1,056.20",
DFID,DFID,01/09/2016,Hotels - Accommodation only ,Economic Development Division ,Corporate Travel Provider ,202373-101 ,"2,055.05",
DFID,DFID,01/09/2016,Air fares ,Economic Development Division ,Corporate Travel Provider ,202373-101 ,"1,741.13",
DFID,DFID,01/09/2016,Air fares ,Economic Development Division ,Corporate Travel Provider ,202373-101 ,"1,072.72",
DFID,DFID,01/09/2016,Hotels - Accommodation only ,Research and Evidence Division ,Corporate Travel Provider ,202392-102 ,503.65,
DFID,DFID,01/09/2016,Hotels - Accommodation only ,Research and Evidence Division ,Corporate Travel Provider ,202392-102 ,503.65,
DFID,DFID,01/09/2016,Air fares ,Research and Evidence Division ,Corporate Travel Provider ,202392-103 ,745.75,
DFID,DFID,01/09/2016,Air fares ,East and Central Africa ,Corporate Travel Provider ,101630-101 ,690.85,
DFID,DFID,01/09/2016,Air fares ,West and Southern Africa ,Corporate Travel Provider ,101631-101 ,634.77,
DFID,DFID,01/09/2016,Air fares ,West and Southern Africa ,Corporate Travel Provider ,101631-101 ,837.05,
DFID,DFID,01/09/2016,Air fares ,West and Southern Africa ,Corporate Travel Provider ,101631-101 ,703.55,
DFID,DFID,01/09/2016,Air fares ,West and Southern Africa ,Corporate Travel Provider ,101631-101 ,"1,182.05",
DFID,DFID,01/09/2016,Air fares ,West and Southern Africa ,Corporate Travel Provider ,101631-101 ,647.95,
DFID,DFID,01/09/2016,Air fares ,East and Central Africa ,Corporate Travel Provider ,101633-101 ,"1,480.42",
DFID,DFID,01/09/2016,Air fares ,East and Central Africa ,Corporate Travel Provider ,101633-101 ,"1,046.92",
DFID,DFID,01/09/2016,Air fares ,East and Central Africa ,Corporate Travel Provider ,101634-101 ,613.31,
DFID,DFID,01/09/2016,Air fares ,East and Central Africa ,Corporate Travel Provider ,101634-101 ,528.05,
DFID,DFID,01/09/2016,Air fares ,East and Central Africa ,Corporate Travel Provider ,101634-101 ,585.67,
DFID,DFID,01/09/2016,Air fares ,Research and Evidence Division ,Corporate Travel Provider ,202392-104 ,735.25,
DFID,DFID,01/09/2016,Air fares ,Research and Evidence Division ,Corporate Travel Provider ,202392-104 ,735.25,
DFID,DFID,01/09/2016,Air fares ,Research and Evidence Division ,Corporate Travel Provider ,202392-107 ,901.65,
DFID,DFID,01/09/2016,Air fares ,Research and Evidence Division ,Corporate Travel Provider ,202392-107 ,817.70,
DFID,DFID,01/09/2016,Hotels - Accommodation only ,Research and Evidence Division ,Corporate Travel Provider ,202392-109 ,648.50,
DFID,DFID,01/09/2016,Air fares ,Research and Evidence Division ,Corporate Travel Provider ,203874-102 ,826.02,
DFID,DFID,01/09/2016,Air fares ,Research and Evidence Division ,Corporate Travel Provider ,203874-103 ,614.42,
DFID,DFID,01/09/2016,Aid Programme - Joint programme contribution ,East and Central Africa ,Foreign & Commonwealth Office ,203961-104 ,"3,929.87",
DFID,DFID,01/09/2016,Aid Programme - Joint programme contribution ,East and Central Africa ,Foreign & Commonwealth Office ,203961-104 ,"3,956.41",
DFID,DFID,01/09/2016,Air fares ,East and Central Africa ,Foreign & Commonwealth Office ,203986-104 ,610.99,
DFID,DFID,01/09/2016,Air fares ,East and Central Africa ,Foreign & Commonwealth Office ,203986-104 ,610.99,
DFID,DFID,01/09/2016,Air fares ,East and Central Africa ,Foreign & Commonwealth Office ,203986-104 ,610.99,
DFID,DFID,01/09/2016,Air fares ,East and Central Africa ,Foreign & Commonwealth Office ,203986-104 ,610.99,
DFID,DFID,01/09/2016,Air fares ,East and Central Africa ,Foreign & Commonwealth Office ,203986-104 ,731.00,
DFID,DFID,01/09/2016,Air fares ,East and Central Africa ,Foreign & Commonwealth Office ,203986-104 ,731.00,
DFID,DFID,01/09/2016,Air fares ,East and Central Africa ,Foreign & Commonwealth Office ,203986-104 ,610.99,
DFID,DFID,01/09/2016,Air fares ,East and Central Africa ,Foreign & Commonwealth Office ,203986-104 ,610.99,
DFID,DFID,01/09/2016,Air fares ,East and Central Africa ,Foreign & Commonwealth Office ,203986-104 ,610.99,
DFID,DFID,01/09/2016,Air fares ,East and Central Africa ,Foreign & Commonwealth Office ,203986-104 ,610.99,
DFID,DFID,07/09/2016,Hotels - Accommodation only ,Middle East and North Africa Division ,Foreign & Commonwealth Office ,204055-101 ,587.76,
DFID,DFID,20/09/2016,Travel - Subsistence ,Middle East and North Africa Division ,Foreign & Commonwealth Office ,204055-101 ,"3,077.00",
DFID,DFID,20/09/2016,Travel - Subsistence ,Middle East and North Africa Division ,Foreign & Commonwealth Office ,204055-101 ,"3,306.50",
DFID,DFID,01/09/2016,Air fares ,Middle East and North Africa Division ,Corporate Travel Provider ,204055-101 ,760.13,
DFID,DFID,01/09/2016,Air fares ,Middle East and North Africa Division ,Corporate Travel Provider ,204055-101 ,648.25,
DFID,DFID,01/09/2016,Air fares ,Middle East and North Africa Division ,Corporate Travel Provider ,204055-101 ,509.31,
DFID,DFID,01/09/2016,Air fares ,Middle East and North Africa Division ,Corporate Travel Provider ,204084-101 ,563.45,
DFID,DFID,30/09/2016,Hotels - Accommodation only ,Middle East and North Africa Division ,HGU Hotel,204084-101 ,783.49,
DFID,DFID,01/09/2016,Air fares ,Middle East and North Africa Division ,Corporate Travel Provider ,204084-101 ,543.15,
DFID,DFID,01/09/2016,Air fares ,Middle East and North Africa Division ,Corporate Travel Provider ,204084-101 ,543.15,
DFID,DFID,01/09/2016,Air fares ,Middle East and North Africa Division ,Corporate Travel Provider ,204084-101 ,563.55,
DFID,DFID,01/09/2016,Air fares ,Middle East and North Africa Division ,Corporate Travel Provider ,204084-101 ,543.15,
DFID,DFID,01/09/2016,Air fares ,Economic Development Division ,Corporate Travel Provider ,204250-104 ,774.08,
DFID,DFID,01/09/2016,Air fares ,Economic Development Division ,Corporate Travel Provider ,204250-104 ,574.25,
DFID,DFID,01/09/2016,Air fares ,Economic Development Division ,Corporate Travel Provider ,204250-104 ,774.08,
DFID,DFID,01/09/2016,Air fares ,Economic Development Division ,Corporate Travel Provider ,204250-104 ,574.25,
DFID,DFID,01/09/2016,Air fares ,East and Central Africa ,Corporate Travel Provider ,204290-105 ,525.15,
DFID,DFID,01/09/2016,Air fares ,East and Central Africa ,Corporate Travel Provider ,204290-105 ,525.15,
DFID,DFID,01/09/2016,Hotels - Accommodation only ,East and Central Africa ,Corporate Travel Provider ,204334-102 ,932.55,
DFID,DFID,01/09/2016,Hotels - Accommodation only ,East and Central Africa ,Corporate Travel Provider ,204334-102 ,902.07,
DFID,DFID,01/09/2016,Air fares ,West and Southern Africa ,Corporate Travel Provider ,204497-104 ,805.15,
DFID,DFID,01/09/2016,Air fares ,Economic Development Division ,Corporate Travel Provider ,204686-101 ,888.85,
DFID,DFID,01/09/2016,Air fares ,Asia  Caribbean and Overseas Territories ,Corporate Travel Provider ,202403-101 ,"1,416.95",
DFID,DFID,01/09/2016,Air fares ,Asia  Caribbean and Overseas Territories ,Corporate Travel Provider ,202403-101 ,"1,416.95",
DFID,DFID,01/09/2016,Air fares ,Conflict  Humanitarian  Security & Stabilisation Division ,Corporate Travel Provider ,202410-108 ,536.75,
DFID,DFID,01/09/2016,Air fares ,Policy Division ,Corporate Travel Provider ,202419-101 ,"1,024.35",
DFID,DFID,01/09/2016,Air fares ,Policy Division ,Corporate Travel Provider ,202419-101 ,755.05,
DFID,DFID,01/09/2016,Air fares ,Policy Division ,Corporate Travel Provider ,202419-101 ,658.57,
DFID,DFID,01/09/2016,Air fares ,Policy Division ,Corporate Travel Provider ,202419-101 ,"1,086.63",
DFID,DFID,30/09/2016,Conferences  Seminars & Meeting/Event Resource ,Policy Division ,Stockholm International Water Institute ,202419-101 ,506.08,
DFID,DFID,01/09/2016,Air fares ,Policy Division ,Corporate Travel Provider ,202419-101 ,"1,342.65",
DFID,DFID,01/09/2016,Hotels - Accommodation only ,Economic Development Division ,Corporate Travel Provider ,202432-101 ,546.30,
DFID,DFID,01/09/2016,Hotels - Accommodation only ,Economic Development Division ,Corporate Travel Provider ,202432-101 ,"1,206.64",
DFID,DFID,01/09/2016,Air fares ,Economic Development Division ,Corporate Travel Provider ,202432-101 ,845.45,
DFID,DFID,01/09/2016,Hotels - Accommodation only ,Finance and Corporate Performance Division ,Corporate Travel Provider ,202437-101 ,"1,860.00",
DFID,DFID,01/09/2016,Air fares ,Finance and Corporate Performance Division ,Corporate Travel Provider ,202438-101 ,691.57,
DFID,DFID,01/09/2016,Air fares ,West and Southern Africa ,Corporate Travel Provider ,202476-101 ,"1,657.61",
DFID,DFID,01/09/2016,Project delivery costs – supplier services ,East and Central Africa ,Foreign & Commonwealth Office ,202549-101 ,"1,449.09",
DFID,DFID,01/09/2016,Air fares ,East and Central Africa ,Corporate Travel Provider ,202594-101 ,888.65,
DFID,DFID,01/09/2016,Hotels - Accommodation only ,East and Central Africa ,Corporate Travel Provider ,202594-101 ,543.15,
DFID,DFID,01/09/2016,Air fares ,East and Central Africa ,Corporate Travel Provider ,202594-101 ,504.35,
DFID,DFID,01/09/2016,Air fares ,East and Central Africa ,Corporate Travel Provider ,202594-101 ,"1,429.85",
DFID,DFID,01/09/2016,Air fares ,East and Central Africa ,Corporate Travel Provider ,202594-101 ,"1,062.15",
DFID,DFID,01/09/2016,Hotels - Accommodation only ,East and Central Africa ,Corporate Travel Provider ,202594-101 ,503.40,
DFID,DFID,01/09/2016,Air fares ,East and Central Africa ,Corporate Travel Provider ,202594-101 ,"1,859.60",
DFID,DFID,01/09/2016,Air fares ,East and Central Africa ,Corporate Travel Provider ,202594-101 ,905.45,
DFID,DFID,01/09/2016,Air fares ,East and Central Africa ,Corporate Travel Provider ,202594-101 ,674.40,
DFID,DFID,01/09/2016,Air fares ,East and Central Africa ,Corporate Travel Provider ,202594-101 ,"1,197.20",
DFID,DFID,01/09/2016,Air fares ,East and Central Africa ,Corporate Travel Provider ,202594-101 ,559.77,
DFID,DFID,01/09/2016,Hotels - Accommodation only ,Finance and Corporate Performance Division ,Speedybooker.com,202836-101 ,900.00,
DFID,DFID,07/09/2016,Telephone Usage & services ,East and Central Africa ,Foreign & Commonwealth Office ,202913-104 ,"1,725.23",
DFID,DFID,01/09/2016,Air fares ,East and Central Africa ,Corporate Travel Provider ,202984-105 ,"1,236.75",
DFID,DFID,23/09/2016,Data Network - land lines ,Business Solutions Division Level ,Foreign & Commonwealth Office ,203329-102 ,"1,618.40",
DFID,DFID,07/09/2016,Hotels - Accommodation only ,Business Solutions Division Level ,Foreign & Commonwealth Office ,203329-104 ,"1,460.26",
DFID,DFID,27/09/2016,Project delivery costs – supplier services ,Asia  Caribbean and Overseas Territories ,Foreign & Commonwealth Office ,203454-104 ,"4,031.46",
DFID,DFID,01/09/2016,Project delivery costs – supplier services ,Asia  Caribbean and Overseas Territories ,Foreign & Commonwealth Office ,203454-104 ,"2,011.58",
DFID,DFID,01/09/2016,Project delivery costs – supplier services ,Asia  Caribbean and Overseas Territories ,Foreign & Commonwealth Office ,203454-104 ,"1,904.91",
DFID,DFID,01/09/2016,Air fares ,West and Southern Africa ,Corporate Travel Provider ,203627-106 ,969.11,
DFID,DFID,01/09/2016,Office Equipment - Purchases ,Group Operations ,Safelincs,203717-101 ,"1,020.00",
DFID,DFID,30/09/2016,Office Equipment - Purchases ,Group Operations ,Sitelink Communication ltd,203717-101 ,588.00,
DFID,DFID,20/09/2016,Project delivery costs – supplier services ,Conflict  Humanitarian  Security & Stabilisation Division ,Foreign & Commonwealth Office ,203815-106 ,"32,878.32",
DFID,DFID,01/09/2016,Hotels - Accommodation only ,West and Southern Africa ,Corporate Travel Provider ,204939-102 ,564.32,
DFID,DFID,01/09/2016,Air fares ,West and Southern Africa ,Corporate Travel Provider ,204939-102 ,643.40,
DFID,DFID,01/09/2016,Air fares ,Asia  Caribbean and Overseas Territories ,Corporate Travel Provider ,204952-103 ,919.55,
DFID,DFID,01/09/2016,Hotels - Accommodation only ,East and Central Africa ,Corporate Travel Provider ,204957-101 ,698.65,
DFID,DFID,01/09/2016,Hotels - Accommodation only ,East and Central Africa ,Corporate Travel Provider ,204957-101 ,728.65,
DFID,DFID,07/09/2016,Air fares ,East and Central Africa ,Foreign & Commonwealth Office ,204957-102 ,"1,093.27",
DFID,DFID,01/09/2016,Air fares ,East and Central Africa ,Foreign & Commonwealth Office ,204957-102 ,686.94,
DFID,DFID,01/09/2016,Air fares ,East and Central Africa ,Foreign & Commonwealth Office ,204957-102 ,790.75,
DFID,DFID,01/09/2016,Air fares ,Middle East and North Africa Division ,Corporate Travel Provider ,204981-101 ,533.95,
DFID,DFID,01/09/2016,Air fares ,International Relations Division ,Corporate Travel Provider ,205081-101 ,"1,159.65",
DFID,DFID,01/09/2016,Hotels - Accommodation only ,International Relations Division ,Corporate Travel Provider ,205081-101 ,559.72,
DFID,DFID,01/09/2016,Hotels - Accommodation only ,Asia  Caribbean and Overseas Territories ,Corporate Travel Provider ,205093-102 ,709.50,
DFID,DFID,01/09/2016,Air fares ,Asia  Caribbean and Overseas Territories ,Corporate Travel Provider ,205157-103 ,597.02,
DFID,DFID,01/09/2016,Air fares ,Asia  Caribbean and Overseas Territories ,Corporate Travel Provider ,205157-103 ,597.02,
DFID,DFID,05/09/2016,Training - Travel & Subsistence ,Asia  Caribbean and Overseas Territories ,Foreign & Commonwealth Office ,205157-103 ,552.65,
DFID,DFID,01/09/2016,Hotels - Accommodation only ,Conflict  Humanitarian  Security & Stabilisation Division ,Corporate Travel Provider ,205279-101 ,500.22,
DFID,DFID,01/09/2016,Hotels - Accommodation only ,Middle East and North Africa Division ,Foreign & Commonwealth Office ,300078-101 ,618.82,
DFID,DFID,01/09/2016,Hotels - Accommodation only ,Middle East and North Africa Division ,Foreign & Commonwealth Office ,300078-101 ,618.82,
DFID,DFID,01/09/2016,Hotels - Accommodation only ,Middle East and North Africa Division ,Foreign & Commonwealth Office ,300078-101 ,"1,979.78",
DFID,DFID,01/09/2016,Hotels - Accommodation only ,Middle East and North Africa Division ,Foreign & Commonwealth Office ,300078-101 ,"4,750.60",
DFID,DFID,01/09/2016,Hotels - Accommodation only ,Middle East and North Africa Division ,Foreign & Commonwealth Office ,300078-101 ,"4,750.59",
DFID,DFID,07/09/2016,Hotels - Accommodation only ,Middle East and North Africa Division ,Foreign & Commonwealth Office ,300080-101 ,930.58,
DFID,DFID,07/09/2016,Hotels - Accommodation only ,Middle East and North Africa Division ,Foreign & Commonwealth Office ,300080-101 ,775.21,
DFID,DFID,01/09/2016,Air fares ,Middle East and North Africa Division ,Corporate Travel Provider ,300080-101 ,"1,009.32",
DFID,DFID,01/09/2016,Air fares ,Asia  Caribbean and Overseas Territories ,Corporate Travel Provider ,300048-101 ,624.25,
DFID,DFID,01/09/2016,Air fares ,Research and Evidence Division ,Corporate Travel Provider ,202392-110 ,827.42,
DFID,DFID,01/09/2016,Hotels - Accommodation only ,Policy Division ,Corporate Travel Provider ,202396-101 ,"1,200.88",
DFID,DFID,01/09/2016,Air fares ,Finance and Corporate Performance Division ,Corporate Travel Provider ,204846-101 ,"1,288.75",
DFID,DFID,08/09/2016,Project delivery costs – supplier services ,West and Southern Africa ,ADAM SMITH INTERNATIONAL  LTD ,202541-106 ,"181,202.38",
DFID,DFID,30/09/2016,Project delivery costs – supplier services ,West and Southern Africa ,ADAM SMITH INTERNATIONAL  LTD ,202541-106 ,"489,824.30",
DFID,DFID,28/09/2016,Project delivery costs – supplier services ,West and Southern Africa ,ADAM SMITH INTERNATIONAL  LTD ,202539-106 ,"115,991.00",
DFID,DFID,28/09/2016,Project delivery costs – supplier services ,West and Southern Africa ,ADAM SMITH INTERNATIONAL  LTD ,202539-106 ,"128,133.23",
DFID,DFID,28/09/2016,Project delivery costs – supplier services ,West and Southern Africa ,ADAM SMITH INTERNATIONAL  LTD ,202539-106 ,"103,019.20",
DFID,DFID,01/09/2016,Project delivery costs – supplier services ,West and Southern Africa ,ADAM SMITH INTERNATIONAL  LTD ,202539-106 ,"349,507.90",
DFID,DFID,01/09/2016,Project delivery costs – supplier services ,West and Southern Africa ,ADAM SMITH INTERNATIONAL  LTD ,202539-106 ,"62,443.49",
DFID,DFID,21/09/2016,Project delivery costs – supplier services ,West and Southern Africa ,ADAM SMITH INTERNATIONAL  LTD ,204659-104 ,"191,883.45",
DFID,DFID,13/09/2016,Project delivery costs – supplier services ,East and Central Africa ,ADAM SMITH INTERNATIONAL  LTD ,205065-102 ,"72,499.00",
DFID,DFID,27/09/2016,Project delivery costs – supplier services ,West and Southern Africa ,ADAM SMITH INTERNATIONAL  LTD ,203674-103 ,"409,538.09",
DFID,DFID,27/09/2016,Project delivery costs – supplier services ,West and Southern Africa ,ADAM SMITH INTERNATIONAL  LTD ,201433-102 ,"1,763,098.17",
DFID,DFID,16/09/2016,Project delivery costs – supplier services ,West and Southern Africa ,ADAM SMITH INTERNATIONAL  LTD ,104190-102 ,"605,746.92",
DFID,DFID,30/09/2016,Project delivery costs – supplier services ,West and Southern Africa ,ADAM SMITH INTERNATIONAL  LTD ,203666-102 ,"116,258.42",
DFID,DFID,19/09/2016,Project delivery costs – supplier services ,West and Southern Africa ,ADAM SMITH INTERNATIONAL  LTD ,203666-102 ,"92,101.97",
DFID,DFID,30/09/2016,Project delivery costs – supplier services ,Asia  Caribbean and Overseas Territories ,ADAM SMITH INTERNATIONAL  LTD ,202328-102 ,"494,216.67",
DFID,DFID,08/09/2016,Project delivery costs – supplier services ,West and Southern Africa ,ADAM SMITH INTERNATIONAL  LTD ,202539-108 ,"62,512.10",
DFID,DFID,09/09/2016,Project delivery costs – supplier services ,West and Southern Africa ,ADAM SMITH INTERNATIONAL  LTD ,203161-103 ,"501,181.12",
DFID,DFID,30/09/2016,Project delivery costs – supplier services ,Asia  Caribbean and Overseas Territories ,ADAM SMITH INTERNATIONAL  LTD ,201367-103 ,"292,188.21",
DFID,DFID,15/09/2016,Project delivery costs – supplier services ,Asia  Caribbean and Overseas Territories ,ADAM SMITH INTERNATIONAL  LTD ,201367-103 ,"466,090.72",
DFID,DFID,01/09/2016,Project delivery costs – supplier services ,East and Central Africa ,ADAM SMITH INTERNATIONAL  LTD ,203153-103 ,"217,902.33",
DFID,DFID,27/09/2016,Project delivery costs – supplier services ,East and Central Africa ,ADAM SMITH INTERNATIONAL  LTD ,203153-103 ,"195,119.10",
DFID,DFID,21/09/2016,Project delivery costs – supplier services ,East and Central Africa ,ADAM SMITH INTERNATIONAL  LTD ,204456-105 ,"16,964.70",
DFID,DFID,01/09/2016,Project delivery costs – supplier services ,Middle East and North Africa Division ,ADAM SMITH INTERNATIONAL  LTD ,205048-102 ,"63,301.50",
DFID,DFID,01/09/2016,Project delivery costs – supplier services ,Middle East and North Africa Division ,ADAM SMITH INTERNATIONAL  LTD ,205048-102 ,"95,681.45",
DFID,DFID,27/09/2016,Project delivery costs – supplier services ,Middle East and North Africa Division ,ADAM SMITH INTERNATIONAL  LTD ,205048-102 ,"87,093.28",
DFID,DFID,27/09/2016,Project delivery costs – supplier services ,Middle East and North Africa Division ,ADAM SMITH INTERNATIONAL  LTD ,205048-102 ,"117,514.45",
DFID,DFID,30/09/2016,Project delivery costs – supplier services ,West and Southern Africa ,ADAM SMITH INTERNATIONAL  LTD ,203824-103 ,"138,709.28",
DFID,DFID,07/09/2016,Project delivery costs – supplier services ,Asia  Caribbean and Overseas Territories ,ADAM SMITH INTERNATIONAL  LTD ,202697-109 ,"1,219,536.00",
DFID,DFID,27/09/2016,Project delivery costs – supplier services ,West and Southern Africa ,ADAM SMITH INTERNATIONAL  LTD ,203674-102 ,"2,054.32",
DFID,DFID,27/09/2016,Project delivery costs – supplier services ,West and Southern Africa ,ADAM SMITH INTERNATIONAL  LTD ,203674-102 ,"138,984.47",
DFID,DFID,19/09/2016,Project delivery costs – supplier services ,Asia  Caribbean and Overseas Territories ,Supplier Name withheld ,202112-102 ,"115,696.69",
DFID,DFID,05/09/2016,Project delivery costs – supplier services ,Asia  Caribbean and Overseas Territories ,Supplier Name withheld ,202112-102 ,"123,204.84",
DFID,DFID,07/09/2016,Project delivery costs – supplier services ,Asia  Caribbean and Overseas Territories ,Supplier Name withheld ,203951-101 ,"22,043.58",
DFID,DFID,21/09/2016,Project delivery costs – supplier services ,Asia  Caribbean and Overseas Territories ,Supplier Name withheld ,203951-101 ,"36,100.20",
DFID,DFID,23/09/2016,Project delivery costs – supplier services ,Asia  Caribbean and Overseas Territories ,ADAM SMITH INTERNATIONAL  LTD ,203508-103 ,"108,484.00",
DFID,DFID,08/09/2016,Project delivery costs – supplier services ,West and Southern Africa ,ADAM SMITH INTERNATIONAL  LTD ,205192-102 ,"389,219.00",
DFID,DFID,21/09/2016,Project delivery costs – supplier services ,West and Southern Africa ,ADAM SMITH INTERNATIONAL  LTD ,203719-101 ,"13,848.01",
DFID,DFID,12/09/2016,Project delivery costs – supplier services ,West and Southern Africa ,ADAM SMITH INTERNATIONAL  LTD ,203719-101 ,"179,555.89",
DFID,DFID,05/09/2016,Project delivery costs – supplier services ,West and Southern Africa ,ADAM SMITH INTERNATIONAL  LTD ,203719-101 ,"234,869.30",
DFID,DFID,23/09/2016,Project delivery costs – supplier services ,West and Southern Africa ,ADAM SMITH INTERNATIONAL  LTD ,202584-106 ,"382,498.62",
DFID,DFID,12/09/2016,Project delivery costs – supplier services ,West and Southern Africa ,ADAM SMITH INTERNATIONAL  LTD ,202584-106 ,"394,554.00",
DFID,DFID,06/09/2016,Project delivery costs – supplier services ,Asia  Caribbean and Overseas Territories ,Supplier Name withheld ,204122-101 ,"971,024.00",
DFID,DFID,07/09/2016,Project delivery costs – supplier services ,Asia  Caribbean and Overseas Territories ,Supplier Name withheld ,204122-101 ,"1,116,081.00",
DFID,DFID,29/09/2016,Training - Course Fees ,Group Operations ,ADVANTAGE LEARNING LTD ,204284-101 ,995.00,
DFID,DFID,08/09/2016,Project delivery costs – supplier services ,West and Southern Africa ,BRITISH COUNCIL (UK) ,114161-101 ,"402,718.62",
DFID,DFID,27/09/2016,Project delivery costs – supplier services ,West and Southern Africa ,BRITISH COUNCIL (UK) ,114161-101 ,"257,145.91",
DFID,DFID,27/09/2016,Aid Programme - Joint programme contribution ,Research and Evidence Division ,Natural Environment Research Council ,203835-103 ,"823,750.00",
DFID,DFID,27/09/2016,Aid Programme - Joint programme contribution ,Research and Evidence Division ,Natural Environment Research Council ,201884-106 ,"650,000.00",
DFID,DFID,20/09/2016,Research and development costs - supplier services ,Research and Evidence Division ,Natural Environment Research Council ,112082-102 ,"700,000.00",
DFID,DFID,20/09/2016,Aid Programme - Joint programme contribution ,Research and Evidence Division ,Natural Environment Research Council ,203774-103 ,"500,000.00",
DFID,DFID,06/09/2016,Aid Programme - Accountable Grant Payments ,Policy Division ,Supplier Name withheld ,203559-124 ,"372,293.00",
DFID,DFID,15/09/2016,Aid Programme - Voluntary contributions ,Middle East and North Africa Division ,Supplier Name withheld ,205059-101 ,"3,000,000.00",
DFID,DFID,01/09/2016,Aid Programme - Voluntary contributions ,East and Central Africa ,Supplier Name withheld ,203768-101 ,"212,081.00",
DFID,DFID,21/09/2016,Data Network - land lines ,Business Solutions Division Level ,BT BACS PAYMENTS ,200002-130 ,"1,582.43",
DFID,DFID,05/09/2016,Project delivery costs – supplier services ,West and Southern Africa ,BRITISH COUNCIL ,201625-101 ,"330,117.19",
DFID,DFID,19/09/2016,Project delivery costs – supplier services ,West and Southern Africa ,BRITISH COUNCIL ,201625-101 ,"372,941.37",
DFID,DFID,22/09/2016,Project delivery costs – supplier services ,Middle East and North Africa Division ,BRITISH COUNCIL ,202886-102 ,"174,004.76",
DFID,DFID,12/09/2016,Aid Programme - Accountable Grant Payments ,West and Southern Africa ,CHRISTIAN AID ,201196-112 ,"1,058,836.20",
DFID,DFID,13/09/2016,Project delivery costs – supplier services ,Asia  Caribbean and Overseas Territories ,CHRISTIAN AID ,113311-101 ,"156,584.03",
DFID,DFID,30/09/2016,Project delivery costs – supplier services ,West and Southern Africa ,CHRISTIAN AID ,204657-102 ,"107,049.47",
DFID,DFID,29/09/2016,Project delivery costs – supplier services ,Conflict  Humanitarian  Security & Stabilisation Division ,Crown Agents. ,300042-101 ,"2,448.00",
DFID,DFID,23/09/2016,Project delivery costs – supplier services ,Conflict  Humanitarian  Security & Stabilisation Division ,Crown Agents. ,203815-106 ,"8,928.00",
DFID,DFID,22/09/2016,Project delivery costs – supplier services ,Conflict  Humanitarian  Security & Stabilisation Division ,Crown Agents. ,203815-106 ,"7,531.81",
DFID,DFID,01/09/2016,Project delivery costs – supplier services ,Middle East and North Africa Division ,Crown Agents. ,204267-101 ,"13,532.75",
DFID,DFID,01/09/2016,DFID Purchased Relief Supplies ,West and Southern Africa ,Crown Agents. ,203674-103 ,"21,817.00",
DFID,DFID,06/09/2016,DFID Purchased Relief Supplies ,West and Southern Africa ,Crown Agents. ,203674-103 ,"23,067.63",
DFID,DFID,06/09/2016,DFID Purchased Relief Supplies ,West and Southern Africa ,Crown Agents. ,203674-103 ,"1,096,466.70",
DFID,DFID,09/09/2016,DFID Purchased Relief Supplies ,West and Southern Africa ,Crown Agents. ,203674-103 ,"21,761.66",
DFID,DFID,02/09/2016,DFID Purchased Relief Supplies ,West and Southern Africa ,Crown Agents. ,203674-103 ,"85,810.77",
DFID,DFID,06/09/2016,DFID Purchased Relief Supplies ,West and Southern Africa ,Crown Agents. ,203674-103 ,"123,230.26",
DFID,DFID,14/09/2016,Fund monies to be managed and dispersed by the supplier ,East and Central Africa ,Crown Agents. ,202946-107 ,"525,929.72",
DFID,DFID,07/09/2016,Project delivery costs – supplier services ,West and Southern Africa ,Crown Agents. ,202992-102 ,"1,196.47",
DFID,DFID,07/09/2016,Medical Equipment ,West and Southern Africa ,Crown Agents. ,202992-102 ,"41,257.43",
DFID,DFID,06/09/2016,Medical Equipment ,West and Southern Africa ,Crown Agents. ,202992-102 ,"35,843.47",
DFID,DFID,06/09/2016,Project delivery costs – supplier services ,West and Southern Africa ,Crown Agents. ,202992-102 ,"1,039.46",
DFID,DFID,07/09/2016,Medical Equipment ,West and Southern Africa ,Crown Agents. ,202992-102 ,"198,046.00",
DFID,DFID,07/09/2016,Project delivery costs – supplier services ,West and Southern Africa ,Crown Agents. ,202992-102 ,"5,743.33",
DFID,DFID,27/09/2016,Project delivery costs – supplier services ,West and Southern Africa ,Crown Agents. ,202992-102 ,"7,603.05",
DFID,DFID,29/09/2016,Project delivery costs – supplier services ,West and Southern Africa ,Crown Agents. ,202992-102 ,"2,650.54",
DFID,DFID,29/09/2016,DFID Purchased Relief Supplies ,West and Southern Africa ,Crown Agents. ,202992-102 ,"91,398.01",
DFID,DFID,29/09/2016,Medicines & Drugs ,West and Southern Africa ,Crown Agents. ,202992-102 ,"5,281.47",
DFID,DFID,27/09/2016,Medicines & Drugs ,West and Southern Africa ,Crown Agents. ,202992-102 ,"11,062.53",
DFID,DFID,27/09/2016,DFID Purchased Relief Supplies ,West and Southern Africa ,Crown Agents. ,202992-102 ,"74,914.41",
DFID,DFID,27/09/2016,Project delivery costs – supplier services ,West and Southern Africa ,Crown Agents. ,202992-102 ,"2,172.52",
DFID,DFID,27/09/2016,Project delivery costs – supplier services ,West and Southern Africa ,Crown Agents. ,202992-102 ,"10,745.66",
DFID,DFID,27/09/2016,Medicines & Drugs ,West and Southern Africa ,Crown Agents. ,202992-102 ,"370,539.92",
DFID,DFID,27/09/2016,Medicines & Drugs ,West and Southern Africa ,Crown Agents. ,202992-102 ,"262,174.18",
DFID,DFID,19/09/2016,Medical Equipment ,West and Southern Africa ,Crown Agents. ,202992-102 ,"58,574.32",
DFID,DFID,19/09/2016,Project delivery costs – supplier services ,West and Southern Africa ,Crown Agents. ,202992-102 ,"1,698.66",
DFID,DFID,29/09/2016,DFID Purchased Relief Supplies ,West and Southern Africa ,Crown Agents. ,202992-102 ,"39,383.02",
DFID,DFID,29/09/2016,Project delivery costs – supplier services ,West and Southern Africa ,Crown Agents. ,202992-102 ,"1,142.11",
DFID,DFID,07/09/2016,DFID Purchased Relief Supplies ,West and Southern Africa ,Crown Agents. ,104229-102 ,"3,611.54",
DFID,DFID,07/09/2016,DFID Purchased Relief Supplies ,West and Southern Africa ,Crown Agents. ,104229-102 ,"1,216.81",
DFID,DFID,08/09/2016,DFID Purchased Relief Supplies ,West and Southern Africa ,Crown Agents. ,104229-102 ,"929,425.04",
DFID,DFID,13/09/2016,DFID Purchased Relief Supplies ,West and Southern Africa ,Crown Agents. ,104229-102 ,"15,126.66",
DFID,DFID,13/09/2016,DFID Purchased Relief Supplies ,West and Southern Africa ,Crown Agents. ,104229-102 ,"1,884.60",
DFID,DFID,13/09/2016,DFID Purchased Relief Supplies ,West and Southern Africa ,Crown Agents. ,104229-102 ,"16,041.11",
DFID,DFID,12/09/2016,DFID Purchased Relief Supplies ,West and Southern Africa ,Crown Agents. ,104229-102 ,"9,828.01",
DFID,DFID,12/09/2016,DFID Purchased Relief Supplies ,West and Southern Africa ,Crown Agents. ,104229-102 ,"11,136.84",
DFID,DFID,12/09/2016,DFID Purchased Relief Supplies ,West and Southern Africa ,Crown Agents. ,104229-102 ,"5,257.30",
DFID,DFID,12/09/2016,DFID Purchased Relief Supplies ,West and Southern Africa ,Crown Agents. ,104229-102 ,"5,257.30",
DFID,DFID,30/09/2016,Project delivery costs – supplier services ,Asia  Caribbean and Overseas Territories ,Crown Agents. ,202433-109 ,549.95,
DFID,DFID,20/09/2016,Project delivery costs – supplier services ,East and Central Africa ,Crown Agents. ,204439-103 ,"7,333.65",
DFID,DFID,21/09/2016,Project delivery costs – supplier services ,East and Central Africa ,Crown Agents. ,204439-103 ,"1,078.50",
DFID,DFID,29/09/2016,Project delivery costs – supplier services ,Asia  Caribbean and Overseas Territories ,Crown Agents. ,204792-104 ,"1,026.01",
DFID,DFID,28/09/2016,Project delivery costs – supplier services ,Asia  Caribbean and Overseas Territories ,Crown Agents. ,300250-106 ,"7,629.60",
DFID,DFID,30/09/2016,Aid Programme - Humanitarian Material Relief Assistance and Services ,Asia  Caribbean and Overseas Territories ,Crown Agents. ,204603-101 ,"6,858.00",
DFID,DFID,30/09/2016,Aid Programme - Humanitarian Material Relief Assistance and Services ,Middle East and North Africa Division ,Crown Agents. ,204516-102 ,"38,240.40",
DFID,DFID,12/09/2016,Aid Programme - Humanitarian Material Relief Assistance and Services ,Middle East and North Africa Division ,Crown Agents. ,204516-102 ,"73,824.00",
DFID,DFID,06/09/2016,Project delivery costs – supplier services ,Economic Development Division ,Crown Agents. ,203375-101 ,"120,987.05",
DFID,DFID,13/09/2016,Fund monies to be managed and dispersed by the supplier ,East and Central Africa ,Crown Agents. ,203109-112 ,"625,416.00",
DFID,DFID,06/09/2016,Fund monies to be managed and dispersed by the supplier ,East and Central Africa ,Crown Agents. ,203109-112 ,"577,303.00",
DFID,DFID,01/09/2016,Fund monies to be managed and dispersed by the supplier ,East and Central Africa ,Crown Agents. ,203109-112 ,"339,575.00",
DFID,DFID,29/09/2016,Fund monies to be managed and dispersed by the supplier ,East and Central Africa ,Crown Agents. ,203109-112 ,"786,141.00",
DFID,DFID,29/09/2016,Fund monies to be managed and dispersed by the supplier ,East and Central Africa ,Crown Agents. ,203109-112 ,"303,598.00",
DFID,DFID,27/09/2016,Fund monies to be managed and dispersed by the supplier ,East and Central Africa ,Crown Agents. ,203109-112 ,"301,307.52",
DFID,DFID,30/09/2016,Fund monies to be managed and dispersed by the supplier ,East and Central Africa ,Crown Agents. ,203109-112 ,"89,859.00",
DFID,DFID,30/09/2016,Fund monies to be managed and dispersed by the supplier ,East and Central Africa ,Crown Agents. ,203109-112 ,"691,688.00",
DFID,DFID,29/09/2016,Fund monies to be managed and dispersed by the supplier ,East and Central Africa ,Crown Agents. ,203109-112 ,"690,784.00",
DFID,DFID,07/09/2016,Fund monies to be managed and dispersed by the supplier ,East and Central Africa ,Crown Agents. ,203109-106 ,"326,096.25",
DFID,DFID,01/09/2016,Project delivery costs – supplier services ,Conflict  Humanitarian  Security & Stabilisation Division ,Crown Agents. ,300042-101 ,522.00,
DFID,DFID,05/09/2016,Project delivery costs – supplier services ,West and Southern Africa ,Crown Agents. ,300047-102 ,"14,817.60",
DFID,DFID,22/09/2016,Project delivery costs – supplier services ,West and Southern Africa ,Crown Agents. ,300047-102 ,"28,831.20",
DFID,DFID,12/09/2016,Project delivery costs – supplier services ,West and Southern Africa ,Crown Agents. ,300047-102 ,"13,892.40",
DFID,DFID,09/09/2016,Project delivery costs – supplier services ,West and Southern Africa ,Crown Agents. ,300047-102 ,"15,523.20",
DFID,DFID,15/09/2016,Project delivery costs – supplier services ,West and Southern Africa ,Crown Agents. ,300047-102 ,"9,878.40",
DFID,DFID,28/09/2016,Project delivery costs – supplier services ,West and Southern Africa ,Crown Agents. ,205161-103 ,"3,346.97",
DFID,DFID,22/09/2016,Project delivery costs – supplier services ,West and Southern Africa ,Crown Agents. ,205161-103 ,680.40,
DFID,DFID,28/09/2016,Project delivery costs – supplier services ,West and Southern Africa ,Crown Agents. ,205161-103 ,"11,770.66",
DFID,DFID,20/09/2016,Fund monies to be managed and dispersed by the supplier ,West and Southern Africa ,Crown Agents. ,202531-104 ,"62,492.37",
DFID,DFID,09/09/2016,Fund monies to be managed and dispersed by the supplier ,East and Central Africa ,Crown Agents. ,200349-102 ,"783,894.83",
DFID,DFID,30/09/2016,Project delivery costs – supplier services ,East and Central Africa ,Crown Agents. ,200349-102 ,"15,795.48",
DFID,DFID,30/09/2016,Project delivery costs – supplier services ,East and Central Africa ,Crown Agents. ,200349-102 ,"525,131.58",
DFID,DFID,27/09/2016,Project delivery costs – supplier services ,Conflict  Humanitarian  Security & Stabilisation Division ,Crown Agents. ,205141-104 ,"20,227.20",
DFID,DFID,19/09/2016,Project delivery costs – supplier services ,West and Southern Africa ,Crown Agents. ,202349-103 ,"300,000.00",
DFID,DFID,19/09/2016,Project delivery costs – supplier services ,West and Southern Africa ,Crown Agents. ,202349-103 ,"79,700.00",
DFID,DFID,20/09/2016,Project delivery costs – supplier services ,East and Central Africa ,Crown Agents. ,205256-108 ,"422,557.80",
DFID,DFID,05/09/2016,Project delivery costs – supplier services ,East and Central Africa ,Crown Agents. ,205256-108 ,"31,470.08",
DFID,DFID,05/09/2016,Project delivery costs – supplier services ,East and Central Africa ,Crown Agents. ,205256-108 ,"157,796.11",
DFID,DFID,28/09/2016,Project delivery costs – supplier services ,Policy Division ,Crown Agents. ,200706-102 ,"10,652.66",
DFID,DFID,27/09/2016,Project delivery costs – supplier services ,Policy Division ,Crown Agents. ,200706-102 ,"1,312.35",
DFID,DFID,15/09/2016,Project delivery costs – supplier services ,Policy Division ,Crown Agents. ,200706-102 ,814.57,
DFID,DFID,01/09/2016,Project delivery costs – supplier services ,Policy Division ,Crown Agents. ,200706-102 ,"12,062.37",
DFID,DFID,02/09/2016,Project delivery costs – supplier services ,Policy Division ,Crown Agents. ,200706-102 ,611.75,
DFID,DFID,30/09/2016,Project delivery costs – supplier services ,Policy Division ,Crown Agents. ,200706-102 ,604.75,
DFID,DFID,09/09/2016,Aid Programme - Humanitarian Material Relief Assistance and Services ,Middle East and North Africa Division ,Crown Agents. ,204968-103 ,"10,668.00",
DFID,DFID,15/09/2016,Aid Programme - Humanitarian Material Relief Assistance and Services ,Middle East and North Africa Division ,Crown Agents. ,204968-103 ,"2,933.00",
DFID,DFID,19/09/2016,Aid Programme - Humanitarian Material Relief Assistance and Services ,Middle East and North Africa Division ,Crown Agents. ,204968-103 ,"9,072.00",
DFID,DFID,27/09/2016,Medical Equipment ,West and Southern Africa ,Crown Agents. ,202992-102 ,"263,783.11",
DFID,DFID,27/09/2016,Medical Equipment ,West and Southern Africa ,Crown Agents. ,202992-102 ,"2,641.16",
DFID,DFID,28/09/2016,Medical Equipment ,West and Southern Africa ,Crown Agents. ,202992-102 ,"237,864.62",
DFID,DFID,29/09/2016,Project delivery costs – supplier services ,East and Central Africa ,Crown Agents. ,205064-106 ,803.50,
DFID,DFID,29/09/2016,Project delivery costs – supplier services ,East and Central Africa ,Crown Agents. ,205064-106 ,"11,430.00",
DFID,DFID,30/09/2016,Project delivery costs – supplier services ,Conflict  Humanitarian  Security & Stabilisation Division ,Crown Agents. ,203416-102 ,"5,860.09",
DFID,DFID,30/09/2016,Project delivery costs – supplier services ,Conflict  Humanitarian  Security & Stabilisation Division ,Crown Agents. ,203416-102 ,"3,173.79",
DFID,DFID,27/09/2016,Project delivery costs – supplier services ,Conflict  Humanitarian  Security & Stabilisation Division ,Crown Agents. ,203416-102 ,"2,818.80",
DFID,DFID,06/09/2016,Project delivery costs – supplier services ,Conflict  Humanitarian  Security & Stabilisation Division ,Crown Agents. ,203416-102 ,"13,947.85",
DFID,DFID,06/09/2016,Project delivery costs – supplier services ,Conflict  Humanitarian  Security & Stabilisation Division ,Crown Agents. ,203416-102 ,"15,291.33",
DFID,DFID,19/09/2016,Aid Programme - Humanitarian Material Relief Assistance and Services ,Conflict  Humanitarian  Security & Stabilisation Division ,Crown Agents. ,203419-105 ,"7,055.09",
DFID,DFID,15/09/2016,Aid Programme - Humanitarian Material Relief Assistance and Services ,Conflict  Humanitarian  Security & Stabilisation Division ,Crown Agents. ,202878-103 ,600.00,
DFID,DFID,15/09/2016,Aid Programme - Humanitarian Material Relief Assistance and Services ,Conflict  Humanitarian  Security & Stabilisation Division ,Crown Agents. ,202878-103 ,"125,135.33",
DFID,DFID,19/09/2016,Aid Programme - Humanitarian Material Relief Assistance and Services ,Conflict  Humanitarian  Security & Stabilisation Division ,Crown Agents. ,202878-103 ,"11,196.00",
DFID,DFID,19/09/2016,Aid Programme - Humanitarian Material Relief Assistance and Services ,Conflict  Humanitarian  Security & Stabilisation Division ,Crown Agents. ,202878-103 ,"12,122.40",
DFID,DFID,21/09/2016,Aid Programme - Humanitarian Material Relief Assistance and Services ,Conflict  Humanitarian  Security & Stabilisation Division ,Crown Agents. ,202741-107 ,"4,918.34",
DFID,DFID,20/09/2016,Project delivery costs – supplier services ,West and Southern Africa ,Crown Agents. ,205122-101 ,"11,383.20",
DFID,DFID,23/09/2016,Project delivery costs – supplier services ,West and Southern Africa ,Crown Agents. ,205122-101 ,"2,391.38",
DFID,DFID,20/09/2016,Project delivery costs – supplier services ,East and Central Africa ,Crown Agents. ,202594-101 ,"4,453.82",
DFID,DFID,05/09/2016,DFID Purchased Relief Supplies ,East and Central Africa ,Crown Agents. ,205256-108 ,"8,809.16",
DFID,DFID,20/09/2016,DFID Purchased Relief Supplies ,East and Central Africa ,Crown Agents. ,205256-108 ,"46,442.20",
DFID,DFID,19/09/2016,Project delivery costs – supplier services ,Middle East and North Africa Division ,Crown Agents. ,204016-103 ,"7,680.00",
DFID,DFID,16/09/2016,Project delivery costs – supplier services ,Conflict  Humanitarian  Security & Stabilisation Division ,Crown Agents. ,202741-106 ,"349,573.20",
DFID,DFID,19/09/2016,Project delivery costs – supplier services ,Conflict  Humanitarian  Security & Stabilisation Division ,Crown Agents. ,202741-107 ,"10,848.00",
DFID,DFID,19/09/2016,Project delivery costs – supplier services ,Conflict  Humanitarian  Security & Stabilisation Division ,Crown Agents. ,202741-107 ,930.23,
DFID,DFID,22/09/2016,Project delivery costs – supplier services ,Economic Development Division ,Crown Agents. ,203732-101 ,"78,298.80",
DFID,DFID,29/09/2016,Aid Programme - Accountable Grant Payments ,Policy Division ,Crown Agents. ,201101-108 ,"169,814.35",
DFID,DFID,21/09/2016,Aid Programme - Humanitarian Material Relief Assistance and Services ,Middle East and North Africa Division ,Crown Agents. ,204516-103 ,"13,300.80",
DFID,DFID,05/09/2016,Project delivery costs – supplier services ,West and Southern Africa ,Crown Agents. ,104187-108 ,"2,644.46",
DFID,DFID,05/09/2016,DFID Purchased Relief Supplies ,West and Southern Africa ,Crown Agents. ,104187-108 ,"1,852.98",
DFID,DFID,05/09/2016,DFID Purchased Relief Supplies ,West and Southern Africa ,Crown Agents. ,104187-108 ,"70,518.85",
DFID,DFID,21/09/2016,Fund monies to be managed and dispersed by the supplier ,Economic Development Division ,Crown Agents. ,202089-101 ,"12,553.25",
DFID,DFID,02/09/2016,Aid Programme - Humanitarian Material Relief Assistance and Services ,Asia  Caribbean and Overseas Territories ,Crown Agents. ,205028-101 ,887.17,
DFID,DFID,09/09/2016,Project delivery costs – supplier services ,East and Central Africa ,Crown Agents. ,200349-102 ,"815,242.04",
DFID,DFID,30/09/2016,DFID Purchased Relief Supplies ,East and Central Africa ,Crown Agents. ,202900-107 ,"13,929.63",
DFID,DFID,19/09/2016,DFID Purchased Relief Supplies ,East and Central Africa ,Crown Agents. ,202900-107 ,"9,231.25",
DFID,DFID,21/09/2016,DFID Purchased Relief Supplies ,East and Central Africa ,Crown Agents. ,202900-107 ,"5,482.23",
DFID,DFID,07/09/2016,DFID Purchased Relief Supplies ,East and Central Africa ,Crown Agents. ,202900-107 ,"291,858.84",
DFID,DFID,06/09/2016,DFID Purchased Relief Supplies ,East and Central Africa ,Crown Agents. ,202900-107 ,"6,198.41",
DFID,DFID,14/09/2016,Fund monies to be managed and dispersed by the supplier ,East and Central Africa ,Crown Agents. ,205068-102 ,"1,074,625.17",
DFID,DFID,14/09/2016,Fund monies to be managed and dispersed by the supplier ,East and Central Africa ,Crown Agents. ,205068-102 ,"115,629.07",
DFID,DFID,19/09/2016,Project delivery costs – supplier services ,Conflict  Humanitarian  Security & Stabilisation Division ,Crown Agents. ,202741-104 ,"163,839.60",
DFID,DFID,21/09/2016,Project delivery costs – supplier services ,East and Central Africa ,Crown Agents. ,204852-109 ,"2,448.00",
DFID,DFID,06/09/2016,Project delivery costs – supplier services ,East and Central Africa ,Crown Agents. ,204852-109 ,"6,120.00",
DFID,DFID,30/09/2016,Project delivery costs – supplier services ,East and Central Africa ,Crown Agents. ,204439-103 ,"2,893.70",
DFID,DFID,22/09/2016,Project delivery costs – supplier services ,East and Central Africa ,Crown Agents. ,204439-103 ,"13,666.42",
DFID,DFID,20/09/2016,Bank Charges/Services ,Group Operations ,Crown Agents. ,204664-101 ,"3,000.00",
DFID,DFID,20/09/2016,Bank Charges/Services ,Group Operations ,Crown Agents. ,204664-101 ,"3,000.00",
DFID,DFID,30/09/2016,Project delivery costs – supplier services ,East and Central Africa ,Crown Agents. ,101612-101 ,"1,286.52",
DFID,DFID,15/09/2016,Project delivery costs – supplier services ,East and Central Africa ,Crown Agents. ,202890-104 ,775.00,
DFID,DFID,12/09/2016,Aid Programme - Accountable Grant Payments ,East and Central Africa ,Crown Agents. ,203961-114 ,"13,608.00",
DFID,DFID,28/09/2016,Aid Programme - Accountable Grant Payments ,East and Central Africa ,Crown Agents. ,203961-114 ,"15,876.00",
DFID,DFID,06/09/2016,Project delivery costs – supplier services ,West and Southern Africa ,Crown Agents. ,203674-103 ,"3,080.76",
DFID,DFID,06/09/2016,Project delivery costs – supplier services ,West and Southern Africa ,Crown Agents. ,203674-103 ,"27,411.67",
DFID,DFID,06/09/2016,Project delivery costs – supplier services ,West and Southern Africa ,Crown Agents. ,203674-103 ,576.69,
DFID,DFID,02/09/2016,Project delivery costs – supplier services ,West and Southern Africa ,Crown Agents. ,203674-103 ,"2,145.27",
DFID,DFID,20/09/2016,Aid Programme - Accountable Grant Payments ,Policy Division ,CONCERN WORLDWIDE ,203559-120 ,"86,944.00",
DFID,DFID,19/09/2016,Aid Programme - Accountable Grant Payments ,Policy Division ,CONCERN WORLDWIDE ,203559-150 ,"4,795.39",
DFID,DFID,14/09/2016,Aid Programme - Accountable Grant Payments ,West and Southern Africa ,CAMFED ,202493-101 ,"1,240,033.00",
DFID,DFID,22/09/2016,Aid Programme - Accountable Grant Payments ,West and Southern Africa ,CAMFED ,202623-111 ,"132,588.00",
DFID,DFID,07/09/2016,Aid Programme - Accountable Grant Payments ,Middle East and North Africa Division ,CARE INTERNATIONAL UK ,204512-101 ,"373,908.44",
DFID,DFID,27/09/2016,Aid Programme - Accountable Grant Payments ,East and Central Africa ,CARE INTERNATIONAL UK ,204142-101 ,"294,321.52",
DFID,DFID,22/09/2016,Aid Programme - Accountable Grant Payments ,Middle East and North Africa Division ,CARE INTERNATIONAL UK ,203847-103 ,"867,609.59",
DFID,DFID,12/09/2016,Aid Programme - Accountable Grant Payments ,West and Southern Africa ,CONCERN UNIVERSAL ,201196-113 ,"400,000.00",
DFID,DFID,14/09/2016,Project delivery costs – supplier services ,Research and Evidence Division ,CAB INTERNATIONAL ,112152-102 ,"6,745.18",
DFID,DFID,19/09/2016,Aid Programme - Accountable Grant Payments ,Policy Division ,COMIC RELIEF ,202197-101 ,"239,222.00",
DFID,DFID,20/09/2016,Aid Programme - Accountable Grant Payments ,Policy Division ,COMIC RELIEF ,203873-101 ,"488,015.00",
DFID,DFID,06/09/2016,Aid Programme - Accountable Grant Payments ,Research and Evidence Division ,UNIVERSITY OF CAMBRIDGE ,201884-107 ,"26,536.87",
DFID,DFID,06/09/2016,Training - Course Fees ,West and Southern Africa ,CIPD ENTERPRISES LIMITED ,100152-114 ,"3,495.00",
DFID,DFID,20/09/2016,Conferences  Seminars & Meeting/Event Resource ,Policy Division ,CHATHAM  HOUSE ENTERPRISES LIMITED ,100274-111 ,645.00,
DFID,DFID,23/09/2016,Training - Course Fees ,Human Resources ,CABINET OFFICE ,100269-155 ,"2,708.00",
DFID,DFID,30/09/2016,Computer Software Licenses ,Group Operations ,CHARTERED MANAGEMENT INSTITUTE ,204284-101 ,"2,373.60",
DFID,DFID,29/09/2016,Training Providers/Facilitation Services ,Finance and Corporate Performance Division ,Capita  Business Services ,204846-101 ,"2,814.64",
DFID,DFID,06/09/2016,Training Providers/Facilitation Services ,Finance and Corporate Performance Division ,Capita  Business Services ,204846-101 ,"3,137.22",
DFID,DFID,27/09/2016,Training - Course Fees ,Human Resources ,Capita  Business Services ,100269-155 ,"2,639.35",
DFID,DFID,13/09/2016,Training Providers/Facilitation Services ,Finance and Corporate Performance Division ,Capita  Business Services ,204846-101 ,"8,627.12",
DFID,DFID,19/09/2016,Training - Travel & Subsistence ,West and Southern Africa ,Capita  Business Services ,101613-101 ,"2,196.49",
DFID,DFID,06/09/2016,Training Providers/Facilitation Services ,West and Southern Africa ,Capita  Business Services ,101638-101 ,"14,262.95",
DFID,DFID,07/09/2016,Training Providers/Facilitation Services ,East and Central Africa ,Capita  Business Services ,101634-101 ,"3,909.56",
DFID,DFID,09/09/2016,Training Providers/Facilitation Services ,East and Central Africa ,Capita  Business Services ,101634-101 ,"7,862.75",
DFID,DFID,14/09/2016,Training Providers/Facilitation Services ,East and Central Africa ,Capita  Business Services ,101634-101 ,"8,899.91",
DFID,DFID,06/09/2016,Aid Programme - Accountable Grant Payments ,West and Southern Africa ,CONCERN WORLDWIDE ,203445-104 ,"789,404.00",
DFID,DFID,09/09/2016,Project delivery costs – supplier services ,Asia  Caribbean and Overseas Territories ,Nathan Associates London Ltd ,202180-102 ,"179,272.98",
DFID,DFID,23/09/2016,Project delivery costs – supplier services ,Asia  Caribbean and Overseas Territories ,Nathan Associates London Ltd ,202180-102 ,"17,936.77",
DFID,DFID,23/09/2016,Project delivery costs – supplier services ,Asia  Caribbean and Overseas Territories ,Nathan Associates London Ltd ,202180-102 ,"160,746.00",
DFID,DFID,28/09/2016,Professional member subscriptions ,Human Resources ,ECA INTERNATIONAL ,100269-135 ,"11,778.00",
DFID,DFID,29/09/2016,Project delivery costs – supplier services ,West and Southern Africa ,COFFEY INTERNATIONAL DEVELOPMENT LTD ,202455-104 ,"13,790.88",
DFID,DFID,28/09/2016,Project delivery costs – supplier services ,West and Southern Africa ,COFFEY INTERNATIONAL DEVELOPMENT LTD ,202455-104 ,"22,646.27",
DFID,DFID,13/09/2016,Project delivery costs – supplier services ,West and Southern Africa ,COFFEY INTERNATIONAL DEVELOPMENT LTD ,202455-104 ,"13,700.03",
DFID,DFID,13/09/2016,Project delivery costs – supplier services ,West and Southern Africa ,COFFEY INTERNATIONAL DEVELOPMENT LTD ,202455-104 ,"13,714.80",
DFID,DFID,02/09/2016,Project delivery costs – supplier services ,Policy Division ,COFFEY INTERNATIONAL DEVELOPMENT LTD ,202035-101 ,"57,612.97",
DFID,DFID,07/09/2016,Project delivery costs – supplier services ,West and Southern Africa ,COFFEY INTERNATIONAL DEVELOPMENT LTD ,300037-101 ,"27,461.16",
DFID,DFID,28/09/2016,Project delivery costs – supplier services ,West and Southern Africa ,COFFEY INTERNATIONAL DEVELOPMENT LTD ,201629-104 ,"33,068.70",
DFID,DFID,07/09/2016,Project delivery costs – supplier services ,East and Central Africa ,COFFEY INTERNATIONAL DEVELOPMENT LTD ,204788-104 ,"16,960.92",
DFID,DFID,28/09/2016,Project delivery costs – supplier services ,Middle East and North Africa Division ,COFFEY INTERNATIONAL DEVELOPMENT LTD ,202241-103 ,"22,619.39",
DFID,DFID,02/09/2016,Project delivery costs – supplier services ,Middle East and North Africa Division ,COFFEY INTERNATIONAL DEVELOPMENT LTD ,202241-103 ,"26,317.00",
DFID,DFID,27/09/2016,Project delivery costs – supplier services ,East and Central Africa ,COFFEY INTERNATIONAL DEVELOPMENT LTD ,203439-102 ,"21,505.00",
DFID,DFID,14/09/2016,Project delivery costs – supplier services ,Policy Division ,COFFEY INTERNATIONAL DEVELOPMENT LTD ,202372-104 ,"16,776.24",
DFID,DFID,15/09/2016,Project delivery costs – supplier services ,West and Southern Africa ,COFFEY INTERNATIONAL DEVELOPMENT LTD ,300144-101 ,"3,252.28",
DFID,DFID,28/09/2016,Project delivery costs – supplier services ,Research and Evidence Division ,COFFEY INTERNATIONAL DEVELOPMENT LTD ,204806-106 ,"3,932.22",
DFID,DFID,28/09/2016,Project delivery costs – supplier services ,Research and Evidence Division ,COFFEY INTERNATIONAL DEVELOPMENT LTD ,204806-106 ,"29,490.12",
DFID,DFID,23/09/2016,Project delivery costs – supplier services ,West and Southern Africa ,COFFEY INTERNATIONAL DEVELOPMENT LTD ,201629-104 ,"8,050.00",
DFID,DFID,21/09/2016,Project delivery costs – supplier services ,Asia  Caribbean and Overseas Territories ,COFFEY INTERNATIONAL DEVELOPMENT LTD ,202368-102 ,"16,357.16",
DFID,DFID,28/09/2016,Project delivery costs – supplier services ,Asia  Caribbean and Overseas Territories ,COFFEY INTERNATIONAL DEVELOPMENT LTD ,202368-102 ,"58,960.00",
DFID,DFID,28/09/2016,Project delivery costs – supplier services ,Asia  Caribbean and Overseas Territories ,COFFEY INTERNATIONAL DEVELOPMENT LTD ,204619-109 ,"90,000.00",
DFID,DFID,05/09/2016,Project delivery costs – supplier services ,Asia  Caribbean and Overseas Territories ,COFFEY INTERNATIONAL DEVELOPMENT LTD ,204277-103 ,"37,705.00",
DFID,DFID,23/09/2016,Project delivery costs – supplier services ,West and Southern Africa ,COFFEY INTERNATIONAL DEVELOPMENT LTD ,201629-104 ,"14,561.24",
DFID,DFID,08/09/2016,Project delivery costs – supplier services ,East and Central Africa ,COFFEY INTERNATIONAL DEVELOPMENT LTD ,203738-102 ,"5,966.00",
DFID,DFID,09/09/2016,Project delivery costs – supplier services ,West and Southern Africa ,COFFEY INTERNATIONAL DEVELOPMENT LTD ,203429-105 ,"46,564.00",
DFID,DFID,29/09/2016,Project delivery costs – supplier services ,West and Southern Africa ,COFFEY INTERNATIONAL DEVELOPMENT LTD ,203881-101 ,"127,855.50",
DFID,DFID,20/09/2016,Project delivery costs – supplier services ,Economic Development Division ,COFFEY INTERNATIONAL DEVELOPMENT LTD ,203809-107 ,"2,471.70",
DFID,DFID,07/09/2016,Project delivery costs – supplier services ,Asia  Caribbean and Overseas Territories ,COFFEY INTERNATIONAL DEVELOPMENT LTD ,202368-102 ,"10,100.29",
DFID,DFID,21/09/2016,Project delivery costs – supplier services ,Asia  Caribbean and Overseas Territories ,COFFEY INTERNATIONAL DEVELOPMENT LTD ,203508-104 ,"1,150.00",
DFID,DFID,02/09/2016,Project delivery costs – supplier services ,West and Southern Africa ,COFFEY INTERNATIONAL DEVELOPMENT LTD ,104190-109 ,"194,233.59",
DFID,DFID,30/09/2016,Project delivery costs – supplier services ,West and Southern Africa ,COFFEY INTERNATIONAL DEVELOPMENT LTD ,104190-109 ,"223,127.47",
DFID,DFID,06/09/2016,Project delivery costs – supplier services ,Research and Evidence Division ,COFFEY INTERNATIONAL DEVELOPMENT LTD ,203193-101 ,"63,678.00",
DFID,DFID,06/09/2016,Project delivery costs – supplier services ,Research and Evidence Division ,COFFEY INTERNATIONAL DEVELOPMENT LTD ,203193-101 ,"32,117.58",
DFID,DFID,07/09/2016,Postage Costs ,Group Operations ,FCO SERVICES ,203717-101 ,802.50,
DFID,DFID,27/09/2016,Postage Costs ,Group Operations ,FCO SERVICES ,203717-101 ,"2,707.33",
DFID,DFID,08/09/2016,Postage Costs ,Group Operations ,FCO SERVICES ,203717-101 ,"2,707.33",
DFID,DFID,22/09/2016,Repairs  Maint  Alter - Property & Constrct. Services ,Central Department Division ,FCO SERVICES ,204994-143 ,"4,500.00",
DFID,DFID,06/09/2016,Project delivery costs – supplier services ,Business Solutions Division Level ,FCO SERVICES ,200005-116 ,"4,205.42",
DFID,DFID,21/09/2016,Project delivery costs – supplier services ,Policy Division ,FCO SERVICES ,202372-105 ,"1,580.64",
DFID,DFID,06/09/2016,Courier & Bag Services ,Business Solutions Division Level ,FCO SERVICES ,200001-101 ,"1,972.45",
DFID,DFID,05/09/2016,Gas ,Group Operations ,CORONA ENERGY ,100106-101 ,543.80,
DFID,DFID,23/09/2016,Gas ,Group Operations ,CORONA ENERGY ,100106-101 ,554.20,
DFID,DFID,29/09/2016,Gas ,Group Operations ,CORONA ENERGY ,100106-101 ,"2,711.38",
DFID,DFID,14/09/2016,Project delivery costs – supplier services ,West and Southern Africa ,PALLADIUM ,203429-103 ,"314,343.35",
DFID,DFID,22/09/2016,Project delivery costs – supplier services ,Policy Division ,PALLADIUM ,201724-155 ,"239,043.86",
DFID,DFID,29/09/2016,Project delivery costs – supplier services ,East and Central Africa ,PALLADIUM ,204012-106 ,"278,761.07",
DFID,DFID,05/09/2016,Project delivery costs – supplier services ,West and Southern Africa ,PALLADIUM ,204822-102 ,"461,234.76",
DFID,DFID,26/09/2016,Project delivery costs – supplier services ,East and Central Africa ,PALLADIUM ,203539-102 ,"41,831.50",
DFID,DFID,26/09/2016,Fund monies to be managed and dispersed by the supplier ,East and Central Africa ,PALLADIUM ,203539-102 ,"23,232.94",
DFID,DFID,09/09/2016,Project delivery costs – supplier services ,East and Central Africa ,PALLADIUM ,204809-102 ,"55,382.47",
DFID,DFID,12/09/2016,Project delivery costs – supplier services ,East and Central Africa ,PALLADIUM ,204809-102 ,"26,900.55",
DFID,DFID,13/09/2016,Project delivery costs – supplier services ,Policy Division ,PALLADIUM ,202745-104 ,"161,757.06",
DFID,DFID,19/09/2016,Project delivery costs – supplier services ,Policy Division ,PALLADIUM ,202745-104 ,"37,023.02",
DFID,DFID,30/09/2016,Project delivery costs – supplier services ,Asia  Caribbean and Overseas Territories ,PALLADIUM ,204613-101 ,"74,410.66",
DFID,DFID,23/09/2016,Project delivery costs – supplier services ,West and Southern Africa ,ICF Consulting Services Ltd ,201433-110 ,"100,000.00",
DFID,DFID,07/09/2016,Project delivery costs – supplier services ,Conflict  Humanitarian  Security & Stabilisation Division ,THE HALO TRUST ,203243-119 ,"122,301.00",
DFID,DFID,20/09/2016,Project delivery costs – supplier services ,Conflict  Humanitarian  Security & Stabilisation Division ,THE HALO TRUST ,203243-121 ,"10,000.00",
DFID,DFID,08/09/2016,Project delivery costs – supplier services ,West and Southern Africa ,HEALTH PARTNERS INTERNATIONAL ,202694-101 ,"130,684.97",
DFID,DFID,22/09/2016,Project delivery costs – supplier services ,West and Southern Africa ,HEALTH PARTNERS INTERNATIONAL ,202694-101 ,"130,292.99",
DFID,DFID,08/09/2016,Project delivery costs – supplier services ,West and Southern Africa ,HEALTH PARTNERS INTERNATIONAL ,202694-101 ,"435,333.86",
DFID,DFID,15/09/2016,Project delivery costs – supplier services ,East and Central Africa ,HTSPE LTD ,203574-103 ,"29,001.93",
DFID,DFID,14/09/2016,Project delivery costs – supplier services ,East and Central Africa ,HTSPE LTD ,203574-103 ,"39,433.90",
DFID,DFID,14/09/2016,Project delivery costs – supplier services ,East and Central Africa ,HTSPE LTD ,203574-103 ,"26,066.21",
DFID,DFID,14/09/2016,Project delivery costs – supplier services ,East and Central Africa ,HTSPE LTD ,203574-109 ,"2,502.00",
DFID,DFID,13/09/2016,Project delivery costs – supplier services ,East and Central Africa ,HTSPE LTD ,203574-109 ,"9,306.50",
DFID,DFID,14/09/2016,Project delivery costs – supplier services ,East and Central Africa ,HTSPE LTD ,203574-109 ,"2,820.80",
DFID,DFID,15/09/2016,Project delivery costs – supplier services ,East and Central Africa ,HTSPE LTD ,203574-109 ,"2,255.20",
DFID,DFID,15/09/2016,Project delivery costs – supplier services ,East and Central Africa ,HTSPE LTD ,203574-112 ,"53,048.13",
DFID,DFID,14/09/2016,Project delivery costs – supplier services ,East and Central Africa ,HTSPE LTD ,203574-112 ,"35,008.30",
DFID,DFID,14/09/2016,Project delivery costs – supplier services ,East and Central Africa ,HTSPE LTD ,203574-112 ,"61,100.49",
DFID,DFID,02/09/2016,Project delivery costs – supplier services ,Asia  Caribbean and Overseas Territories ,HTSPE LTD ,204825-102 ,"39,475.98",
DFID,DFID,02/09/2016,Project delivery costs – supplier services ,East and Central Africa ,HTSPE LTD ,204258-101 ,"6,924.82",
DFID,DFID,27/09/2016,Project delivery costs – supplier services ,East and Central Africa ,HTSPE LTD ,204258-101 ,"15,483.89",
DFID,DFID,02/09/2016,Project delivery costs – supplier services ,Research and Evidence Division ,HTSPE LTD ,203193-101 ,"5,637.41",
DFID,DFID,05/09/2016,Project delivery costs – supplier services ,Research and Evidence Division ,HTSPE LTD ,203193-101 ,"22,546.00",
DFID,DFID,05/09/2016,Project delivery costs – supplier services ,Research and Evidence Division ,HTSPE LTD ,203193-101 ,"9,995.35",
DFID,DFID,09/09/2016,Project delivery costs – supplier services ,Research and Evidence Division ,HTSPE LTD ,203193-101 ,"7,516.54",
DFID,DFID,28/09/2016,Project delivery costs – supplier services ,Asia  Caribbean and Overseas Territories ,HTSPE LTD ,114175-108 ,"33,521.37",
DFID,DFID,30/09/2016,Project delivery costs – supplier services ,East and Central Africa ,HTSPE LTD ,202900-102 ,"160,271.63",
DFID,DFID,01/09/2016,Project delivery costs – supplier services ,East and Central Africa ,HTSPE LTD ,202900-102 ,"305,391.09",
DFID,DFID,01/09/2016,Project delivery costs – supplier services ,Research and Evidence Division ,HTSPE LTD ,203193-101 ,"22,549.63",
DFID,DFID,01/09/2016,Project delivery costs – supplier services ,Research and Evidence Division ,HTSPE LTD ,203193-101 ,"7,516.54",
DFID,DFID,13/09/2016,Project delivery costs – supplier services ,Asia  Caribbean and Overseas Territories ,HTSPE LTD ,203764-105 ,"14,581.38",
DFID,DFID,30/09/2016,Project delivery costs – supplier services ,East and Central Africa ,HTSPE LTD ,200221-105 ,"18,052.76",
DFID,DFID,20/09/2016,Project delivery costs – supplier services ,West and Southern Africa ,HTSPE LTD ,203164-104 ,"16,837.00",
DFID,DFID,29/09/2016,Project delivery costs – supplier services ,East and Central Africa ,HTSPE LTD ,203439-102 ,"74,191.00",
DFID,DFID,05/09/2016,Project delivery costs – supplier services ,Research and Evidence Division ,HTSPE LTD ,203193-101 ,"22,546.00",
DFID,DFID,05/09/2016,Project delivery costs – supplier services ,Research and Evidence Division ,HTSPE LTD ,203193-101 ,"9,995.35",
DFID,DFID,06/09/2016,Project delivery costs – supplier services ,Research and Evidence Division ,HTSPE LTD ,203193-101 ,"5,637.41",
DFID,DFID,01/09/2016,Project delivery costs – supplier services ,Research and Evidence Division ,HTSPE LTD ,203193-101 ,"7,480.86",
DFID,DFID,14/09/2016,Project delivery costs – supplier services ,West and Southern Africa ,HTSPE LTD ,205195-101 ,"18,898.84",
DFID,DFID,08/09/2016,Project delivery costs – supplier services ,West and Southern Africa ,HTSPE LTD ,203164-103 ,"74,428.00",
DFID,DFID,09/09/2016,Project delivery costs – supplier services ,West and Southern Africa ,HTSPE LTD ,203164-103 ,"10,837.60",
DFID,DFID,28/09/2016,Project delivery costs – supplier services ,East and Central Africa ,HTSPE LTD ,203603-105 ,"14,466.00",
DFID,DFID,09/09/2016,Contract & Agency Staff ,Finance and Corporate Performance Division ,Hays Specialist Recruitment Ltd ,100201-101 ,714.34,
DFID,DFID,30/09/2016,Contract & Agency Staff ,Finance and Corporate Performance Division ,Hays Specialist Recruitment Ltd ,100201-101 ,621.50,
DFID,DFID,12/09/2016,Contract & Agency Staff ,Finance and Corporate Performance Division ,Hays Specialist Recruitment Ltd ,100201-101 ,776.88,
DFID,DFID,16/09/2016,Contract & Agency Staff ,Finance and Corporate Performance Division ,Hays Specialist Recruitment Ltd ,100201-101 ,530.26,
DFID,DFID,30/09/2016,Contract & Agency Staff ,Finance and Corporate Performance Division ,Hays Specialist Recruitment Ltd ,100201-101 ,776.88,
DFID,DFID,27/09/2016,Contract & Agency Staff ,Finance and Corporate Performance Division ,Hays Specialist Recruitment Ltd ,100201-101 ,714.34,
DFID,DFID,13/09/2016,Contract & Agency Staff ,Finance and Corporate Performance Division ,Hays Specialist Recruitment Ltd ,100201-101 ,892.92,
DFID,DFID,16/09/2016,Contract & Agency Staff ,Finance and Corporate Performance Division ,Hays Specialist Recruitment Ltd ,100201-101 ,714.34,
DFID,DFID,06/09/2016,Contract & Agency Staff ,Finance and Corporate Performance Division ,Hays Specialist Recruitment Ltd ,100201-101 ,776.88,
DFID,DFID,07/09/2016,Contract & Agency Staff ,Group Operations ,Hays Specialist Recruitment Ltd ,100161-101 ,"1,455.72",
DFID,DFID,06/09/2016,Contract & Agency Staff ,Human Resources ,HUDSON GLOBAL RESOURCES LTD ,100261-101 ,"3,787.31",
DFID,DFID,06/09/2016,Contract & Agency Staff ,Human Resources ,HUDSON GLOBAL RESOURCES LTD ,100261-101 ,"2,207.52",
DFID,DFID,30/09/2016,Contract & Agency Staff ,Finance and Corporate Performance Division ,HUDSON GLOBAL RESOURCES LTD ,100201-101 ,"4,511.89",
DFID,DFID,06/09/2016,Facilities Management payments ,Group Operations ,MITIE Technical Facilities Management Ltd ,203717-101 ,"23,883.80",
DFID,DFID,13/09/2016,Project delivery costs – supplier services ,West and Southern Africa ,ITAD LTD ,202482-102 ,"38,978.40",
DFID,DFID,14/09/2016,Project delivery costs – supplier services ,West and Southern Africa ,ITAD LTD ,202482-102 ,"59,620.80",
DFID,DFID,15/09/2016,Project delivery costs – supplier services ,West and Southern Africa ,ITAD LTD ,202482-102 ,"15,332.40",
DFID,DFID,21/09/2016,Project delivery costs – supplier services ,Research and Evidence Division ,ITAD LTD ,203778-103 ,"31,719.25",
DFID,DFID,20/09/2016,Aid Programme - Core contributions ,Asia  Caribbean and Overseas Territories ,INTERNATIONAL CENTRE FOR DIARRO ,202767-102 ,"792,339.00",
DFID,DFID,27/09/2016,Aid Programme - Accountable Grant Payments ,Research and Evidence Division ,INASP ,203962-101 ,"361,827.00",
DFID,DFID,06/09/2016,Training - Course Fees ,Internal Audit ,INSTITUTE OF INTERNAL AUDITORS-UK ,100121-101 ,515.00,
DFID,DFID,20/09/2016,Training - Course Fees ,Internal Audit ,INSTITUTE OF INTERNAL AUDITORS-UK ,100121-101 ,500.00,
DFID,DFID,06/09/2016,Aid Programme - Core contributions ,Conflict  Humanitarian  Security & Stabilisation Division ,IOM (GENEVA) ,205038-102 ,"985,711.82",
DFID,DFID,22/09/2016,Aid Programme - Humanitarian Material Relief Assistance and Services ,Asia  Caribbean and Overseas Territories ,INTERNATIONAL RESCUE COMMITTEE UK ,204603-106 ,"89,857.00",
DFID,DFID,05/09/2016,Aid Programme - Trust Funds contributions ,West and Southern Africa ,IBRD HSBC T ,202854-101 ,"1,155,000.00",
DFID,DFID,05/09/2016,Aid Programme - Trust Funds contributions ,Research and Evidence Division ,IBRD HSBC T ,204022-102 ,"1,100,000.00",
DFID,DFID,20/09/2016,Aid Programme - Pooled/Basket funding ,Research and Evidence Division ,IBRD HSBC T ,203052-104 ,"1,800,000.00",
DFID,DFID,06/09/2016,Aid Programme - Trust Funds contributions ,Asia  Caribbean and Overseas Territories ,IBRD HSBC T ,204672-101 ,"985,000.00",
DFID,DFID,21/09/2016,Aid Programme - Trust Funds contributions ,Economic Development Division ,IBRD HSBC T ,204250-105 ,"525,000.00",
DFID,DFID,27/09/2016,Aid Programme - Trust Funds contributions ,Research and Evidence Division ,IBRD HSBC T ,113710-101 ,"6,000,000.00",
DFID,DFID,30/09/2016,Aid Programme - Trust Funds contributions ,Asia  Caribbean and Overseas Territories ,IBRD HSBC T ,203107-101 ,"500,000.00",
DFID,DFID,28/09/2016,Project delivery costs – supplier services ,Asia  Caribbean and Overseas Territories ,IOD PARC ,202775-105 ,"16,103.88",
DFID,DFID,06/09/2016,Project delivery costs – supplier services ,Research and Evidence Division ,IOD PARC ,203197-101 ,"74,880.00",
DFID,DFID,28/09/2016,Project delivery costs – supplier services ,Research and Evidence Division ,IOD PARC ,203197-101 ,"40,028.76",
DFID,DFID,02/09/2016,Aid Programme - Trust Funds contributions ,Asia  Caribbean and Overseas Territories ,IBRD (HSBC)  C/O THE WORLD BANK ,204880-103 ,"895,000.00",
DFID,DFID,21/09/2016,Aid Programme - Trust Funds contributions ,Policy Division ,IBRD (HSBC)  C/O THE WORLD BANK ,203374-101 ,"2,200,000.00",
DFID,DFID,27/09/2016,Aid Programme - Trust Funds contributions ,East and Central Africa ,IBRD (HSBC)  C/O THE WORLD BANK ,204656-102 ,"700,000.00",
DFID,DFID,27/09/2016,Aid Programme - Trust Funds contributions ,East and Central Africa ,IBRD (HSBC)  C/O THE WORLD BANK ,204656-104 ,"300,000.00",
DFID,DFID,05/09/2016,Aid Programme - Trust Funds contributions ,West and Southern Africa ,IBRD (HSBC)  C/O THE WORLD BANK ,204253-102 ,"663,000.00",
DFID,DFID,14/09/2016,Aid Programme - Trust Funds contributions ,Asia  Caribbean and Overseas Territories ,IBRD (HSBC)  C/O THE WORLD BANK ,205266-101 ,"1,000,000.00",
DFID,DFID,06/09/2016,Project delivery costs – supplier services ,Policy Division ,IMPERIAL COLLEGE LONDON ,200706-101 ,"85,238.53",
DFID,DFID,30/09/2016,Project delivery costs – supplier services ,Policy Division ,IMPERIAL COLLEGE LONDON ,200706-101 ,"84,971.97",
DFID,DFID,30/09/2016,Project delivery costs – supplier services ,Policy Division ,IMPERIAL COLLEGE LONDON ,200706-101 ,"4,806.39",
DFID,DFID,06/09/2016,Project delivery costs – supplier services ,Policy Division ,IMPERIAL COLLEGE LONDON ,200706-101 ,"28,913.02",
DFID,DFID,21/09/2016,Training Providers/Facilitation Services ,Asia  Caribbean and Overseas Territories ,INSIGHTS LEARNING & DEVELOPMENT LTD ,300048-101 ,"4,775.17",
DFID,DFID,20/09/2016,Hostile Environment Training ,Asia  Caribbean and Overseas Territories ,KELLOGG BROWN & ROOT LIMITED ,300048-101 ,606.00,
DFID,DFID,15/09/2016,Hostile Environment Training ,Policy Division ,KELLOGG BROWN & ROOT LIMITED ,202402-107 ,606.00,
DFID,DFID,20/09/2016,Hostile Environment Training ,East and Central Africa ,KELLOGG BROWN & ROOT LIMITED ,202594-101 ,550.00,
DFID,DFID,19/09/2016,Hostile Environment Training ,East and Central Africa ,KELLOGG BROWN & ROOT LIMITED ,101630-102 ,750.00,
DFID,DFID,28/09/2016,Hostile Environment Training ,East and Central Africa ,KELLOGG BROWN & ROOT LIMITED ,101630-102 ,795.00,
DFID,DFID,21/09/2016,Hostile Environment Training ,Asia  Caribbean and Overseas Territories ,KELLOGG BROWN & ROOT LIMITED ,101624-101 ,795.00,
DFID,DFID,28/09/2016,Hostile Environment Training ,Asia  Caribbean and Overseas Territories ,KELLOGG BROWN & ROOT LIMITED ,101624-101 ,993.60,
DFID,DFID,27/09/2016,Hostile Environment Training ,Asia  Caribbean and Overseas Territories ,KELLOGG BROWN & ROOT LIMITED ,101624-101 ,795.00,
DFID,DFID,15/09/2016,Hostile Environment Training ,Research and Evidence Division ,KELLOGG BROWN & ROOT LIMITED ,203874-103 ,606.00,
DFID,DFID,12/09/2016,Hostile Environment Training ,Asia  Caribbean and Overseas Territories ,KELLOGG BROWN & ROOT LIMITED ,204053-101 ,505.00,
DFID,DFID,23/09/2016,Training Providers/Facilitation Services ,Communications Division ,KELLOGG BROWN & ROOT LIMITED ,100197-101 ,954.00,
DFID,DFID,28/09/2016,Training Providers/Facilitation Services ,Communications Division ,KELLOGG BROWN & ROOT LIMITED ,100197-101 ,954.00,
DFID,DFID,21/09/2016,Hostile Environment Training ,Global Funds ,KELLOGG BROWN & ROOT LIMITED ,100098-101 ,606.00,
DFID,DFID,15/09/2016,Hostile Environment Training ,Global Funds ,KELLOGG BROWN & ROOT LIMITED ,100098-101 ,606.00,
DFID,DFID,23/09/2016,Hostile Environment Training ,Asia  Caribbean and Overseas Territories ,Supplier Name withheld ,101601-110 ,954.00,
DFID,DFID,15/09/2016,Hostile Environment Training ,Asia  Caribbean and Overseas Territories ,Supplier Name withheld ,101601-110 ,750.00,
DFID,DFID,21/09/2016,Hostile Environment Training ,Asia  Caribbean and Overseas Territories ,Supplier Name withheld ,101601-110 ,900.00,
DFID,DFID,29/09/2016,Hostile Environment Training ,Middle East and North Africa Division ,KELLOGG BROWN & ROOT LIMITED ,101619-101 ,795.00,
DFID,DFID,15/09/2016,Hostile Environment Training ,Economic Development Division ,KELLOGG BROWN & ROOT LIMITED ,202432-101 ,505.00,
DFID,DFID,21/09/2016,Hostile Environment Training ,West and Southern Africa ,KELLOGG BROWN & ROOT LIMITED ,101610-101 ,606.00,
DFID,DFID,23/09/2016,Hostile Environment Training ,West and Southern Africa ,KELLOGG BROWN & ROOT LIMITED ,101610-101 ,"1,320.00",
DFID,DFID,20/09/2016,Aid Programme - Accountable Grant Payments ,Policy Division ,LIVERPOOL SCHOOL OF TROPICAL MEDICINE ,201177-101 ,"1,315,882.00",
DFID,DFID,01/09/2016,Aid Programme - Accountable Grant Payments ,Research and Evidence Division ,London School of Hygiene and Tropical Medicine ,204046-102 ,"211,250.00",
DFID,DFID,02/09/2016,Project delivery costs – supplier services ,Research and Evidence Division ,London School of Hygiene and Tropical Medicine ,203806-102 ,"186,741.31",
DFID,DFID,12/09/2016,Project delivery costs – supplier services ,Research and Evidence Division ,London School of Hygiene and Tropical Medicine ,203806-102 ,"210,189.95",
DFID,DFID,15/09/2016,Electricity ,Group Operations ,EDF ENERGY ,203717-101 ,"12,937.28",
DFID,DFID,15/09/2016,Electricity ,Group Operations ,EDF ENERGY ,203717-101 ,"9,253.75",
DFID,DFID,21/09/2016,Project delivery costs – supplier services ,West and Southern Africa ,Supplier Name withheld ,202942-102 ,"238,537.01",
DFID,DFID,30/09/2016,Project delivery costs – supplier services ,West and Southern Africa ,Supplier Name withheld ,202942-102 ,"342,343.41",
DFID,DFID,29/09/2016,Project delivery costs – supplier services ,West and Southern Africa ,Supplier Name withheld ,202678-101 ,"85,986.15",
DFID,DFID,30/09/2016,Project delivery costs – supplier services ,East and Central Africa ,Supplier Name withheld ,203871-102 ,"73,783.51",
DFID,DFID,29/09/2016,Project delivery costs – supplier services ,Policy Division ,Supplier Name withheld ,203148-101 ,"351,433.35",
DFID,DFID,29/09/2016,Project delivery costs – supplier services ,West and Southern Africa ,Supplier Name withheld ,203154-103 ,"452,599.50",
DFID,DFID,29/09/2016,Project delivery costs – supplier services ,West and Southern Africa ,Supplier Name withheld ,202678-101 ,"30,961.12",
DFID,DFID,28/09/2016,Project delivery costs – supplier services ,Asia  Caribbean and Overseas Territories ,Supplier Name withheld ,203029-104 ,"162,634.16",
DFID,DFID,15/09/2016,Project delivery costs – supplier services ,East and Central Africa ,Supplier Name withheld ,204288-103 ,"72,554.51",
DFID,DFID,27/09/2016,Project delivery costs – supplier services ,Asia  Caribbean and Overseas Territories ,Supplier Name withheld ,202488-107 ,"215,691.81",
DFID,DFID,14/09/2016,Project delivery costs – supplier services ,East and Central Africa ,Supplier Name withheld ,203641-103 ,"38,274.86",
DFID,DFID,19/09/2016,Project delivery costs – supplier services ,East and Central Africa ,Supplier Name withheld ,203363-103 ,"873,016.20",
DFID,DFID,01/09/2016,Project delivery costs – supplier services ,East and Central Africa ,Supplier Name withheld ,203363-103 ,"672,212.08",
DFID,DFID,30/09/2016,Data Network - land lines ,Business Solutions Division Level ,VODAFONE LIMITED ,200002-172 ,"1,189.13",
DFID,DFID,15/09/2016,Telephone Usage & services ,Business Solutions Division Level ,VODAFONE LIMITED ,200002-185 ,"7,083.91",
DFID,DFID,14/09/2016,Data Network - land lines ,Business Solutions Division Level ,VODAFONE LIMITED ,200002-185 ,"7,023.08",
DFID,DFID,13/09/2016,Data Network - land lines ,Business Solutions Division Level ,VODAFONE LIMITED ,200002-185 ,"2,219.22",
DFID,DFID,13/09/2016,Data Network - land lines ,Business Solutions Division Level ,VODAFONE LIMITED ,203329-103 ,"2,219.22",
DFID,DFID,14/09/2016,Data Network - land lines ,Business Solutions Division Level ,VODAFONE LIMITED ,203329-103 ,"7,023.09",
DFID,DFID,15/09/2016,Telephone Usage & services ,Business Solutions Division Level ,VODAFONE LIMITED ,203329-103 ,"7,083.90",
DFID,DFID,13/09/2016,Telephone Usage & services ,Business Solutions Division Level ,VODAFONE LIMITED ,200002-168 ,"18,602.83",
DFID,DFID,09/09/2016,Recruitment costs ,Group Operations ,MANPOWER PLC ,100161-101 ,"2,374.31",
DFID,DFID,28/09/2016,Project delivery costs – supplier services ,Asia  Caribbean and Overseas Territories ,MAXWELL STAMP PLC ,107460-104 ,"70,000.00",
DFID,DFID,27/09/2016,Aid Programme - Challenge Fund payments ,Asia  Caribbean and Overseas Territories ,MAXWELL STAMP PLC ,107460-107 ,"328,675.78",
DFID,DFID,29/09/2016,Project delivery costs – supplier services ,Group Operations ,MARSH PRIVATE CLIENT SERVICES ,204999-103 ,"5,055.70",
DFID,DFID,30/09/2016,Aid Programme - Other Financial Aid to Government ,East and Central Africa ,MET OFFICE ,204364-105 ,"133,107.00",
DFID,DFID,02/09/2016,Repairs  Maintenance and Alterations – Other Building Costs ,Group Operations ,MITIE Technical Facilities Management Ltd ,100106-101 ,989.47,
DFID,DFID,05/09/2016,Repairs  Maintenance and Alterations – Other Building Costs ,Group Operations ,MITIE Technical Facilities Management Ltd ,100106-101 ,831.60,
DFID,DFID,06/09/2016,Contract Catering Services ,Group Operations ,MITIE Technical Facilities Management Ltd ,100106-101 ,"1,028.18",
DFID,DFID,06/09/2016,Facilities Management payments ,Group Operations ,MITIE Technical Facilities Management Ltd ,100106-101 ,"15,219.81",
DFID,DFID,06/09/2016,Cleaning Costs ,Group Operations ,MITIE Technical Facilities Management Ltd ,100106-101 ,"16,547.90",
DFID,DFID,06/09/2016,Repairs  Maint  Alter - Property & Constrct. Services ,Group Operations ,MITIE Technical Facilities Management Ltd ,100106-101 ,"1,598.38",
DFID,DFID,30/09/2016,Repairs  Maintenance and Alterations – Other Building Costs ,Group Operations ,MITIE Technical Facilities Management Ltd ,203717-101 ,"1,718.59",
DFID,DFID,30/09/2016,Repairs  Maintenance and Alterations – Other Building Costs ,Group Operations ,MITIE Technical Facilities Management Ltd ,203717-101 ,"3,845.38",
DFID,DFID,30/09/2016,Repairs  Maintenance and Alterations – Other Building Costs ,Group Operations ,MITIE Technical Facilities Management Ltd ,203717-101 ,908.25,
DFID,DFID,06/09/2016,Contract Catering Services ,Group Operations ,MITIE Technical Facilities Management Ltd ,203717-101 ,702.68,
DFID,DFID,30/09/2016,Repairs  Maintenance and Alterations – Other Building Costs ,Group Operations ,MITIE Technical Facilities Management Ltd ,203717-101 ,708.88,
DFID,DFID,30/09/2016,Repairs  Maintenance and Alterations – Other Building Costs ,Group Operations ,MITIE Technical Facilities Management Ltd ,203717-101 ,715.00,
DFID,DFID,06/09/2016,Repairs  Maint  Alter - Property & Constrct. Services ,Group Operations ,MITIE Technical Facilities Management Ltd ,203717-101 ,"10,619.68",
DFID,DFID,30/09/2016,Repairs  Maintenance and Alterations – Other Building Costs ,Group Operations ,MITIE Technical Facilities Management Ltd ,203717-101 ,620.00,
DFID,DFID,30/09/2016,Repairs  Maintenance and Alterations – Other Building Costs ,Group Operations ,MITIE Technical Facilities Management Ltd ,203717-101 ,983.12,
DFID,DFID,20/09/2016,Accountable Grant Payments ,Policy Division ,SAVE THE CHILDREN ,203184-101 ,"24,300.16",
DFID,DFID,06/09/2016,Cleaning Costs ,Group Operations ,MITIE Technical Facilities Management Ltd ,203717-101 ,"19,308.92",
DFID,DFID,30/09/2016,Project delivery costs – supplier services ,West and Southern Africa ,MALARIA CONSORTIUM ,104223-101 ,"72,412.00",
DFID,DFID,21/09/2016,Aid Programme - Accountable Grant Payments ,Middle East and North Africa Division ,Supplier Name withheld ,204524-101 ,"3,536,838.00",
DFID,DFID,13/09/2016,Aid Programme - Accountable Grant Payments ,Middle East and North Africa Division ,Supplier Name withheld ,300030-101 ,"395,679.00",
DFID,DFID,29/09/2016,Aid Programme - Accountable Grant Payments ,West and Southern Africa ,Supplier Name withheld ,203445-109 ,"1,071,530.00",
DFID,DFID,14/09/2016,Aid Programme - Accountable Grant Payments ,Middle East and North Africa Division ,Supplier Name withheld ,300034-101 ,"70,990.00",
DFID,DFID,14/09/2016,Print Services ,Business Solutions Division Level ,RICOH UK LTD ,200001-113 ,"20,874.43",
DFID,DFID,29/09/2016,Aid Programme - Accountable Grant Payments ,East and Central Africa ,ODI ,202552-102 ,"278,563.00",
DFID,DFID,21/09/2016,Aid Programme - Accountable Grant Payments ,West and Southern Africa ,OXFAM INSTITUTIONAL INCOME ACCOUNT ,203445-107 ,"141,331.10",
DFID,DFID,07/09/2016,Courier & Bag Services ,Business Solutions Division Level ,Supplier Name withheld ,200001-101 ,"3,119.19",
DFID,DFID,12/09/2016,Vehicle Petrol & Oil,West and Southern Africa ,Supplier Name withheld ,101622-104 ,563.39,
DFID,DFID,13/09/2016,Project delivery costs – supplier services ,International Relations Division ,Supplier Name withheld ,100238-101 ,"2,675.85",
DFID,DFID,19/09/2016,Vehicle Petrol & Oil,West and Southern Africa ,Supplier Name withheld ,101622-104 ,632.48,
DFID,DFID,02/09/2016,Project delivery costs – supplier services ,Research and Evidence Division ,OXFORD POLICY MANAGEMENT ,203704-108 ,"19,354.72",
DFID,DFID,02/09/2016,Project delivery costs – supplier services ,Research and Evidence Division ,OXFORD POLICY MANAGEMENT ,203705-111 ,"19,354.72",
DFID,DFID,02/09/2016,Project delivery costs – supplier services ,Research and Evidence Division ,OXFORD POLICY MANAGEMENT ,203706-107 ,"19,354.72",
DFID,DFID,29/09/2016,Project delivery costs – supplier services ,West and Southern Africa ,OXFORD POLICY MANAGEMENT ,205182-105 ,"45,791.00",
DFID,DFID,30/09/2016,Project delivery costs – supplier services ,West and Southern Africa ,OXFORD POLICY MANAGEMENT ,205182-105 ,"9,767.65",
DFID,DFID,06/09/2016,Project delivery costs – supplier services ,West and Southern Africa ,OXFORD POLICY MANAGEMENT ,205182-105 ,"13,028.58",
DFID,DFID,22/09/2016,Research and development costs - supplier services ,Research and Evidence Division ,OXFORD POLICY MANAGEMENT ,203705-120 ,"122,225.00",
DFID,DFID,06/09/2016,Project delivery costs – supplier services ,Asia  Caribbean and Overseas Territories ,OXFORD POLICY MANAGEMENT ,202367-103 ,"180,815.86",
DFID,DFID,06/09/2016,Project delivery costs – supplier services ,Asia  Caribbean and Overseas Territories ,OXFORD POLICY MANAGEMENT ,202367-103 ,"83,856.80",
DFID,DFID,09/09/2016,Project delivery costs – supplier services ,Asia  Caribbean and Overseas Territories ,OXFORD POLICY MANAGEMENT ,203186-105 ,"45,298.30",
DFID,DFID,06/09/2016,Project delivery costs – supplier services ,Asia  Caribbean and Overseas Territories ,OXFORD POLICY MANAGEMENT ,203186-105 ,"15,350.00",
DFID,DFID,07/09/2016,Project delivery costs – supplier services ,Middle East and North Africa Division ,OXFORD POLICY MANAGEMENT ,204906-106 ,"70,130.26",
DFID,DFID,12/09/2016,Project delivery costs – supplier services ,Middle East and North Africa Division ,OXFORD POLICY MANAGEMENT ,204906-106 ,776.40,
DFID,DFID,27/09/2016,Project delivery costs – supplier services ,Policy Division ,OXFORD POLICY MANAGEMENT ,203572-102 ,"195,162.00",
DFID,DFID,29/09/2016,Project delivery costs – supplier services ,Asia  Caribbean and Overseas Territories ,OXFORD POLICY MANAGEMENT ,202378-102 ,"142,598.00",
DFID,DFID,29/09/2016,Project delivery costs – supplier services ,Asia  Caribbean and Overseas Territories ,OXFORD POLICY MANAGEMENT ,202378-102 ,"142,598.00",
DFID,DFID,19/09/2016,Project delivery costs – supplier services ,Asia  Caribbean and Overseas Territories ,OXFORD POLICY MANAGEMENT ,203180-102 ,"1,205,457.00",
DFID,DFID,28/09/2016,Project delivery costs – supplier services ,West and Southern Africa ,OXFORD POLICY MANAGEMENT ,205186-101 ,"5,300.00",
DFID,DFID,28/09/2016,Project delivery costs – supplier services ,West and Southern Africa ,OXFORD POLICY MANAGEMENT ,202722-103 ,"153,369.25",
DFID,DFID,27/09/2016,Project delivery costs – supplier services ,Asia  Caribbean and Overseas Territories ,OXFORD POLICY MANAGEMENT ,114175-108 ,"80,221.00",
DFID,DFID,27/09/2016,Project delivery costs – supplier services ,Asia  Caribbean and Overseas Territories ,OXFORD POLICY MANAGEMENT ,114175-108 ,"40,110.00",
DFID,DFID,12/09/2016,Project delivery costs – supplier services ,Research and Evidence Division ,OXFORD POLICY MANAGEMENT ,204322-102 ,"630,000.00",
DFID,DFID,12/09/2016,Project delivery costs – supplier services ,Research and Evidence Division ,OXFORD POLICY MANAGEMENT ,204322-102 ,"201,592.73",
DFID,DFID,30/09/2016,Project delivery costs – supplier services ,East and Central Africa ,OXFORD POLICY MANAGEMENT ,204258-102 ,"31,510.17",
DFID,DFID,22/09/2016,Project delivery costs – supplier services ,East and Central Africa ,OXFORD POLICY MANAGEMENT ,202577-103 ,"17,560.00",
DFID,DFID,27/09/2016,Project delivery costs – supplier services ,East and Central Africa ,OXFORD POLICY MANAGEMENT ,202580-103 ,"58,843.25",
DFID,DFID,08/09/2016,Project delivery costs – supplier services ,West and Southern Africa ,OXFORD POLICY MANAGEMENT ,201874-103 ,"100,637.49",
DFID,DFID,06/09/2016,Project delivery costs – supplier services ,West and Southern Africa ,OXFORD POLICY MANAGEMENT ,204330-103 ,"454,533.45",
DFID,DFID,06/09/2016,Project delivery costs – supplier services ,West and Southern Africa ,OXFORD POLICY MANAGEMENT ,205066-101 ,"155,997.56",
DFID,DFID,09/09/2016,Project delivery costs – supplier services ,Asia  Caribbean and Overseas Territories ,OXFORD POLICY MANAGEMENT ,201129-109 ,"20,946.00",
DFID,DFID,27/09/2016,Aid Programme - Accountable Grant Payments ,Policy Division ,OPPORTUNITY INTERNATIONAL UK ,202197-103 ,"63,983.20",
DFID,DFID,27/09/2016,Project delivery costs – supplier services ,West and Southern Africa ,OPTIONS CONSULTANCY SERVICES LIMITED ,205182-101 ,"70,152.11",
DFID,DFID,02/09/2016,Project delivery costs – supplier services ,West and Southern Africa ,OPTIONS CONSULTANCY SERVICES LIMITED ,205182-101 ,"76,213.26",
DFID,DFID,28/09/2016,Project delivery costs – supplier services ,West and Southern Africa ,OPTIONS CONSULTANCY SERVICES LIMITED ,202721-104 ,"47,500.00",
DFID,DFID,06/09/2016,Project delivery costs – supplier services ,West and Southern Africa ,OPTIONS CONSULTANCY SERVICES LIMITED ,202721-104 ,"81,428.00",
DFID,DFID,01/09/2016,Project delivery costs – supplier services ,Asia  Caribbean and Overseas Territories ,OPTIONS CONSULTANCY SERVICES LIMITED ,201375-103 ,"42,797.00",
DFID,DFID,01/09/2016,Project delivery costs – supplier services ,Asia  Caribbean and Overseas Territories ,OPTIONS CONSULTANCY SERVICES LIMITED ,203413-103 ,"14,519.00",
DFID,DFID,06/09/2016,Project delivery costs – supplier services ,Asia  Caribbean and Overseas Territories ,OPTIONS CONSULTANCY SERVICES LIMITED ,203413-103 ,"18,233.00",
DFID,DFID,06/09/2016,Project delivery costs – supplier services ,Asia  Caribbean and Overseas Territories ,OPTIONS CONSULTANCY SERVICES LIMITED ,203413-103 ,"30,717.00",
DFID,DFID,27/09/2016,Project delivery costs – supplier services ,Asia  Caribbean and Overseas Territories ,OPTIONS CONSULTANCY SERVICES LIMITED ,203413-103 ,"83,400.00",
DFID,DFID,27/09/2016,Project delivery costs – supplier services ,Asia  Caribbean and Overseas Territories ,OPTIONS CONSULTANCY SERVICES LIMITED ,203413-103 ,"36,225.00",
DFID,DFID,27/09/2016,Project delivery costs – supplier services ,Asia  Caribbean and Overseas Territories ,OPTIONS CONSULTANCY SERVICES LIMITED ,203413-103 ,"36,225.00",
DFID,DFID,28/09/2016,Project delivery costs – supplier services ,West and Southern Africa ,OPTIONS CONSULTANCY SERVICES LIMITED ,202214-103 ,"194,445.00",
DFID,DFID,12/09/2016,Project delivery costs – supplier services ,Policy Division ,CENTRE FOR GLOBAL EDUCATION live ,201469-104 ,"15,607.74",
DFID,DFID,13/09/2016,Aid Programme - Accountable Grant Payments ,Policy Division ,OVERSEAS DEVELOPMENT INSTITUTE ,202814-101 ,"366,371.12",
DFID,DFID,13/09/2016,Aid Programme - Accountable Grant Payments ,Policy Division ,OVERSEAS DEVELOPMENT INSTITUTE ,202814-101 ,"757,108.70",
DFID,DFID,06/09/2016,Aid Programme - Accountable Grant Payments ,Policy Division ,OVERSEAS DEVELOPMENT INSTITUTE ,202814-101 ,"331,370.48",
DFID,DFID,06/09/2016,Aid Programme - Accountable Grant Payments ,Policy Division ,OVERSEAS DEVELOPMENT INSTITUTE ,202814-101 ,"348,188.47",
DFID,DFID,12/09/2016,Postage Costs ,Group Operations ,ROYAL MAIL GROUP PLC ,201157-101 ,"2,200.00",
DFID,DFID,28/09/2016,Project delivery costs – supplier services ,West and Southern Africa ,PRICEWATERHOUSECOOPERS ,203161-104 ,"388,122.00",
DFID,DFID,28/09/2016,Project delivery costs – supplier services ,Asia  Caribbean and Overseas Territories ,PRICEWATERHOUSECOOPERS ,203964-101 ,"118,984.98",
DFID,DFID,16/09/2016,Project delivery costs – supplier services ,Asia  Caribbean and Overseas Territories ,PRICEWATERHOUSECOOPERS ,205093-103 ,"526,367.00",
DFID,DFID,27/09/2016,Project delivery costs – supplier services ,Asia  Caribbean and Overseas Territories ,PRICEWATERHOUSECOOPERS ,205093-103 ,"642,337.00",
DFID,DFID,28/09/2016,Project delivery costs – supplier services ,Economic Development Division ,PRICEWATERHOUSECOOPERS ,114178-104 ,"196,225.69",
DFID,DFID,28/09/2016,Project delivery costs – supplier services ,Economic Development Division ,PRICEWATERHOUSECOOPERS ,202939-103 ,"92,556.00",
DFID,DFID,07/09/2016,Project delivery costs – supplier services ,Economic Development Division ,PRICEWATERHOUSECOOPERS ,202648-102 ,"25,846.80",
DFID,DFID,19/09/2016,Project delivery costs – supplier services ,Economic Development Division ,PRICEWATERHOUSECOOPERS ,202648-102 ,"93,262.80",
DFID,DFID,19/09/2016,Project delivery costs – supplier services ,Economic Development Division ,PRICEWATERHOUSECOOPERS ,202648-102 ,"12,973.12",
DFID,DFID,02/09/2016,Project delivery costs – supplier services ,Economic Development Division ,PRICEWATERHOUSECOOPERS ,204250-101 ,"389,606.50",
DFID,DFID,27/09/2016,Project delivery costs – supplier services ,Economic Development Division ,PRICEWATERHOUSECOOPERS ,204250-101 ,"284,559.24",
DFID,DFID,29/09/2016,Project delivery costs – supplier services ,Research and Evidence Division ,PRICEWATERHOUSECOOPERS ,200822-103 ,"493,188.33",
DFID,DFID,29/09/2016,Project delivery costs – supplier services ,Research and Evidence Division ,PRICEWATERHOUSECOOPERS ,200822-103 ,"27,557.18",
DFID,DFID,28/09/2016,Project delivery costs – supplier services ,Research and Evidence Division ,PRICEWATERHOUSECOOPERS ,200822-103 ,"2,329.64",
DFID,DFID,28/09/2016,Project delivery costs – supplier services ,Research and Evidence Division ,PRICEWATERHOUSECOOPERS ,200822-103 ,"16,066.10",
DFID,DFID,28/09/2016,Project delivery costs – supplier services ,Research and Evidence Division ,PRICEWATERHOUSECOOPERS ,200822-103 ,"6,976.57",
DFID,DFID,28/09/2016,Project delivery costs – supplier services ,West and Southern Africa ,PRICEWATERHOUSECOOPERS ,203824-104 ,"60,000.00",
DFID,DFID,29/09/2016,Project delivery costs – supplier services ,Policy Division ,PRICEWATERHOUSECOOPERS ,114370-104 ,"63,321.97",
DFID,DFID,28/09/2016,Project delivery costs – supplier services ,Policy Division ,PRICEWATERHOUSECOOPERS ,114370-104 ,"493,188.33",
DFID,DFID,29/09/2016,Project delivery costs – supplier services ,Policy Division ,PRICEWATERHOUSECOOPERS ,114370-105 ,"2,329.64",
DFID,DFID,29/09/2016,Project delivery costs – supplier services ,Policy Division ,PRICEWATERHOUSECOOPERS ,114370-105 ,"16,066.10",
DFID,DFID,29/09/2016,Storage & Distribution costs ,West and Southern Africa ,PICKFORDS LTD ,101622-106 ,"1,593.40",
DFID,DFID,21/09/2016,Storage & Distribution costs ,Asia  Caribbean and Overseas Territories ,PICKFORDS LTD ,101624-101 ,"6,248.63",
DFID,DFID,06/09/2016,Storage & Distribution costs ,Asia  Caribbean and Overseas Territories ,PICKFORDS LTD ,101624-101 ,620.57,
DFID,DFID,06/09/2016,Storage & Distribution costs ,Asia  Caribbean and Overseas Territories ,PICKFORDS LTD ,101624-101 ,625.71,
DFID,DFID,06/09/2016,Storage & Distribution costs ,West and Southern Africa ,PICKFORDS LTD ,101631-101 ,"1,460.00",
DFID,DFID,09/09/2016,Storage & Distribution costs ,Asia  Caribbean and Overseas Territories ,PICKFORDS LTD ,101621-101 ,532.34,
DFID,DFID,09/09/2016,Storage & Distribution costs ,Asia  Caribbean and Overseas Territories ,PICKFORDS LTD ,101621-101 ,"3,131.43",
DFID,DFID,06/09/2016,Storage & Distribution costs ,Asia  Caribbean and Overseas Territories ,PICKFORDS LTD ,202403-101 ,555.00,
DFID,DFID,26/09/2016,Relocation costs ,West and Southern Africa ,PICKFORDS LTD ,101638-101 ,"1,554.80",
DFID,DFID,20/09/2016,Storage & Distribution costs ,Asia  Caribbean and Overseas Territories ,PICKFORDS LTD ,101624-101 ,"3,650.79",
DFID,DFID,21/09/2016,Storage & Distribution costs ,International Relations Division ,PICKFORDS LTD ,100262-101 ,"1,472.51",
DFID,DFID,07/09/2016,Storage & Distribution costs ,West and Southern Africa ,PICKFORDS LTD ,101637-101 ,537.83,
DFID,DFID,09/09/2016,Aid Programme - Accountable Grant Payments ,East and Central Africa ,POPULATION  SERVICES INTERNATIONAL ,113303-120 ,"776,319.00",
DFID,DFID,08/09/2016,Aid Programme - Accountable Grant Payments ,East and Central Africa ,POPULATION  SERVICES INTERNATIONAL ,113303-109 ,"774,553.00",
DFID,DFID,09/09/2016,Aid Programme - Accountable Grant Payments ,East and Central Africa ,POPULATION  SERVICES INTERNATIONAL ,113303-109 ,"324,906.00",
DFID,DFID,12/09/2016,Aid Programme - Accountable Grant Payments ,East and Central Africa ,POPULATION  SERVICES INTERNATIONAL ,113303-117 ,"103,568.37",
DFID,DFID,12/09/2016,Aid Programme - Accountable Grant Payments ,East and Central Africa ,POPULATION  SERVICES INTERNATIONAL ,113303-118 ,"40,129.59",
DFID,DFID,14/09/2016,Aid Programme - Accountable Grant Payments ,East and Central Africa ,POPULATION  SERVICES INTERNATIONAL ,202547-107 ,"12,312.56",
DFID,DFID,21/09/2016,Project delivery costs – supplier services ,Asia  Caribbean and Overseas Territories ,POPULATION  SERVICES INTERNATIONAL ,202413-105 ,"262,932.38",
DFID,DFID,30/09/2016,Aid Programme - Accountable Grant Payments ,Policy Division ,PRACTICAL ACTION (UK) ,203559-106 ,"150,388.00",
DFID,DFID,21/09/2016,Aid Programme - Accountable Grant Payments ,Policy Division ,PRACTICAL ACTION (UK) ,203559-106 ,"116,567.00",
DFID,DFID,20/09/2016,Aid Programme - Accountable Grant Payments ,Policy Division ,PRACTICAL ACTION (UK) ,203559-152 ,"16,204.78",
DFID,DFID,20/09/2016,Training - Course Fees ,West and Southern Africa ,QUADRILECT (BIFM) ,100152-116 ,"2,388.00",
DFID,DFID,20/09/2016,Training - Travel & Subsistence ,West and Southern Africa ,QUADRILECT (BIFM) ,100152-116 ,510.00,
DFID,DFID,02/09/2016,Postage Costs ,Group Operations ,ROYAL MAIL ,100106-101 ,"3,029.38",
DFID,DFID,09/09/2016,Recruitment costs ,Human Resources ,Cabinet Office RM Shared Services ,100269-117 ,"10,457.62",
DFID,DFID,29/09/2016,Aid Programme - Accountable Grant Payments ,Middle East and North Africa Division ,Supplier Name withheld ,204540-101 ,"4,270,160.00",
DFID,DFID,29/09/2016,Aid Programme - Accountable Grant Payments ,Middle East and North Africa Division ,Supplier Name withheld ,204540-102 ,"1,700,000.00",
DFID,DFID,02/09/2016,Aid Programme - Accountable Grant Payments ,East and Central Africa ,THE SAVE THE CHILDREN FUND ,203462-111 ,"578,909.00",
DFID,DFID,02/09/2016,Project delivery costs – supplier services ,West and Southern Africa ,THE SAVE THE CHILDREN FUND ,202637-104 ,"37,876.00",
DFID,DFID,08/09/2016,Project delivery costs – supplier services ,East and Central Africa ,THE SAVE THE CHILDREN FUND ,202891-101 ,"1,762,411.57",
DFID,DFID,16/09/2016,Aid Programme - Voluntary contributions ,Regional Directorate ,THE SAVE THE CHILDREN FUND ,204929-101 ,"255,939.00",
DFID,DFID,01/09/2016,Project delivery costs – supplier services ,West and Southern Africa ,THE SAVE THE CHILDREN FUND ,202623-116 ,"250,000.00",
DFID,DFID,01/09/2016,Project delivery costs – supplier services ,West and Southern Africa ,THE SAVE THE CHILDREN FUND ,202623-116 ,"290,000.00",
DFID,DFID,01/09/2016,Project delivery costs – supplier services ,West and Southern Africa ,THE SAVE THE CHILDREN FUND ,202623-116 ,"250,000.00",
DFID,DFID,01/09/2016,Project delivery costs – supplier services ,West and Southern Africa ,THE SAVE THE CHILDREN FUND ,202623-117 ,"30,000.00",
DFID,DFID,15/09/2016,Aid Programme - Accountable Grant Payments ,Research and Evidence Division ,THE SAVE THE CHILDREN FUND ,203705-129 ,"332,795.00",
DFID,DFID,21/09/2016,Project delivery costs � supplier services,Business Solutions Division Level ,HP Enterprise Services UK Ltd ,200002-166 ,"5,160.00",
DFID,DFID,05/09/2016,Aid Programme - Accountable Grant Payments ,Asia  Caribbean and Overseas Territories ,SAVE THE CHILDREN ,203101-101 ,"205,074.53",
DFID,DFID,05/09/2016,Aid Programme - Humanitarian Material Relief Assistance and Services ,Conflict  Humanitarian  Security & Stabilisation Division ,SAVE THE CHILDREN ,204118-102 ,"4,250,000.00",
DFID,DFID,06/09/2016,Project delivery costs – supplier services ,Policy Division ,Social Development Direct Ltd ,203245-106 ,"1,242.00",
DFID,DFID,29/09/2016,Project delivery costs – supplier services ,Middle East and North Africa Division ,Social Development Direct Ltd ,204485-101 ,"19,296.21",
DFID,DFID,16/09/2016,Project delivery costs – supplier services ,West and Southern Africa ,Social Development Direct Ltd ,203823-106 ,"76,789.08",
DFID,DFID,28/09/2016,Aid Programme - Partnership Programme Arrangements ,Policy Division ,RESTLESS DEVELOPMENT ,202545-101 ,"4,939.45",
DFID,DFID,23/09/2016,Project delivery costs – supplier services ,Group Operations ,SODEXHO PASS LTD ,204999-104 ,"1,467.88",
DFID,DFID,13/09/2016,Aid Programme - Accountable Grant Payments ,Policy Division ,Supplier Name withheld ,203559-154 ,"60,333.00",
DFID,DFID,14/09/2016,Aid Programme - Accountable Grant Payments ,Research and Evidence Division ,Supplier Name withheld ,203705-128 ,"523,631.00",
DFID,DFID,02/09/2016,Storage & Distribution costs ,Business Solutions Division Level ,TNT Express (UK) Ltd ,200001-101 ,"4,532.58",
DFID,DFID,28/09/2016,Storage & Distribution costs ,Business Solutions Division Level ,TNT Express (UK) Ltd ,200001-101 ,"6,525.74",
DFID,DFID,20/09/2016,Project delivery costs – supplier services ,Business Solutions Division Level ,TRUSTMARQUE SOLUTIONS LTD ,200002-228 ,"14,455.50",
DFID,DFID,21/09/2016,other information and communication technologies ,Business Solutions Division Level ,TRUSTMARQUE SOLUTIONS LTD ,200002-228 ,"4,069.51",
DFID,DFID,20/09/2016,Aid Programme - Voluntary contributions ,Middle East and North Africa Division ,UNICEF ,300059-101 ,"9,000,000.00",
DFID,DFID,29/09/2016,Aid Programme - Voluntary contributions ,Policy Division ,UNICEF ,204496-101 ,"3,000,000.00",
DFID,DFID,05/09/2016,Aid Programme - Accountable Grant Payments ,Policy Division ,Supplier Name withheld ,203559-145 ,"196,256.58",
DFID,DFID,21/09/2016,Aid Programme - Accountable Grant Payments ,Policy Division ,Supplier Name withheld ,203559-112 ,"80,150.00",
DFID,DFID,08/09/2016,Project delivery costs – supplier services ,Policy Division ,TROPICAL HEALTH AND EDUCATION TRUST ,202208-102 ,"2,924.51",
DFID,DFID,23/09/2016,Project delivery costs – supplier services ,Policy Division ,TROPICAL HEALTH AND EDUCATION TRUST ,202208-101 ,"101,262.31",
DFID,DFID,30/09/2016,Project delivery costs – supplier services ,Policy Division ,TROPICAL HEALTH AND EDUCATION TRUST ,202208-101 ,"83,648.15",
DFID,DFID,06/09/2016,Water charges ,Group Operations ,THAMES WATER UTILITIES LTD ,203717-101 ,582.58,
DFID,DFID,28/09/2016,Water charges ,Group Operations ,THAMES WATER UTILITIES LTD ,203717-101 ,694.05,
DFID,DFID,05/09/2016,Research and development costs - supplier services ,Research and Evidence Division ,Integrity Action ,204584-113 ,"15,228.00",
DFID,DFID,13/09/2016,Aid Programme - Accountable Grant Payments ,East and Central Africa ,THE MENTOR INITIATIVE ,113303-113 ,"613,551.00",
DFID,DFID,02/09/2016,Aid Programme - Voluntary contributions ,East and Central Africa ,UNDP CONTRIBUTIONS ACCOUNT ,205110-102 ,"625,000.00",
DFID,DFID,21/09/2016,Aid Programme - Voluntary contributions ,Asia  Caribbean and Overseas Territories ,Supplier Name withheld ,205076-101 ,"325,000.00",
DFID,DFID,28/09/2016,Aid Programme - Voluntary contributions ,Middle East and North Africa Division ,Supplier Name withheld ,204535-101 ,"5,000,000.00",
DFID,DFID,23/09/2016,Aid Programme - Voluntary contributions ,Middle East and North Africa Division ,Supplier Name withheld ,204546-101 ,"15,000,000.00",
DFID,DFID,27/09/2016,Aid Programme - Voluntary contributions ,Middle East and North Africa Division ,Supplier Name withheld ,204546-101 ,"3,000,000.00",
DFID,DFID,30/09/2016,Aid Programme - Voluntary contributions ,Conflict  Humanitarian  Security & Stabilisation Division ,Supplier Name withheld ,300266-105 ,"1,250,000.00",
DFID,DFID,20/09/2016,Aid Programme - Voluntary contributions ,Middle East and North Africa Division ,Supplier Name withheld ,204397-104 ,"590,827.00",
DFID,DFID,19/09/2016,Aid Programme - Voluntary contributions ,Asia  Caribbean and Overseas Territories ,Supplier Name withheld ,300251-101 ,"500,000.00",
DFID,DFID,01/09/2016,Aid Programme - Joint programme contribution ,West and Southern Africa ,Supplier Name withheld ,203567-102 ,"62,500.00",
DFID,DFID,30/09/2016,Aid Programme - Voluntary contributions ,West and Southern Africa ,Supplier Name withheld ,203428-102 ,"347,000.00",
DFID,DFID,16/09/2016,Aid Programme - Voluntary contributions ,Middle East and North Africa Division ,Supplier Name withheld ,204515-101 ,"11,500,000.00",
DFID,DFID,01/09/2016,Aid Programme - Joint programme contribution ,West and Southern Africa ,Supplier Name withheld ,202641-101 ,"4,000,000.00",
DFID,DFID,29/09/2016,Aid Programme - Voluntary contributions ,Asia  Caribbean and Overseas Territories ,Supplier Name withheld ,205268-103 ,"1,691,340.00",
DFID,DFID,01/09/2016,Aid Programme - Refugee Relief Payments ,East and Central Africa ,Supplier Name withheld ,205032-103 ,"1,500,000.00",
DFID,DFID,19/09/2016,Aid Programme - Voluntary contributions ,West and Southern Africa ,Supplier Name withheld ,202909-108 ,"2,390,000.00",
DFID,DFID,28/09/2016,Aid Programme - Voluntary contributions ,Middle East and North Africa Division ,Supplier Name withheld ,300031-101 ,"5,307,069.00",
DFID,DFID,15/09/2016,Aid Programme - Voluntary contributions ,West and Southern Africa ,Supplier Name withheld ,300036-106 ,"5,700,000.00",
DFID,DFID,15/09/2016,Aid Programme - Voluntary contributions ,Asia  Caribbean and Overseas Territories ,Supplier Name withheld ,300306-101 ,"2,526,015.23",
DFID,DFID,06/09/2016,Aid Programme - Voluntary contributions ,West and Southern Africa ,Supplier Name withheld ,202345-102 ,"973,489.00",
DFID,DFID,02/09/2016,Aid Programme - Refugee Relief Payments ,East and Central Africa ,Supplier Name withheld ,203462-102 ,"1,927,779.00",
DFID,DFID,13/09/2016,Aid Programme - Voluntary contributions ,Asia  Caribbean and Overseas Territories ,Supplier Name withheld ,300306-102 ,"1,000,000.00",
DFID,DFID,12/09/2016,Aid Programme - Core contributions ,West and Southern Africa ,Supplier Name withheld ,202559-104 ,"727,750.00",
DFID,DFID,29/09/2016,Aid Programme - Voluntary contributions ,West and Southern Africa ,Supplier Name withheld ,300067-104 ,"2,810,000.00",
DFID,DFID,28/09/2016,Project delivery costs – supplier services ,Policy Division ,VOLUNTARY SERVICE OVERSEAS ,204894-101 ,"1,186,842.29",
DFID,DFID,21/09/2016,Aid Programme - Accountable Grant Payments ,Economic Development Division ,VOLUNTARY SERVICE OVERSEAS ,203800-102 ,"56,529.00",
DFID,DFID,29/09/2016,Telephone Usage & services ,Business Solutions Division Level ,VODAFONE CORPORATE ,200002-170 ,"18,963.50",
DFID,DFID,29/09/2016,Telephone Usage & services ,Business Solutions Division Level ,VODAFONE CORPORATE ,200002-170 ,"5,004.62",
DFID,DFID,20/09/2016,Aid Programme - Accountable Grant Payments ,Policy Division ,UNICEF UK ,203559-118 ,"303,439.00",
DFID,DFID,27/09/2016,Data Network - land lines ,Business Solutions Division Level ,VERIZON UK LIMITED ,200002-126 ,"3,317.88",
DFID,DFID,06/09/2016,Aid Programme - Accountable Grant Payments ,East and Central Africa ,WORLD VISION ,202619-104 ,"16,391.00",
DFID,DFID,09/09/2016,Aid Programme - Accountable Grant Payments ,Economic Development Division ,WORLD VISION ,201394-115 ,"31,993.00",
DFID,DFID,14/09/2016,Aid Programme - Accountable Grant Payments ,Economic Development Division ,WORLD VISION ,201394-115 ,"850,634.00",
DFID,DFID,30/09/2016,Aid Programme - Accountable Grant Payments ,West and Southern Africa ,WORLD VISION ,300298-102 ,"1,744,480.00",
DFID,DFID,01/09/2016,Aid Programme - Accountable Grant Payments ,West and Southern Africa ,WORLD VISION ,205234-103 ,"1,900,000.00",
DFID,DFID,09/09/2016,Aid Programme - Accountable Grant Payments ,Policy Division ,WATERAID ,203559-157 ,"136,202.00",
DFID,DFID,15/09/2016,Repairs  Maint  Alter - Removal & waste disposal services ,Group Operations ,WILLIAM TRACEY LIMITED ,100106-101 ,556.72,
DFID,DFID,21/09/2016,Air fares ,Asia  Caribbean and Overseas Territories ,Saimon Overseas Ltd ,101603-101 ,"2,670.89",
DFID,DFID,27/09/2016,Air fares ,Asia  Caribbean and Overseas Territories ,Saimon Overseas Ltd ,101603-101 ,"3,491.05",
DFID,DFID,07/09/2016,Air fares ,Asia  Caribbean and Overseas Territories ,Saimon Overseas Ltd ,101603-102 ,"1,502.77",
DFID,DFID,26/09/2016,Air fares ,East and Central Africa ,Saimon Overseas Ltd ,202596-108 ,"1,691.64",
DFID,DFID,16/09/2016,Medical/Health Services ,West and Southern Africa ,MASM ,101618-101 ,"4,707.32",
DFID,DFID,23/09/2016,Project delivery costs – supplier services ,West and Southern Africa ,Deloitte ,202214-108 ,"52,607.55",
DFID,DFID,21/09/2016,Air fares ,West and Southern Africa ,Mukwa Travel and Tours ,101631-101 ,671.59,
DFID,DFID,21/09/2016,Air fares ,West and Southern Africa ,Mukwa Travel and Tours ,101637-101 ,"1,153.24",
DFID,DFID,21/09/2016,Air fares ,West and Southern Africa ,Mukwa Travel and Tours ,101637-102 ,700.23,
DFID,DFID,21/09/2016,Air fares ,West and Southern Africa ,Mukwa Travel and Tours ,101637-101 ,685.91,
DFID,DFID,21/09/2016,Air fares ,West and Southern Africa ,Mukwa Travel and Tours ,101637-101 ,515.56,
DFID,DFID,06/09/2016,Hotels - Accommodation only ,West and Southern Africa ,Southern Sun Ridgeway ,101637-101 ,605.78,
DFID,DFID,23/09/2016,Air fares ,Asia  Caribbean and Overseas Territories ,Jaya Travels & Tours Ltd ,101621-101 ,"1,619.14",
DFID,DFID,23/09/2016,Air fares ,Asia  Caribbean and Overseas Territories ,Jaya Travels & Tours Ltd ,101621-101 ,"1,277.75",
DFID,DFID,23/09/2016,Air fares ,Asia  Caribbean and Overseas Territories ,Jaya Travels & Tours Ltd ,101621-101 ,527.14,
DFID,DFID,23/09/2016,Air fares ,Asia  Caribbean and Overseas Territories ,Jaya Travels & Tours Ltd ,101621-108 ,987.23,
DFID,DFID,23/09/2016,Air fares ,Asia  Caribbean and Overseas Territories ,Jaya Travels & Tours Ltd ,101621-108 ,"3,156.56",
DFID,DFID,23/09/2016,Air fares ,Asia  Caribbean and Overseas Territories ,Jaya Travels & Tours Ltd ,101621-108 ,943.03,
DFID,DFID,14/09/2016,Recruitment costs ,Asia  Caribbean and Overseas Territories ,Thompson Nepal Pvt Ltd ,101621-101 ,967.88,
DFID,DFID,27/09/2016,Hotels - Accommodation only ,West and Southern Africa ,Accra City Hotel ,101613-101 ,537.35,
DFID,DFID,30/09/2016,Hotels - Accommodation only ,East and Central Africa ,Sheraton Hotel ,101635-101 ,701.39,
DFID,DFID,21/09/2016,Hotels - Accommodation only ,East and Central Africa ,Sheraton Hotel ,101635-101 ,919.81,
DFID,DFID,06/09/2016,Hotels - Accommodation only ,East and Central Africa ,Sheraton Hotel ,202594-101 ,859.39,
DFID,DFID,14/09/2016,Hotels - Accommodation only ,Internal Audit ,Sheraton Hotel ,100121-101 ,"1,686.44",
DFID,DFID,29/09/2016,Hotels - Accommodation only ,Internal Audit ,Sheraton Hotel ,100121-101 ,"1,681.99",
DFID,DFID,14/09/2016,Hotels - Accommodation only ,Internal Audit ,Sheraton Hotel ,100121-101 ,"1,681.99",
DFID,DFID,14/09/2016,Hotels - Accommodation only ,Internal Audit ,Sheraton Hotel ,100121-101 ,"1,681.99",
DFID,DFID,14/09/2016,Hotels - Accommodation only ,Internal Audit ,Sheraton Hotel ,100121-101 ,"1,681.99",
DFID,DFID,23/09/2016,Air fares ,East and Central Africa ,Simbatravelcare Limited ,101635-101 ,"1,049.19",
DFID,DFID,27/09/2016,Training - Travel & Subsistence ,East and Central Africa ,Simbatravelcare Limited ,101635-101 ,"1,138.78",
DFID,DFID,22/09/2016,Air fares ,Asia  Caribbean and Overseas Territories ,Simbatravelcare Limited ,101605-101 ,"1,257.49",
DFID,DFID,22/09/2016,Air fares ,Conflict  Humanitarian  Security & Stabilisation Division ,Simbatravelcare Limited ,205280-101 ,"1,458.11",
DFID,DFID,30/09/2016,Air fares ,East and Central Africa ,Simbatravelcare Limited ,101635-101 ,737.89,
DFID,DFID,29/09/2016,Air fares ,East and Central Africa ,WFP Somalia ,101630-101 ,"4,861.11",
DFID,DFID,27/09/2016,Hotels - Accommodation only ,East and Central Africa ,Fairview Hotel ,101616-101 ,"1,234.11",
DFID,DFID,23/09/2016,Research and development costs - supplier services ,Research and Evidence Division ,The Population Council ,204329-103 ,"93,321.00",
DFID,DFID,27/09/2016,Aid Programme - Accountable Grant Payments ,West and Southern Africa ,The Population Council ,202344-102 ,"174,123.00",
DFID,DFID,29/09/2016,Research and development costs - supplier services ,Research and Evidence Division ,The Population Council ,201398-103 ,"384,608.00",
DFID,DFID,07/09/2016,Fund monies to be managed and dispersed by the supplier ,East and Central Africa ,The Population Council ,202874-102 ,"95,141.00",
DFID,DFID,21/09/2016,Hotels - Accommodation only ,West and Southern Africa ,Hotel Cardoso S A R L ,101620-101 ,"1,377.98",
DFID,DFID,12/09/2016,Conferences  Seminars & Meeting/Event Resource ,West and Southern Africa ,Hotel VIP Maputo ,101620-102 ,747.26,
DFID,DFID,28/09/2016,Training Providers/Facilitation Services ,West and Southern Africa ,Hotel VIP Maputo ,101620-102 ,853.81,
DFID,DFID,06/09/2016,Repairs  Maint  Alter - Property & Constrct. Services ,West and Southern Africa ,Pekolyn Tech. Services ,101622-108 ,692.84,
DFID,DFID,06/09/2016,Repairs  Maint  Alter - Property & Constrct. Services ,West and Southern Africa ,Pekolyn Tech. Services ,101622-108 ,"1,659.19",
DFID,DFID,20/09/2016,Repairs  Maint  Alter - Property & Constrct. Services ,West and Southern Africa ,Pekolyn Tech. Services ,101622-108 ,906.64,
DFID,DFID,27/09/2016,Repairs  Maint  Alter - Property & Constrct. Services ,West and Southern Africa ,Pekolyn Tech. Services ,101622-108 ,761.88,
DFID,DFID,16/09/2016,Vehicle Petrol & Oil ,West and Southern Africa ,British  High Commission Abuja ,101622-108 ,795.70,
DFID,DFID,27/09/2016,Courier & Bag Services ,West and Southern Africa ,British  High Commission Abuja ,101622-108 ,"6,631.61",
DFID,DFID,27/09/2016,Courier & Bag Services ,West and Southern Africa ,British  High Commission Abuja ,100152-117 ,576.66,
DFID,DFID,27/09/2016,Repairs  Maint  Alter - Property & Constrct. Services ,West and Southern Africa ,Fracham Company ,101622-108 ,542.63,
DFID,DFID,20/09/2016,Repairs  Maint  Alter - Property & Constrct. Services ,West and Southern Africa ,Fracham Company ,101622-108 ,607.75,
DFID,DFID,12/09/2016,Hotels - Accommodation only ,West and Southern Africa ,Supplier Name withheld ,101622-108 ,752.32,
DFID,DFID,06/09/2016,Hotels - Accommodation only ,West and Southern Africa ,Supplier Name withheld ,101622-108 ,503.00,
DFID,DFID,07/09/2016,Repairs  Maint  Alter - Property & Constrct. Services ,West and Southern Africa ,Clemto Investments Ltd ,101622-108 ,"1,886.26",
DFID,DFID,06/09/2016,Hotels - Accommodation only ,West and Southern Africa ,Supplier Name withheld ,101622-108 ,"1,328.61",
DFID,DFID,20/09/2016,Cleaning Costs ,West and Southern Africa ,Sparklean Services Nig Ltd ,100152-117 ,888.85,
DFID,DFID,20/09/2016,Cleaning Costs ,West and Southern Africa ,Sparklean Services Nig Ltd ,101622-108 ,"3,166.23",
DFID,DFID,06/09/2016,Recruitment costs ,West and Southern Africa ,This Day Newspapers ,101622-106 ,"1,428.30",
DFID,DFID,14/09/2016,Project delivery costs – supplier services ,Asia  Caribbean and Overseas Territories ,ACCESS DEVELOPMENT SERVICES ,114293-103 ,"9,006.76",
DFID,DFID,08/09/2016,Project delivery costs – supplier services ,Policy Division ,Supplier Name withheld ,202921-103 ,"108,220.00",
DFID,DFID,21/09/2016,Research and development costs - supplier services ,Research and Evidence Division ,Supplier Name withheld ,203529-106 ,"649,923.48",
DFID,DFID,28/09/2016,Aid Programme - Voluntary contributions ,Middle East and North Africa Division ,UN OCHA ,204530-101 ,"3,000,000.00",
DFID,DFID,28/09/2016,Aid Programme - Voluntary contributions ,Middle East and North Africa Division ,UN OCHA ,300020-101 ,"30,000,000.00",
DFID,DFID,15/09/2016,Aid Programme - Voluntary contributions ,Middle East and North Africa Division ,UN OCHA ,204016-105 ,"300,000.00",
DFID,DFID,20/09/2016,Computer Software Licenses ,Business Solutions Division Level ,SOFTWARE BOX LTD (SBL) ,200002-187 ,618.24,
DFID,DFID,30/09/2016,Computer Consumables ,Business Solutions Division Level ,SOFTWARE BOX LTD (SBL) ,200002-153 ,"3,189.50",
DFID,DFID,19/09/2016,Aid Programme - Voluntary contributions ,Asia  Caribbean and Overseas Territories ,FAO ,203264-104 ,"511,830.00",
DFID,DFID,19/09/2016,Aid Programme - Voluntary contributions ,Asia  Caribbean and Overseas Territories ,FAO ,203264-106 ,"488,170.00",
DFID,DFID,01/09/2016,Aid Programme - Humanitarian Material Relief Assistance and Services ,West and Southern Africa ,Supplier Name withheld ,205161-103 ,"3,750,000.00",
DFID,DFID,14/09/2016,Aid Programme - Trust Funds contributions ,East and Central Africa ,Supplier Name withheld ,202580-104 ,"534,400.00",
DFID,DFID,30/09/2016,Aid Programme - Refugee Relief Payments ,East and Central Africa ,Supplier Name withheld ,205032-102 ,"2,000,000.00",
DFID,DFID,28/09/2016,Aid Programme - Core contributions ,West and Southern Africa ,Supplier Name withheld ,205161-106 ,"208,249.00",
DFID,DFID,15/09/2016,Aid Programme - Humanitarian Material Relief Assistance and Services ,East and Central Africa ,Supplier Name withheld ,205256-102 ,"15,000,000.00",
DFID,DFID,07/09/2016,Aid Programme - Voluntary contributions ,Asia  Caribbean and Overseas Territories ,Supplier Name withheld ,202660-123 ,"1,200,000.00",
DFID,DFID,07/09/2016,Aid Programme - Core contributions ,West and Southern Africa ,Supplier Name withheld ,205161-106 ,"22,000,000.00",
DFID,DFID,21/09/2016,Aid Programme - Voluntary contributions ,East and Central Africa ,Supplier Name withheld ,204019-101 ,"14,860,000.00",
DFID,DFID,20/09/2016,Aid Programme - Voluntary contributions ,East and Central Africa ,Supplier Name withheld ,204019-117 ,"2,500,000.00",
DFID,DFID,20/09/2016,Aid Programme - Voluntary contributions ,East and Central Africa ,Supplier Name withheld ,204019-133 ,"4,000,000.00",
DFID,DFID,06/09/2016,Aid Programme - Refugee Relief Payments ,East and Central Africa ,Supplier Name withheld ,203462-102 ,"2,500,000.00",
DFID,DFID,27/09/2016,Aid Programme - Accountable Grant Payments ,East and Central Africa ,SOLIDARITES INTERNATIONAL ,202619-113 ,"243,778.83",
DFID,DFID,22/09/2016,Aid Programme - Accountable Grant Payments ,East and Central Africa ,SOLIDARITES INTERNATIONAL ,204852-105 ,"385,654.00",
DFID,DFID,13/09/2016,Research and development costs - supplier services ,Research and Evidence Division ,International Food PolicyResearch Institute (IFRI ,201448-104 ,"203,928.00",
DFID,DFID,08/09/2016,Data Network - land lines ,Business Solutions Division Level ,KUBE NETWORKS LTD ,200002-130 ,"1,080.54",
DFID,DFID,22/09/2016,Project delivery costs – supplier services ,West and Southern Africa ,IPA-International Procurement Agency (BV) ,203714-103 ,"2,303.12",
DFID,DFID,19/09/2016,DFID Purchased Relief Supplies ,West and Southern Africa ,IPA-International Procurement Agency (BV) ,203714-103 ,"46,062.45",
DFID,DFID,29/09/2016,DFID Purchased Relief Supplies ,East and Central Africa ,IPA-International Procurement Agency (BV) ,204861-101 ,"1,842.25",
DFID,DFID,29/09/2016,Project delivery costs – supplier services ,East and Central Africa ,IPA-International Procurement Agency (BV) ,204861-101 ,"2,537.82",
DFID,DFID,20/09/2016,DFID Purchased Relief Supplies ,East and Central Africa ,IPA-International Procurement Agency (BV) ,204861-101 ,"2,537.82",
DFID,DFID,30/09/2016,DFID Purchased Relief Supplies ,East and Central Africa ,IPA-International Procurement Agency (BV) ,203109-111 ,"13,978.69",
DFID,DFID,14/09/2016,DFID Purchased Relief Supplies ,Policy Division ,IPA-International Procurement Agency (BV) ,203148-102 ,"7,407.28",
DFID,DFID,22/09/2016,DFID Purchased Relief Supplies ,Policy Division ,IPA-International Procurement Agency (BV) ,203148-102 ,"5,742.79",
DFID,DFID,30/09/2016,DFID Purchased Relief Supplies ,Policy Division ,IPA-International Procurement Agency (BV) ,203148-102 ,"3,653.72",
DFID,DFID,19/09/2016,DFID Purchased Relief Supplies ,West and Southern Africa ,IPA-International Procurement Agency (BV) ,202722-103 ,"348,453.09",
DFID,DFID,02/09/2016,Aid Programme - Accountable Grant Payments ,East and Central Africa ,ACTIONAID (UGANDA) INTERNATIONAL ,204626-105 ,"333,981.44",
DFID,DFID,30/09/2016,Project delivery costs – supplier services ,Asia  Caribbean and Overseas Territories ,MARK MCGIVERN ,202403-101 ,"3,300.00",
DFID,DFID,22/09/2016,Project delivery costs – supplier services ,Asia  Caribbean and Overseas Territories ,Sustainable Development Associates ,113287-102 ,"1,602.13",
DFID,DFID,20/09/2016,Aid Programme - Accountable Grant Payments ,Asia  Caribbean and Overseas Territories ,Population Services Internation (usa) ,202759-101 ,"326,467.27",
DFID,DFID,15/09/2016,Project delivery costs – supplier services ,West and Southern Africa ,ABT ASSOCIATES INC ,104229-101 ,"509,672.61",
DFID,DFID,20/09/2016,Project delivery costs – supplier services ,Policy Division ,KPMG EAST AFRICA LTD ,202921-102 ,"527,460.00",
DFID,DFID,19/09/2016,Project delivery costs – supplier services ,Policy Division ,KPMG EAST AFRICA LTD ,201724-102 ,"38,646.00",
DFID,DFID,21/09/2016,Project delivery costs – supplier services ,Policy Division ,KPMG EAST AFRICA LTD ,201724-102 ,"66,004.96",
DFID,DFID,21/09/2016,Project delivery costs – supplier services ,Policy Division ,KPMG EAST AFRICA LTD ,201724-102 ,"9,312.97",
DFID,DFID,16/09/2016,Research and development costs - supplier services ,Research and Evidence Division ,LONDON SCHOOL OF ECONOMICS AND POLITICAL SCIENCE ,201006-104 ,"115,712.41",
DFID,DFID,06/09/2016,Project delivery costs – supplier services ,East and Central Africa ,UPPER QUARTILE ,203871-108 ,"61,089.00",
DFID,DFID,21/09/2016,Project delivery costs – supplier services ,West and Southern Africa ,UPPER QUARTILE ,201625-107 ,"71,739.20",
DFID,DFID,08/09/2016,Aid Programme - Accountable Grant Payments ,Policy Division ,UNITED NATIONS FOUNDATION ,204202-101 ,"102,167.00",
DFID,DFID,01/09/2016,Aid Programme - Accountable Grant Payments ,Policy Division ,UNITED NATIONS FOUNDATION ,204202-103 ,"2,278,783.00",
DFID,DFID,06/09/2016,Air fares ,West and Southern Africa ,Premier Travel ,101638-101 ,"1,111.36",
DFID,DFID,20/09/2016,Hotels - Accommodation only,West and Southern Africa ,Golden Tulip Kumasi City ,101613-101 ,909.88,
DFID,DFID,02/09/2016,Aid Programme - Voluntary contributions ,East and Central Africa ,Supplier Name withheld ,205067-102 ,"772,748.00",
DFID,DFID,21/09/2016,Aid Programme - Voluntary contributions ,Asia  Caribbean and Overseas Territories ,Supplier Name withheld ,300250-104 ,"830,965.00",
DFID,DFID,02/09/2016,Aid Programme - Voluntary contributions ,Middle East and North Africa Division ,Supplier Name withheld ,205073-101 ,"450,000.00",
DFID,DFID,22/09/2016,Aid Programme - Voluntary contributions ,West and Southern Africa ,Supplier Name withheld ,202721-102 ,"688,870.00",
DFID,DFID,27/09/2016,Project delivery costs – supplier services ,West and Southern Africa ,Cambridge  Education Limited ,104200-101 ,"1,052,543.79",
DFID,DFID,29/09/2016,Aid Programme - Humanitarian Material Relief Assistance and Services ,Middle East and North Africa Division ,Supplier Name withheld ,205094-101 ,"4,000,000.00",
DFID,DFID,30/09/2016,Aid Programme - Voluntary contributions ,Middle East and North Africa Division ,Supplier Name withheld ,204536-102 ,"1,000,000.00",
DFID,DFID,30/09/2016,Aid Programme - Voluntary contributions ,Middle East and North Africa Division ,Supplier Name withheld ,204536-103 ,"3,000,000.00",
DFID,DFID,02/09/2016,Aid Programme - Refugee Relief Payments ,East and Central Africa ,Supplier Name withheld ,205032-101 ,"3,000,000.00",
DFID,DFID,28/09/2016,Aid Programme - Voluntary contributions ,East and Central Africa ,Supplier Name withheld ,205116-101 ,"4,000,000.00",
DFID,DFID,21/09/2016,Aid Programme - Joint programme contribution ,East and Central Africa ,Supplier Name withheld ,300280-101 ,"5,000,000.00",
DFID,DFID,15/09/2016,Aid Programme - Voluntary contributions ,Conflict  Humanitarian  Security & Stabilisation Division ,Supplier Name withheld ,205274-101 ,"1,187,051.00",
DFID,DFID,09/09/2016,Project delivery costs – supplier services ,Economic Development Division ,KPMG LLP ,204255-101 ,"70,823.79",
DFID,DFID,27/09/2016,Project delivery costs – supplier services ,Economic Development Division ,KPMG LLP ,202647-101 ,"213,153.60",
DFID,DFID,28/09/2016,Project delivery costs – supplier services ,Economic Development Division ,KPMG LLP ,202647-101 ,"12,312.00",
DFID,DFID,28/09/2016,Project delivery costs – supplier services ,Economic Development Division ,KPMG LLP ,202647-101 ,"43,444.80",
DFID,DFID,15/09/2016,Aid Programme - Pooled/Basket funding ,Research and Evidence Division ,Supplier Name withheld ,201900-106 ,"86,800.00",
DFID,DFID,27/09/2016,Aid Programme - Joint programme contribution ,Policy Division ,Supplier Name withheld ,204700-101 ,"2,500,000.00",
DFID,DFID,16/09/2016,Aid Programme - Joint programme contribution ,East and Central Africa ,The World  Bank IBRD ,203961-112 ,"60,738.37",
DFID,DFID,06/09/2016,Subscriptions ,Communications Division ,THE PRESS ASSOCIATION ,100197-101 ,607.92,
DFID,DFID,06/09/2016,Subscriptions ,Communications Division ,THE PRESS ASSOCIATION ,100197-101 ,607.92,
DFID,DFID,08/09/2016,Aid Programme - Accountable Grant Payments ,West and Southern Africa ,SEARCH FOR COMMON GROUND ,202416-114 ,"300,000.00",
DFID,DFID,15/09/2016,Project delivery costs – supplier services ,Asia  Caribbean and Overseas Territories ,BMB MOTT  MACDONALD ,107480-101 ,"92,390.57",
DFID,DFID,20/09/2016,Project delivery costs – supplier services ,Asia  Caribbean and Overseas Territories ,BMB MOTT  MACDONALD ,107480-101 ,"85,315.50",
DFID,DFID,16/09/2016,Project delivery costs – supplier services ,Asia  Caribbean and Overseas Territories ,IPE Global Ltd. ,114040-101 ,"97,541.86",
DFID,DFID,12/09/2016,Project delivery costs – supplier services ,Asia  Caribbean and Overseas Territories ,IPE Global Ltd. ,114040-101 ,"97,541.86",
DFID,DFID,15/09/2016,Project delivery costs – supplier services ,Asia  Caribbean and Overseas Territories ,IPE Global Ltd. ,114040-101 ,"73,156.10",
DFID,DFID,16/09/2016,Project delivery costs – supplier services ,Asia  Caribbean and Overseas Territories ,IPE Global Ltd. ,114040-101 ,"85,349.56",
DFID,DFID,14/09/2016,Project delivery costs – supplier services ,Asia  Caribbean and Overseas Territories ,IPE Global Ltd. ,114040-101 ,"97,541.86",
DFID,DFID,12/09/2016,Project delivery costs – supplier services ,Asia  Caribbean and Overseas Territories ,IPE Global Ltd. ,114040-101 ,"73,156.10",
DFID,DFID,13/09/2016,Project delivery costs – supplier services ,Policy Division ,IPE Global Ltd. ,202208-102 ,"5,866.90",
DFID,DFID,09/09/2016,Project delivery costs – supplier services ,Asia  Caribbean and Overseas Territories ,IPE Global Ltd. ,204623-113 ,"94,028.50",
DFID,DFID,23/09/2016,Project delivery costs – supplier services ,Asia  Caribbean and Overseas Territories ,IPE Global Ltd. ,204623-113 ,"18,805.50",
DFID,DFID,20/09/2016,Project delivery costs – supplier services ,Asia  Caribbean and Overseas Territories ,IPE Global Ltd. ,203217-101 ,"36,537.80",
DFID,DFID,20/09/2016,Project delivery costs – supplier services ,Asia  Caribbean and Overseas Territories ,IPE Global Ltd. ,203217-101 ,"6,067.53",
DFID,DFID,12/09/2016,Project delivery costs – supplier services ,Asia  Caribbean and Overseas Territories ,IPE Global Ltd. ,203217-101 ,"55,955.57",
DFID,DFID,12/09/2016,Project delivery costs – supplier services ,Asia  Caribbean and Overseas Territories ,IPE Global Ltd. ,203217-101 ,"2,488.98",
DFID,DFID,14/09/2016,Project delivery costs – supplier services ,East and Central Africa ,IPE Global Ltd. ,204957-102 ,"11,663.29",
DFID,DFID,14/09/2016,Project delivery costs – supplier services ,East and Central Africa ,IPE Global Ltd. ,204957-102 ,"11,663.29",
DFID,DFID,08/09/2016,Aid Programme - Core contributions ,Research and Evidence Division ,ICRISAT ,202108-108 ,"129,538.00",
DFID,DFID,06/09/2016,Repairs  Maint  Alter - Removal & waste disposal services ,Group Operations ,BYWATERS ,203717-101 ,"4,201.14",
DFID,DFID,15/09/2016,Repairs  Maint  Alter - Removal & waste disposal services ,Group Operations ,BYWATERS ,203717-101 ,"4,954.92",
DFID,DFID,14/09/2016,Contract & Agency Staff ,Group Operations ,Michael Page Int. Recruitment Ltd ,100270-106 ,"1,582.02",
DFID,DFID,28/09/2016,Contract & Agency Staff ,Group Operations ,Michael Page Int. Recruitment Ltd ,100270-106 ,"1,294.38",
DFID,DFID,09/09/2016,Aid Programme - Poverty Reduction Budget Support ,West and Southern Africa ,Ministry of Education (Zambia) Financial Support for the 2013 Education Sector Budget Support ,203001-101 ,"100,000.00",
DFID,DFID,07/09/2016,Aid Programme - Voluntary contributions ,West and Southern Africa ,Supplier Name withheld ,205161-102 ,"29,000,000.00",
DFID,DFID,21/09/2016,Aid Programme - Voluntary contributions ,Asia  Caribbean and Overseas Territories ,Supplier Name withheld ,203904-103 ,"2,500,000.00",
DFID,DFID,12/09/2016,Project delivery costs – supplier services ,Policy Division ,Burt Perrin ,202628-103 ,"9,039.67",
DFID,DFID,07/09/2016,Aid Programme - Accountable Grant Payments ,East and Central Africa ,EISA ,204458-108 ,"185,976.07",
DFID,DFID,07/09/2016,Aid Programme - Accountable Grant Payments ,Policy Division ,The Carter Center ,204938-101 ,"500,000.00",
DFID,DFID,30/09/2016,Aid Programme - Accountable Grant Payments ,West and Southern Africa ,The Carter Center ,105844-107 ,"116,835.00",
DFID,DFID,08/09/2016,Aid Programme - Accountable Grant Payments ,Middle East and North Africa Division ,Supplier Name withheld ,204520-103 ,"742,942.00",
DFID,DFID,30/09/2016,Aid Programme - Accountable Grant Payments ,Middle East and North Africa Division ,Supplier Name withheld ,204520-101 ,"3,017,145.00",
DFID,DFID,16/09/2016,Aid Programme - Accountable Grant Payments ,East and Central Africa ,Supplier Name withheld ,202994-103 ,"172,185.00",
DFID,DFID,15/09/2016,Aid Programme - Accountable Grant Payments ,West and Southern Africa ,Supplier Name withheld ,205182-103 ,"638,974.00",
DFID,DFID,04/09/2016,Project delivery costs – supplier services ,West and Southern Africa ,Crown Agents Bank ,200469-110 ,"138,111.12",
DFID,DFID,30/09/2016,Project delivery costs – supplier services ,West and Southern Africa ,Crown Agents Bank ,200469-110 ,"415,870.16",
DFID,DFID,15/09/2016,Project delivery costs – supplier services ,Asia  Caribbean and Overseas Territories ,Crown Agents Bank ,201645-105 ,"637,020.47",
DFID,DFID,29/09/2016,Project delivery costs – supplier services ,Middle East and North Africa Division ,Crown Agents Bank ,204061-101 ,"696,348.76",
DFID,DFID,06/09/2016,Project delivery costs – supplier services ,Middle East and North Africa Division ,Crown Agents Bank ,204061-101 ,"1,090,003.70",
DFID,DFID,12/09/2016,Aid Programme - Core contributions ,Research and Evidence Division ,Medicines for Malaria Venture ,204066-103 ,"2,000,000.00",
DFID,DFID,30/09/2016,Aid Programme - Strategic Grant Arrangement payments ,Research and Evidence Division ,WELLCOME TRUST ,204571-110 ,"284,593.00",
DFID,DFID,29/09/2016,Aid Programme - Accountable Grant Payments ,East and Central Africa ,Twaweza East Africa ,204436-101 ,"1,000,000.00",
DFID,DFID,13/09/2016,Training Providers/Facilitation Services ,Communications Division ,Department for Work and Pensions ,100138-101 ,"1,087.00",
DFID,DFID,28/09/2016,Aid Programme - Accountable Grant Payments ,West and Southern Africa ,Fondation Hirondelle ,204889-105 ,"39,222.00",
DFID,DFID,21/09/2016,Project delivery costs – supplier services ,West and Southern Africa ,ECORYS UK Ltd. ,204899-101 ,"55,462.14",
DFID,DFID,19/09/2016,Aid Programme - Core contributions ,Research and Evidence Division ,BILL & MELINDA GATES FOUNDATION (USD) ,202044-103 ,"914,537.99",
DFID,DFID,23/09/2016,Aid Programme - Accountable Grant Payments ,Economic Development Division ,Consumer Unity & Trust Society ,203299-101 ,"21,339.00",
DFID,DFID,28/09/2016,Hotels - Accommodation only ,East and Central Africa ,Southern Sun Hotels(T) Ltd (USD) ,101634-101 ,658.95,
DFID,DFID,21/09/2016,Aid Programme - Joint programme contribution ,Research and Evidence Division ,Engineering & Physical Sciences Research Council ,203781-106 ,"319,426.98",
DFID,DFID,21/09/2016,Aid Programme - Accountable Grant Payments ,West and Southern Africa ,Southern Africa Trust ,205016-101 ,"935,008.34",
DFID,DFID,20/09/2016,Contract & Agency Staff ,Business Solutions Division Level ,Capita Business Serivces Ltd ,200001-101 ,"11,016.00",
DFID,DFID,29/09/2016,Training - Course Fees ,Research and Evidence Division ,Capita Business Serivces Ltd ,202392-107 ,566.00,
DFID,DFID,23/09/2016,Aid Programme - Voluntary contributions ,Policy Division ,EUROPEAN FOREST INSTITUTE ,201724-110 ,"2,000,000.00",
DFID,DFID,14/09/2016,Aid Programme - Accountable Grant Payments ,Economic Development Division ,WORLD RESOURCES INSTITUTE ,204949-101 ,"426,948.00",
DFID,DFID,21/09/2016,Project delivery costs – supplier services ,East and Central Africa ,BMB  MOTT  MACDONALD ,202511-102 ,"643,576.89",
DFID,DFID,23/09/2016,Project delivery costs – supplier services ,East and Central Africa ,BMB  MOTT  MACDONALD ,202511-102 ,"964,799.48",
DFID,DFID,07/09/2016,Project delivery costs – supplier services ,East and Central Africa ,BMB  MOTT  MACDONALD ,202511-102 ,"118,624.03",
DFID,DFID,14/09/2016,Fund monies to be managed and dispersed by the supplier ,East and Central Africa ,BMB  MOTT  MACDONALD ,203383-101 ,"226,246.56",
DFID,DFID,30/09/2016,Fund monies to be managed and dispersed by the supplier ,East and Central Africa ,BMB  MOTT  MACDONALD ,203383-101 ,"305,530.00",
DFID,DFID,30/09/2016,Aid Programme - Accountable Grant Payments ,Research and Evidence Division ,HARVARD UNIVERSITY (OFFICE FOR SPONSERED PROGRAMS) ,203209-103 ,"96,480.15",
DFID,DFID,20/09/2016,Aid Programme - Joint programme contribution ,Research and Evidence Division ,INTERNATIONAL DEVELOPMENT RESEARCH CENTRE ,203205-102 ,"625,365.00",
DFID,DFID,21/09/2016,Repairs  Maint  Alter - Property & Constrct. Services ,West and Southern Africa ,Shell Nigeria Closed pension Fund Administration Ltd ,101622-108 ,"3,700.70",
DFID,DFID,06/09/2016,Storage & Distribution costs ,West and Southern Africa ,Conote Services Ltd ,101622-108 ,955.22,
DFID,DFID,27/09/2016,Storage & Distribution costs ,West and Southern Africa ,Conote Services Ltd ,101622-108 ,"1,062.81",
DFID,DFID,16/09/2016,Storage & Distribution costs ,West and Southern Africa ,Conote Services Ltd ,100152-117 ,949.25,
DFID,DFID,07/09/2016,Aid Programme - Accountable Grant Payments ,Policy Division ,THE TIDES CENTER ,204178-101 ,"85,351.00",
DFID,DFID,01/09/2016,Air fares ,Asia  Caribbean and Overseas Territories ,Jaya Travels & Tours Pvt Ltd. (US$) ,202433-109 ,"1,336.90",
DFID,DFID,23/09/2016,Air fares ,Asia  Caribbean and Overseas Territories ,Jaya Travels & Tours Pvt Ltd. (US$) ,101621-108 ,"3,190.15",
DFID,DFID,09/09/2016,Project delivery costs – supplier services ,Middle East and North Africa Division ,CARDNO EMERGING MARKETS (UK) LTD ,204267-101 ,"1,004.00",
DFID,DFID,21/09/2016,Fund monies to be managed and dispersed by the supplier ,Research and Evidence Division ,CARDNO EMERGING MARKETS (UK) LTD ,203048-105 ,"265,686.75",
DFID,DFID,14/09/2016,Project delivery costs – supplier services ,West and Southern Africa ,CARDNO EMERGING MARKETS (UK) LTD ,201791-111 ,"268,558.58",
DFID,DFID,20/09/2016,Project delivery costs – supplier services ,Economic Development Division ,CARDNO EMERGING MARKETS (UK) LTD ,203535-103 ,"35,969.00",
DFID,DFID,19/09/2016,Project delivery costs – supplier services ,Economic Development Division ,CARDNO EMERGING MARKETS (UK) LTD ,203535-103 ,"33,747.00",
DFID,DFID,13/09/2016,Project delivery costs – supplier services ,East and Central Africa ,CARDNO EMERGING MARKETS (UK) LTD ,202551-102 ,"362,055.38",
DFID,DFID,05/09/2016,Project delivery costs – supplier services ,West and Southern Africa ,CARDNO EMERGING MARKETS (UK) LTD ,204179-105 ,"18,741.30",
DFID,DFID,22/09/2016,Aid Programme - Accountable Grant Payments ,Research and Evidence Division ,International Initiative for Impact Evaluation(3ie) ,200135-106 ,"87,441.00",
DFID,DFID,12/09/2016,Project delivery costs – supplier services ,West and Southern Africa ,ADAM SMITH INTERNATIONAL ,201139-101 ,"62,437.73",
DFID,DFID,05/09/2016,Project delivery costs – supplier services ,Asia  Caribbean and Overseas Territories ,Supplier Name withheld ,205013-101 ,"50,681.94",
DFID,DFID,07/09/2016,Aid Programme - Voluntary contributions ,Middle East and North Africa Division ,UNOPS - support for Access Cell unit ,300001-101 ,"500,000.00",
DFID,DFID,23/09/2016,Project delivery costs – supplier services ,Asia  Caribbean and Overseas Territories ,RURAL RECONSTRUCTION NEPAL ,203764-110 ,"98,000.00",
DFID,DFID,27/09/2016,Project delivery costs – supplier services ,Asia  Caribbean and Overseas Territories ,RURAL RECONSTRUCTION NEPAL ,203764-110 ,"157,000.00",
DFID,DFID,27/09/2016,Project delivery costs – supplier services ,Asia  Caribbean and Overseas Territories ,RURAL RECONSTRUCTION NEPAL ,203764-104 ,"326,000.00",
DFID,DFID,23/09/2016,Project delivery costs – supplier services ,Asia  Caribbean and Overseas Territories ,RURAL RECONSTRUCTION NEPAL ,203764-104 ,"212,000.00",
DFID,DFID,13/09/2016,Training - Travel & Subsistence ,Asia  Caribbean and Overseas Territories ,BONDS TRAVEL BUREAU ,101624-101 ,692.07,
DFID,DFID,20/09/2016,Training - Travel & Subsistence ,Asia  Caribbean and Overseas Territories ,BONDS TRAVEL BUREAU ,101624-101 ,768.95,
DFID,DFID,22/09/2016,Training - Travel & Subsistence ,Asia  Caribbean and Overseas Territories ,BONDS TRAVEL BUREAU ,101624-101 ,732.28,
DFID,DFID,22/09/2016,Project delivery costs – supplier services ,Asia  Caribbean and Overseas Territories ,ISLAMABAD MARRIOTT HOTEL ,204024-106 ,979.02,
DFID,DFID,07/09/2016,Data Network - land lines ,Business Solutions Division Level ,NAYATEL (PVT) LTD ,203329-102 ,676.82,
DFID,DFID,07/09/2016,Data Network - land lines ,Business Solutions Division Level ,NAYATEL (PVT) LTD ,200002-121 ,676.82,
DFID,DFID,24/09/2016,Hotels - Accommodation only ,Asia  Caribbean and Overseas Territories ,Supplier Name withheld ,101624-101 ,"2,028.36",
DFID,DFID,30/09/2016,Project delivery costs – supplier services ,Asia  Caribbean and Overseas Territories ,Supplier name witheld,204024-106 ,535.51,
DFID,DFID,15/09/2016,Project delivery costs – supplier services ,Asia  Caribbean and Overseas Territories ,McKinsey & Co  Inc UK ,202697-109 ,"384,615.00",
DFID,DFID,13/09/2016,Project delivery costs – supplier services ,East and Central Africa ,HM Revenue & Customs Acc No 11963228 ,203986-104 ,787.97,
DFID,DFID,23/09/2016,Project delivery costs � supplier services,Asia  Caribbean and Overseas Territories ,HM Revenue & Customs Acc No 11963228 ,204024-106 ,"1,335.84",
DFID,DFID,23/09/2016,Air fares ,Asia  Caribbean and Overseas Territories ,HM Revenue & Customs Acc No 11963228 ,204024-106 ,"2,972.17",
DFID,DFID,28/09/2016,Project delivery costs – supplier services ,East and Central Africa ,Resource Consulting Services ,113401-105 ,"5,040.00",
DFID,DFID,29/09/2016,Aid Programme - Accountable Grant Payments ,Middle East and North Africa Division ,Supplier Name withheld ,203847-104 ,"664,332.25",
DFID,DFID,28/09/2016,Aid Programme - Trust Funds contributions ,East and Central Africa ,The World Bank (Tanzania) ,204369-103 ,"1,500,000.00",
DFID,DFID,08/09/2016,Project delivery costs – supplier services ,East and Central Africa ,Futures Group Europe ,202547-102 ,"108,280.98",
DFID,DFID,06/09/2016,Project delivery costs – supplier services ,East and Central Africa ,Futures Group Europe ,202547-102 ,"306,877.28",
DFID,DFID,19/09/2016,Project delivery costs – supplier services ,Asia  Caribbean and Overseas Territories ,Futures Group Europe ,202488-105 ,"67,041.59",
DFID,DFID,30/09/2016,Project delivery costs – supplier services ,Asia  Caribbean and Overseas Territories ,Futures Group Europe ,202488-105 ,"403,766.45",
DFID,DFID,09/09/2016,Project delivery costs – supplier services ,West and Southern Africa ,Futures Group Europe ,202992-101 ,"549,842.00",
DFID,DFID,01/09/2016,Aid Programme - Voluntary contributions ,Asia  Caribbean and Overseas Territories ,International Monetary Fund (GBP) ,205047-104 ,"162,162.00",
DFID,DFID,16/09/2016,Project delivery costs – supplier services ,West and Southern Africa ,HM REVENUE AND CUSTOMS Acc ,204918-101 ,"6,247.55",
DFID,DFID,23/09/2016,Aid Programme - Trust Funds contributions ,West and Southern Africa ,Basel Institute On Governance ,200469-117 ,"62,729.46",
DFID,DFID,30/09/2016,Aid Programme - Trust Funds contributions ,Middle East and North Africa Division ,The World Bank (EFO) ,300253-101 ,"300,000.00",
DFID,DFID,20/09/2016,Project delivery costs – supplier services ,East and Central Africa ,Montrose International ,202513-105 ,"155,446.00",
DFID,DFID,08/09/2016,Hotels - Accommodation only ,Asia  Caribbean and Overseas Territories ,Supplier Name withheld ,101624-101 ,"1,246.37",
DFID,DFID,22/09/2016,Hotels - Accommodation only ,Asia  Caribbean and Overseas Territories ,Supplier Name withheld ,101624-101 ,512.07,
DFID,DFID,13/09/2016,Aid Programme - Accountable Grant Payments ,Policy Division ,IIED  ,202834-101 ,"649,299.21",
DFID,DFID,07/09/2016,Air fares ,East and Central Africa ,Bon Voyage Travel Centre Ltd(USD) ,203008-103 ,"1,502.63",
DFID,DFID,19/09/2016,Training - Travel & Subsistence ,East and Central Africa ,Bon Voyage Travel Centre Ltd(USD) ,203459-111 ,"1,269.72",
DFID,DFID,22/09/2016,Project delivery costs – supplier services ,East and Central Africa ,Bon Voyage Travel Centre Ltd(USD) ,202770-101 ,776.84,
DFID,DFID,21/09/2016,Air fares ,West and Southern Africa ,Bon Voyage Travel Centre Ltd(USD) ,205189-103 ,"1,123.47",
DFID,DFID,27/09/2016,Air fares ,East and Central Africa ,Bon Voyage Travel Centre Ltd(USD) ,101634-101 ,803.68,
DFID,DFID,21/09/2016,Air fares ,East and Central Africa ,Bon Voyage Travel Centre Ltd(USD) ,101634-101 ,"1,081.29",
DFID,DFID,28/09/2016,Air fares ,East and Central Africa ,Bon Voyage Travel Centre Ltd(USD) ,101634-101 ,725.31,
DFID,DFID,07/09/2016,Training - Travel & Subsistence ,East and Central Africa ,Bon Voyage Travel Centre Ltd(USD) ,101634-101 ,"3,005.26",
DFID,DFID,07/09/2016,Air fares ,East and Central Africa ,Bon Voyage Travel Centre Ltd(USD) ,101634-101 ,991.74,
DFID,DFID,07/09/2016,Training - Travel & Subsistence ,East and Central Africa ,Bon Voyage Travel Centre Ltd(USD) ,101634-101 ,"1,187.08",
DFID,DFID,14/09/2016,Aid Programme - Accountable Grant Payments ,Research and Evidence Division ,The Royal Society ,203041-102 ,"423,995.00",
DFID,DFID,15/09/2016,Research and development costs - supplier services ,Research and Evidence Division ,Tim Leyland ,204823-102 ,"1,471.50",
DFID,DFID,06/09/2016,Research and development costs - supplier services ,Research and Evidence Division ,Tim Leyland ,204823-102 ,"1,174.50",
DFID,DFID,16/09/2016,Research and development costs - supplier services ,Research and Evidence Division ,Tim Leyland ,204823-102 ,"4,058.82",
DFID,DFID,09/09/2016,Aid Programme - Accountable Grant Payments ,Asia  Caribbean and Overseas Territories ,International Institute for Environment and Development (IIED) ,114058-112 ,"32,053.54",
DFID,DFID,08/09/2016,Project delivery costs – supplier services ,East and Central Africa ,Anthony Hughes (US $) ,204362-101 ,"1,590.57",
DFID,DFID,09/09/2016,Aid Programme - Accountable Grant Payments ,Policy Division ,Program for Appropriate Technology in Health ,203663-101 ,"204,778.39",
DFID,DFID,23/09/2016,Aid Programme - Voluntary contributions ,West and Southern Africa ,OHCHR ,202416-116 ,"333,333.00",
DFID,DFID,08/09/2016,Training Providers/Facilitation Services ,West and Southern Africa ,TRIPLE M IMPACT CONSULTING LIMITED ,101637-102 ,"3,708.25",
DFID,DFID,29/09/2016,Project delivery costs – supplier services ,Asia  Caribbean and Overseas Territories ,Harewelle International Limited. ,107402-101 ,"147,533.96",
DFID,DFID,29/09/2016,Project delivery costs – supplier services ,Asia  Caribbean and Overseas Territories ,Harewelle International Limited. ,107402-105 ,"2,601.05",
DFID,DFID,29/09/2016,Encashment of Promissory Notes ,Economic Development Division ,International Development Association,202969-106 ,"18,260,000.00",
DFID,DFID,29/09/2016,Encashment of Promissory Notes ,Economic Development Division ,International Development Association,200269-106 ,"27,740,000.00",
DFID,DFID,14/09/2016,Encashment of Promissory Notes ,Policy Division ,International Finance Corporation ,201733-112 ,"1,140,750.00",
DFID,DFID,29/09/2016,Aid Programme - Accountable Grant Payments ,Conflict  Humanitarian  Security & Stabilisation Division ,Supplier Name withheld ,203419-105 ,"16,170.69",
DFID,DFID,08/09/2016,Aid Programme - Accountable Grant Payments ,Conflict  Humanitarian  Security & Stabilisation Division ,Supplier Name withheld ,203419-105 ,"21,844.89",
DFID,DFID,21/09/2016,Project delivery costs – supplier services ,Middle East and North Africa Division ,Supplier Name withheld ,300315-103 ,"16,527.09",
DFID,DFID,20/09/2016,Project delivery costs – supplier services ,Asia  Caribbean and Overseas Territories ,SIDBI MUMBAI ,114293-103 ,"59,347.90",
DFID,DFID,20/09/2016,Project delivery costs – supplier services ,Asia  Caribbean and Overseas Territories ,SIDBI MUMBAI ,114293-103 ,"104,874.45",
DFID,DFID,20/09/2016,Project delivery costs – supplier services ,Asia  Caribbean and Overseas Territories ,SIDBI MUMBAI ,114293-103 ,"93,337.09",
DFID,DFID,29/09/2016,Project delivery costs – supplier services ,Asia  Caribbean and Overseas Territories ,SIDBI MUMBAI ,114293-103 ,"33,461.23",
DFID,DFID,29/09/2016,Project delivery costs – supplier services ,Asia  Caribbean and Overseas Territories ,SIDBI MUMBAI ,114293-103 ,"287,618.48",
DFID,DFID,16/09/2016,Aid Programme - Joint programme contribution ,East and Central Africa ,TRADEMARK EAST AFRICA ,203307-102 ,"6,000,000.00",
DFID,DFID,30/09/2016,Aid Programme - Pooled/Basket funding ,East and Central Africa ,TRADEMARK EAST AFRICA ,200171-111 ,"1,000,000.00",
DFID,DFID,27/09/2016,Aid Programme - Core contributions ,East and Central Africa ,TRADEMARK EAST AFRICA ,201685-103 ,"538,000.00",
DFID,DFID,27/09/2016,Aid Programme - Core contributions ,East and Central Africa ,TRADEMARK EAST AFRICA ,201685-104 ,"1,628,000.00",
DFID,DFID,29/09/2016,Secure Staff Accommodation ,Asia  Caribbean and Overseas Territories ,Recipient name withheld ,101603-101 ,"5,889.09",
DFID,DFID,30/09/2016,Office Equipment - Purchases ,Group Operations ,Sitelink Communications Ltd ,203717-101 ,"2,304.00",
DFID,DFID,30/09/2016,Office Equipment - Purchases ,Group Operations ,Sitelink Communications Ltd ,203717-101 ,"2,304.00",
DFID,DFID,30/09/2016,Office Equipment - Purchases ,Group Operations ,Sitelink Communications Ltd ,203717-101 ,"2,304.00",
DFID,DFID,30/09/2016,Office Equipment - Purchases ,Group Operations ,Sitelink Communications Ltd ,203717-101 ,"2,712.00",
DFID,DFID,30/09/2016,Office Equipment - Purchases ,Group Operations ,Sitelink Communications Ltd ,203717-101 ,"2,712.00",
DFID,DFID,30/09/2016,Office Equipment - Purchases ,Group Operations ,Sitelink Communications Ltd ,203717-101 ,"2,304.00",
DFID,DFID,21/09/2016,Aid Programme - Accountable Grant Payments ,West and Southern Africa ,Clinton Health Access Initiative ,202722-109 ,"523,885.23",
DFID,DFID,01/09/2016,Aid Programme - Accountable Grant Payments ,West and Southern Africa ,Clinton Health Access Initiative ,203543-104 ,"245,781.86",
DFID,DFID,27/09/2016,Aid Programme - Accountable Grant Payments ,West and Southern Africa ,Action Against Hunger - USA ,202909-106 ,"220,487.62",
DFID,DFID,19/09/2016,Aid Programme - Accountable Grant Payments ,Asia  Caribbean and Overseas Territories ,The Asia Foundation (GBP) ,203385-103 ,"130,580.99",
DFID,DFID,29/09/2016,Aid Programme - Accountable Grant Payments ,Asia  Caribbean and Overseas Territories ,The Asia Foundation (GBP) ,204623-101 ,"309,273.00",
DFID,DFID,08/09/2016,Aid Programme - Accountable Grant Payments ,Economic Development Division ,Columbia University ,204252-119 ,"45,619.43",
DFID,DFID,06/09/2016,Air fares ,West and Southern Africa ,Supplier Name withheld ,101622-105 ,"4,450.08",
DFID,DFID,08/09/2016,Aid Programme - Accountable Grant Payments ,Asia  Caribbean and Overseas Territories ,OBSERVER RESEARCH FOUNDATION ,202765-105 ,"14,316.19",
DFID,DFID,23/09/2016,Aid Programme - Accountable Grant Payments ,West and Southern Africa ,NATIONAL DEMOCTRATIC INSTITUTE ,203567-103 ,"524,574.00",
DFID,DFID,13/09/2016,Aid Programme - Accountable Grant Payments ,West and Southern Africa ,NATIONAL DEMOCTRATIC INSTITUTE ,203567-103 ,"290,657.00",
DFID,DFID,30/09/2016,Aid Programme - Accountable Grant Payments ,Conflict  Humanitarian  Security & Stabilisation Division ,Supplier Name withheld ,203419-105 ,"26,472.43",
DFID,DFID,30/09/2016,Aid Programme - Accountable Grant Payments ,Conflict  Humanitarian  Security & Stabilisation Division ,Supplier Name withheld ,203419-105 ,"25,295.37",
DFID,DFID,07/09/2016,Aid Programme - Humanitarian Material Relief Assistance and Services ,Conflict  Humanitarian  Security & Stabilisation Division ,Supplier Name withheld ,204610-102 ,"44,696.00",
DFID,DFID,15/09/2016,Aid Programme - Humanitarian Material Relief Assistance and Services ,Middle East and North Africa Division ,Supplier Name withheld ,204516-103 ,"22,170.33",
DFID,DFID,14/09/2016,Aid Programme - Accountable Grant Payments ,West and Southern Africa ,Supplier Name withheld ,204013-102 ,"18,444.00",
DFID,DFID,29/09/2016,Project delivery costs – supplier services ,Policy Division ,CfBT Education Trust ,201469-106 ,"83,665.00",
DFID,DFID,16/09/2016,Aid Programme - Joint programme contribution ,Middle East and North Africa Division , Social Fund for Development  ,201427-101 ,"4,000,000.00",
DFID,DFID,05/09/2016,Hotels - Accommodation only ,West and Southern Africa ,Wood lands Guest Lodge ,101638-105 ,586.91,
DFID,DFID,07/09/2016,Research and development costs - supplier services ,Research and Evidence Division ,University of Edinburgh - Research Into Results Ltd ,204326-102 ,"357,582.20",
DFID,DFID,13/09/2016,Aid Programme - Accountable Grant Payments ,Research and Evidence Division ,University of Edinburgh - Research Into Results Ltd ,203665-102 ,"136,982.79",
DFID,DFID,05/09/2016,Training - Travel & Subsistence ,Asia  Caribbean and Overseas Territories ,Gerry's Travel Agency Private Limited ,101624-101 ,728.03,
DFID,DFID,05/09/2016,Training - Travel & Subsistence ,Asia  Caribbean and Overseas Territories ,Gerry's Travel Agency Private Limited ,101624-101 ,748.34,
DFID,DFID,22/09/2016,Training - Travel & Subsistence ,Asia  Caribbean and Overseas Territories ,Gerry's Travel Agency Private Limited ,101624-101 ,825.20,
DFID,DFID,06/09/2016,Training - Travel & Subsistence ,Asia  Caribbean and Overseas Territories ,Gerry's Travel Agency Private Limited ,101624-101 ,975.89,
DFID,DFID,05/09/2016,Air fares ,Asia  Caribbean and Overseas Territories ,Gerry's Travel Agency Private Limited ,101624-101 ,"1,075.32",
DFID,DFID,06/09/2016,Air fares ,Asia  Caribbean and Overseas Territories ,Gerry's Travel Agency Private Limited ,101624-101 ,560.81,
DFID,DFID,13/09/2016,Training - Travel & Subsistence ,Asia  Caribbean and Overseas Territories ,Gerry's Travel Agency Private Limited ,101624-101 ,925.33,
DFID,DFID,20/09/2016,Air fares ,Asia  Caribbean and Overseas Territories ,Gerry's Travel Agency Private Limited ,101624-101 ,814.92,
DFID,DFID,09/09/2016,Aid Programme - Core contributions ,East and Central Africa , ACCESS TO FINANCE RWANDA ,204471-101 ,"113,959.00",
DFID,DFID,09/09/2016,Aid Programme - Core contributions ,East and Central Africa , ACCESS TO FINANCE RWANDA ,204471-103 ,"37,987.00",
DFID,DFID,21/09/2016,Project delivery costs – supplier services ,East and Central Africa ,PATRICK JAMES NOLEN ,201518-104 ,"1,350.00",
DFID,DFID,12/09/2016,Project delivery costs – supplier services ,West and Southern Africa ,PATRICK JAMES NOLEN ,202732-106 ,"2,000.00",
DFID,DFID,21/09/2016,Project delivery costs – supplier services ,East and Central Africa ,Triple Line Consulting ,203220-102 ,"83,493.00",
DFID,DFID,09/09/2016,Project delivery costs – supplier services ,East and Central Africa ,IMC Worldwide Ltd. ,202347-105 ,"1,067.00",
DFID,DFID,13/09/2016,Project delivery costs – supplier services ,Asia  Caribbean and Overseas Territories ,IMC Worldwide Ltd. ,203186-110 ,"319,877.32",
DFID,DFID,01/09/2016,Project delivery costs – supplier services ,Asia  Caribbean and Overseas Territories ,IMC Worldwide Ltd. ,203186-110 ,"672,731.31",
DFID,DFID,22/09/2016,Project delivery costs – supplier services ,Asia  Caribbean and Overseas Territories ,IMC Worldwide Ltd. ,202328-107 ,"237,121.22",
DFID,DFID,22/09/2016,Project delivery costs – supplier services ,Asia  Caribbean and Overseas Territories ,IMC Worldwide Ltd. ,202697-111 ,"344,546.27",
DFID,DFID,09/09/2016,Project delivery costs – supplier services ,Asia  Caribbean and Overseas Territories ,IMC Worldwide Ltd. ,202697-104 ,"20,000.51",
DFID,DFID,08/09/2016,Project delivery costs – supplier services ,Asia  Caribbean and Overseas Territories ,IMC Worldwide Ltd. ,202697-104 ,"537,249.57",
DFID,DFID,08/09/2016,Project delivery costs – supplier services ,Asia  Caribbean and Overseas Territories ,IMC Worldwide Ltd. ,202697-104 ,"28,344.76",
DFID,DFID,13/09/2016,Project delivery costs – supplier services ,Asia  Caribbean and Overseas Territories ,IMC Worldwide Ltd. ,203186-103 ,"141,935.44",
DFID,DFID,01/09/2016,Project delivery costs – supplier services ,Asia  Caribbean and Overseas Territories ,IMC Worldwide Ltd. ,203186-103 ,"67,131.63",
DFID,DFID,08/09/2016,Project delivery costs – supplier services ,Asia  Caribbean and Overseas Territories ,IMC Worldwide Ltd. ,202328-106 ,"52,348.67",
DFID,DFID,08/09/2016,Project delivery costs – supplier services ,Asia  Caribbean and Overseas Territories ,IMC Worldwide Ltd. ,202328-106 ,"123,255.59",
DFID,DFID,09/09/2016,Project delivery costs – supplier services ,Asia  Caribbean and Overseas Territories ,IMC Worldwide Ltd. ,202328-106 ,"1,358,841.19",
DFID,DFID,06/09/2016,Project delivery costs – supplier services ,Asia  Caribbean and Overseas Territories ,IMC Worldwide Ltd. ,202697-111 ,"311,223.31",
DFID,DFID,08/09/2016,Project delivery costs – supplier services ,Asia  Caribbean and Overseas Territories ,IMC Worldwide Ltd. ,202697-112 ,"148,690.00",
DFID,DFID,09/09/2016,Project delivery costs – supplier services ,Asia  Caribbean and Overseas Territories ,IMC Worldwide Ltd. ,202697-112 ,"13,791.00",
DFID,DFID,06/09/2016,Project delivery costs – supplier services ,Asia  Caribbean and Overseas Territories ,IMC Worldwide Ltd. ,202328-107 ,"229,576.72",
DFID,DFID,09/09/2016,Project delivery costs – supplier services ,Asia  Caribbean and Overseas Territories ,IMC Worldwide Ltd. ,202328-109 ,"166,666.00",
DFID,DFID,28/09/2016,Project delivery costs – supplier services ,West and Southern Africa ,DAI Europe ,202476-103 ,"544,921.77",
DFID,DFID,08/09/2016,Project delivery costs – supplier services ,East and Central Africa ,DAI Europe ,204157-102 ,"191,507.33",
DFID,DFID,08/09/2016,Project delivery costs – supplier services ,East and Central Africa ,DAI Europe ,204157-105 ,"445,182.80",
DFID,DFID,08/09/2016,Project delivery costs – supplier services ,East and Central Africa ,DAI Europe ,204157-106 ,"15,759.32",
DFID,DFID,29/09/2016,Project delivery costs – supplier services ,West and Southern Africa ,DAI Europe ,202585-102 ,"448,005.04",
DFID,DFID,01/09/2016,Project delivery costs – supplier services ,West and Southern Africa ,DAI Europe ,202585-102 ,"161,751.10",
DFID,DFID,27/09/2016,Project delivery costs – supplier services ,West and Southern Africa ,DAI Europe ,203922-101 ,"131,084.86",
DFID,DFID,01/09/2016,Project delivery costs – supplier services ,West and Southern Africa ,DAI Europe ,203922-101 ,"182,174.70",
DFID,DFID,20/09/2016,Project delivery costs – supplier services ,West and Southern Africa ,DAI Europe ,201857-102 ,"120,248.23",
DFID,DFID,01/09/2016,Project delivery costs – supplier services ,East and Central Africa ,DAI Europe ,202596-105 ,"140,153.06",
DFID,DFID,01/09/2016,Project delivery costs – supplier services ,East and Central Africa ,DAI Europe ,203986-102 ,"176,542.08",
DFID,DFID,07/09/2016,Project delivery costs – supplier services ,Economic Development Division ,DAI Europe ,202817-105 ,"1,337.50",
DFID,DFID,14/09/2016,Project delivery costs – supplier services ,Asia  Caribbean and Overseas Territories ,DAI Europe ,203186-104 ,"133,228.00",
DFID,DFID,20/09/2016,Project delivery costs – supplier services ,Asia  Caribbean and Overseas Territories ,DAI Europe ,204672-102 ,"25,059.03",
DFID,DFID,13/09/2016,Project delivery costs – supplier services ,West and Southern Africa ,DAI Europe ,201980-102 ,"12,709.38",
DFID,DFID,28/09/2016,Project delivery costs – supplier services ,West and Southern Africa ,DAI Europe ,201980-102 ,"119,513.60",
DFID,DFID,23/09/2016,Project delivery costs – supplier services ,West and Southern Africa ,DAI Europe ,201980-102 ,"19,938.90",
DFID,DFID,02/09/2016,Project delivery costs – supplier services ,West and Southern Africa ,DAI Europe ,201980-102 ,"107,651.11",
DFID,DFID,07/09/2016,Project delivery costs – supplier services ,West and Southern Africa ,DAI Europe ,201980-104 ,"1,000,000.00",
DFID,DFID,22/09/2016,Project delivery costs – supplier services ,West and Southern Africa ,DAI Europe ,201857-102 ,"92,209.84",
DFID,DFID,15/09/2016,Project delivery costs – supplier services ,Middle East and North Africa Division ,DAI Europe ,204325-102 ,"40,855.03",
DFID,DFID,20/09/2016,Project delivery costs – supplier services ,Asia  Caribbean and Overseas Territories ,DAI Europe ,114433-102 ,"525,603.64",
DFID,DFID,13/09/2016,Project delivery costs – supplier services ,West and Southern Africa ,DAI Europe ,203317-102 ,"46,645.39",
DFID,DFID,20/09/2016,Fund monies to be managed and dispersed by the supplier ,Middle East and North Africa Division ,DAI Europe ,201828-101 ,"208,505.87",
DFID,DFID,21/09/2016,Project delivery costs – supplier services ,West and Southern Africa ,DAI Europe ,204822-101 ,"84,543.35",
DFID,DFID,02/09/2016,Project delivery costs – supplier services ,Asia  Caribbean and Overseas Territories ,DAI Europe ,203186-104 ,"26,150.00",
DFID,DFID,23/09/2016,Project delivery costs – supplier services ,Policy Division ,Sightsavers ,203145-101 ,"409,084.00",
DFID,DFID,22/09/2016,Project delivery costs – supplier services ,Policy Division ,Sightsavers ,203146-103 ,"130,000.00",
DFID,DFID,02/09/2016,Aid Programme - Accountable Grant Payments ,Policy Division ,Sightsavers ,203559-156 ,"151,622.00",
DFID,DFID,29/09/2016,Project delivery costs – supplier services ,Policy Division ,Alpine Resourcing Limited ,203516-104 ,"10,152.00",
DFID,DFID,29/09/2016,Project delivery costs – supplier services ,Research and Evidence Division ,Abt Associates ,203052-106 ,"20,000.00",
DFID,DFID,19/09/2016,Project delivery costs – supplier services ,West and Southern Africa ,Marie Stopes International (MSI) ,202656-101 ,"1,149,370.00",
DFID,DFID,14/09/2016,Project delivery costs – supplier services ,East and Central Africa ,Marie Stopes International (MSI) ,204266-102 ,"728,167.00",
DFID,DFID,07/09/2016,Project delivery costs – supplier services ,Asia  Caribbean and Overseas Territories ,Marie Stopes International (MSI) ,202413-104 ,"777,999.00",
DFID,DFID,28/09/2016,Fund monies to be managed and dispersed by the supplier ,East and Central Africa ,Marie Stopes International (MSI) ,202549-105 ,"186,726.00",
DFID,DFID,23/09/2016,Project delivery costs – supplier services ,Policy Division ,PATH ,202674-101 ,"8,184.00",
DFID,DFID,29/09/2016,Project delivery costs – supplier services ,Policy Division ,PATH ,202674-101 ,"44,848.96",
DFID,DFID,29/09/2016,Project delivery costs – supplier services ,Policy Division ,PATH ,202674-101 ,"12,986.89",
DFID,DFID,29/09/2016,Project delivery costs – supplier services ,Policy Division ,PATH ,202674-101 ,"6,741.50",
DFID,DFID,30/09/2016,Project delivery costs – supplier services ,Policy Division ,PATH ,202674-101 ,"7,544.30",
DFID,DFID,30/09/2016,Project delivery costs – supplier services ,Policy Division ,PATH ,202674-101 ,"203,162.52",
DFID,DFID,30/09/2016,Project delivery costs – supplier services ,Policy Division ,PATH ,202674-101 ,"107,478.66",
DFID,DFID,30/09/2016,Project delivery costs – supplier services ,Policy Division ,PATH ,202674-101 ,"6,630.77",
DFID,DFID,15/09/2016,Project delivery costs – supplier services ,Policy Division ,PATH ,202676-101 ,"67,431.40",
DFID,DFID,07/09/2016,Aid Programme - Accountable Grant Payments ,Asia  Caribbean and Overseas Territories ,DKT International ,202413-106 ,"490,001.50",
DFID,DFID,22/09/2016,Project delivery costs – supplier services ,East and Central Africa ,DKT International ,202980-103 ,"380,000.00",
DFID,DFID,28/09/2016,Project delivery costs – supplier services ,Asia  Caribbean and Overseas Territories ,WYG International ,204952-102 ,"90,629.00",
DFID,DFID,07/09/2016,Project delivery costs – supplier services ,Asia  Caribbean and Overseas Territories ,LTS International Ltd. ,201724-153 ,"157,322.22",
DFID,DFID,13/09/2016,Project delivery costs – supplier services ,Asia  Caribbean and Overseas Territories ,LTS International Ltd. ,201724-153 ,"67,092.19",
DFID,DFID,29/09/2016,Project delivery costs – supplier services ,Asia  Caribbean and Overseas Territories ,LTS International Ltd. ,201724-153 ,"72,450.34",
DFID,DFID,29/09/2016,Project delivery costs – supplier services ,Asia  Caribbean and Overseas Territories ,LTS International Ltd. ,201724-153 ,"75,536.79",
DFID,DFID,28/09/2016,Project delivery costs – supplier services ,East and Central Africa ,LTS International Ltd. ,201866-106 ,"21,731.50",
DFID,DFID,08/09/2016,Project delivery costs – supplier services ,West and Southern Africa ,LTS International Ltd. ,201196-108 ,"23,532.22",
DFID,DFID,23/09/2016,Project delivery costs – supplier services ,Asia  Caribbean and Overseas Territories ,KPMG (KASPL) ,204468-109 ,"20,084.00",
DFID,DFID,13/09/2016,Project delivery costs – supplier services ,West and Southern Africa ,GDSI UK LIMITED ,202999-104 ,"14,997.00",
DFID,DFID,08/09/2016,Project delivery costs – supplier services ,Asia  Caribbean and Overseas Territories ,PricewaterhouseCoopers Pvt.Ltd ,204135-101 ,"160,046.00",
DFID,DFID,27/09/2016,Project delivery costs – supplier services ,Asia  Caribbean and Overseas Territories ,PricewaterhouseCoopers Pvt.Ltd ,200599-101 ,"45,856.00",
DFID,DFID,27/09/2016,Project delivery costs – supplier services ,Asia  Caribbean and Overseas Territories ,PricewaterhouseCoopers Pvt.Ltd ,200599-101 ,"45,856.00",
DFID,DFID,27/09/2016,Project delivery costs – supplier services ,Asia  Caribbean and Overseas Territories ,PricewaterhouseCoopers Pvt.Ltd ,200599-101 ,"45,856.00",
DFID,DFID,23/09/2016,Project delivery costs – supplier services ,Asia  Caribbean and Overseas Territories ,PricewaterhouseCoopers Pvt.Ltd ,200599-101 ,"45,856.00",
DFID,DFID,23/09/2016,Project delivery costs – supplier services ,Asia  Caribbean and Overseas Territories ,PricewaterhouseCoopers Pvt.Ltd ,200599-101 ,"45,856.00",
DFID,DFID,07/09/2016,Facilities Management payments ,West and Southern Africa ,Lilleker Bros (Nigeria) Ltd ,101622-108 ,"3,448.63",
DFID,DFID,07/09/2016,Facilities Management payments ,West and Southern Africa ,Lilleker Bros (Nigeria) Ltd ,100152-117 ,"1,408.59",
DFID,DFID,14/09/2016,Aid Programme - Joint programme contribution ,East and Central Africa ,PricewaterhouseCoopers Limited (KENYA3) ,202974-109 ,"100,000.00",
DFID,DFID,23/09/2016,Research and development costs - supplier services ,Research and Evidence Division ,PricewaterhouseCoopers Limited (KENYA3) ,204570-106 ,"15,333.19",
DFID,DFID,22/09/2016,Research and development costs - supplier services ,Research and Evidence Division ,PricewaterhouseCoopers Limited (KENYA3) ,204570-106 ,"13,269.00",
DFID,DFID,22/09/2016,Project delivery costs – supplier services ,Research and Evidence Division ,PricewaterhouseCoopers Limited (KENYA3) ,204570-106 ,"40,626.00",
DFID,DFID,23/09/2016,Hotels - Accommodation only ,West and Southern Africa ,Africa House ,101618-101 ,696.16,
DFID,DFID,06/09/2016,Aid Programme - Accountable Grant Payments ,Economic Development Division ,Landesa ,204252-120 ,"385,008.00",
DFID,DFID,22/09/2016,Research and development costs - supplier services ,Research and Evidence Division ,IPA ,204584-132 ,"49,892.25",
DFID,DFID,21/09/2016,Printer Consumables ,West and Southern Africa ,Formats Projects Services Limited ,100152-117 ,"3,958.49",
DFID,DFID,21/09/2016,Printer Consumables ,West and Southern Africa ,Formats Projects Services Limited ,101622-108 ,"15,833.94",
DFID,DFID,07/09/2016,Aid Programme - Core contributions ,Economic Development Division ,Global Green Growth Institute ,204248-102 ,"1,865,500.00",
DFID,DFID,19/09/2016,Aid Programme - Core contributions ,Economic Development Division ,Global Green Growth Institute ,204248-102 ,"1,000,000.00",
DFID,DFID,23/09/2016,Project delivery costs – supplier services ,Research and Evidence Division ,Tilburg University - TiSEM ,202818-102 ,"185,544.00",
DFID,DFID,21/09/2016,Project delivery costs – supplier services ,East and Central Africa ,Hext Consulting Ltd ,204323-106 ,"21,606.35",
DFID,DFID,06/09/2016,Project delivery costs – supplier services ,Policy Division ,SNV Netherlands Development Organisation ,203572-101 ,"567,974.00",
DFID,DFID,20/09/2016,Project delivery costs – supplier services ,West and Southern Africa ,International Law and Policy Institute ,203714-101 ,"175,975.00",
DFID,DFID,01/09/2016,Project delivery costs – supplier services ,Asia  Caribbean and Overseas Territories ,Deloitte Touche Tohmatsu India Private Limited ,203224-101 ,"55,126.40",
DFID,DFID,05/09/2016,Project delivery costs – supplier services ,Asia  Caribbean and Overseas Territories ,Deloitte Touche Tohmatsu India Private Limited ,203224-101 ,"18,916.36",
DFID,DFID,01/09/2016,Project delivery costs – supplier services ,Asia  Caribbean and Overseas Territories ,Deloitte Touche Tohmatsu India Private Limited ,203224-101 ,"24,163.80",
DFID,DFID,05/09/2016,Project delivery costs – supplier services ,Asia  Caribbean and Overseas Territories ,Deloitte Touche Tohmatsu India Private Limited ,203224-101 ,"49,680.00",
DFID,DFID,05/09/2016,Project delivery costs – supplier services ,Asia  Caribbean and Overseas Territories ,Deloitte Touche Tohmatsu India Private Limited ,203224-101 ,"68,991.96",
DFID,DFID,14/09/2016,Project delivery costs – supplier services ,Asia  Caribbean and Overseas Territories ,Deloitte Touche Tohmatsu India Private Limited ,203224-101 ,"94,217.20",
DFID,DFID,09/09/2016,Project delivery costs – supplier services ,Asia  Caribbean and Overseas Territories ,Deloitte Touche Tohmatsu India Private Limited ,203224-101 ,"7,331.26",
DFID,DFID,16/09/2016,Project delivery costs – supplier services ,Asia  Caribbean and Overseas Territories ,Semiotics Consultants (Pvt) Limited ,202368-103 ,"7,874.38",
DFID,DFID,26/09/2016,Project delivery costs – supplier services ,Asia  Caribbean and Overseas Territories ,Ernst & Young Ford Rhodes Sidat  Hyder ,202495-112 ,"2,895.64",
DFID,DFID,27/09/2016,Training - Course Fees ,Internal Audit ,University of Portsmouth Enterprise Limited ,100121-101 ,"2,100.00",
DFID,DFID,05/09/2016,Aid Programme - Accountable Grant Payments ,Conflict  Humanitarian  Security & Stabilisation Division ,Supplier Name withheld ,202878-103 ,"316,568.00",
DFID,DFID,07/09/2016,Computer software maintenance ,Business Solutions Division Level ,Phoenix Software Ltd ,200002-150 ,"16,392.30",
DFID,DFID,21/09/2016,Aid Programme - Partnership Programme Arrangements ,Policy Division ,Islamic Relief Worldwide ,203105-101 ,"173,142.00",
DFID,DFID,09/09/2016,Legal costs ,Asia  Caribbean and Overseas Territories ,Amarchand & Mangaldas & Suresh A Shroff & Co. ,202869-101 ,"9,668.81",
DFID,DFID,09/09/2016,Project delivery costs – supplier services ,East and Central Africa ,Chr. Michelsen Institute ,202770-104 ,"4,157.00",
DFID,DFID,16/09/2016,Aid Programme - Accountable Grant Payments ,West and Southern Africa ,Millennium Promise Alliance ,202483-102 ,"576,772.00",
DFID,DFID,01/09/2016,Project delivery costs – supplier services ,Asia  Caribbean and Overseas Territories ,National Housing Bank ,202867-104 ,"80,124.74",
DFID,DFID,05/09/2016,Air fares ,Business Solutions Division Level ,Harvey World Travel Centurion ,203329-104 ,637.65,
DFID,DFID,29/09/2016,Air fares ,West and Southern Africa ,Harvey World Travel Centurion ,101631-101 ,739.79,
DFID,DFID,30/09/2016,Aid Programme - Other Financial Aid to Government ,East and Central Africa ,Ministry of Finance Tanzania  (BRN) ,202770-101 ,"5,094.76",
DFID,DFID,22/09/2016,Aid Programme - Joint programme contribution ,East and Central Africa ,Democratic Governance Facility (DGF) ,202802-101 ,"1,691,650.00",
DFID,DFID,22/09/2016,Aid Programme - Pooled/Basket funding ,East and Central Africa ,Democratic Governance Facility (DGF) ,200250-108 ,"1,015,000.00",
DFID,DFID,05/09/2016,Aid Programme - Accountable Grant Payments ,Policy Division ,AAUK ,203559-114 ,"122,112.06",
DFID,DFID,14/09/2016,Training Providers/Facilitation Services ,Business Solutions Division Level ,Emergn ,200001-101 ,625.00,
DFID,DFID,06/09/2016,Hardware - desktop PCs ,Business Solutions Division Level ,Stone Computers Ltd ,200004-128 ,"1,802.40",
DFID,DFID,06/09/2016,Hardware - desktop PCs ,Business Solutions Division Level ,Stone Computers Ltd ,200004-128 ,"6,048.00",
DFID,DFID,15/09/2016,Hardware - desktop PCs ,Business Solutions Division Level ,Stone Computers Ltd ,200004-128 ,806.40,
DFID,DFID,15/09/2016,Hardware - desktop PCs ,Business Solutions Division Level ,Stone Computers Ltd ,200004-128 ,"5,983.20",
DFID,DFID,15/09/2016,Hardware - desktop PCs ,Business Solutions Division Level ,Stone Computers Ltd ,200004-128 ,950.40,
DFID,DFID,13/09/2016,Hardware - desktop PCs ,Business Solutions Division Level ,Stone Computers Ltd ,200004-128 ,580.32,
DFID,DFID,14/09/2016,Hardware - desktop PCs ,Business Solutions Division Level ,Stone Computers Ltd ,200004-128 ,"1,802.40",
DFID,DFID,20/09/2016,Computer Software Licenses ,Business Solutions Division Level ,Stone Computers Ltd ,200002-153 ,"1,382.40",
DFID,DFID,23/09/2016,Aid Programme - Other Financial Aid to Government ,Asia  Caribbean and Overseas Territories ,Tristan da Cunha Finance Department ,204730-101 ,"302,675.00",
DFID,DFID,20/09/2016,Postage Costs ,Group Operations ,Royal Mail Courier Services Ltd ,203717-101 ,"2,200.00",
DFID,DFID,30/09/2016,Postage Costs ,Group Operations ,Royal Mail Courier Services Ltd ,203717-101 ,712.50,
DFID,DFID,28/09/2016,Aid Programme - Accountable Grant Payments ,Policy Division ,SolarAid ,203559-169 ,"17,464.81",
DFID,DFID,21/09/2016,Legal costs ,Research and Evidence Division ,Marriott Davies Yapp LLP ,203638-104 ,"1,622.88",
DFID,DFID,05/09/2016,Legal costs ,Research and Evidence Division ,Marriott Davies Yapp LLP ,203638-104 ,"1,288.08",
DFID,DFID,21/09/2016,Aid Programme - Other Financial Aid to Government ,West and Southern Africa ,Ministry of Finance and Economic Development Sierra Leone ,205192-101 ,"2,500,000.00",
DFID,DFID,15/09/2016,Recruitment costs ,Group Operations ,Anderson Knight Ltd ,100270-104 ,"3,580.56",
DFID,DFID,29/09/2016,Contract & Agency Staff ,Group Operations ,Anderson Knight Ltd ,204664-101 ,719.72,
DFID,DFID,30/09/2016,Contract & Agency Staff ,Group Operations ,Anderson Knight Ltd ,204664-101 ,719.72,
DFID,DFID,29/09/2016,Contract & Agency Staff ,Group Operations ,Anderson Knight Ltd ,204664-101 ,719.72,
DFID,DFID,06/09/2016,Contract & Agency Staff ,Group Operations ,Anderson Knight Ltd ,204664-101 ,719.72,
DFID,DFID,29/09/2016,Contract & Agency Staff ,Group Operations ,Anderson Knight Ltd ,100270-101 ,739.18,
DFID,DFID,29/09/2016,Contract & Agency Staff ,Group Operations ,Anderson Knight Ltd ,100270-101 ,739.18,
